Organisation Name,Organisation Code,Unique Ref No,Effective Date,Directorate where expenditure incurred, Supplier Name ,Payment Date,Net Amount,Purpose of Spend,"Procurement Classification
(Higher Level)",Procurement Classification (Lower Level),CAPITAL / REVENUE
Walsall Council,http://opendatacommunities.org/id/metropolitan-district-council/walsall ,WC134-1,31.01.2022,"ECONOMY, ENVIRONMENT & COMMUNITIES",11KBW,06/01/2022,"37,500.00",6440-School Only Payments - Catering,THIRD PARTY PAYMENTS,INDEPENDENT UNIT WITHIN COUNCIL,REVENUE
Walsall Council,http://opendatacommunities.org/id/metropolitan-district-council/walsall ,WC134-2,31.01.2022,"ECONOMY, ENVIRONMENT & COMMUNITIES",247 CARS (WILLENHALL) LIMITED,10/01/2022,387.04,6313-Grants to Other Orgs,SUPPLIES & SERVICES,GRANTS (EXP) & SUBSCRIPTIONS,REVENUE
Walsall Council,http://opendatacommunities.org/id/metropolitan-district-council/walsall ,WC134-3,31.01.2022,CHILDRENS,247 CARS (WILLENHALL) LIMITED,04/01/2022,"2,659.40",6241-Hire of Vehicle with Driver,TRANSPORT,DIRECT TRANSPORT COSTS,REVENUE
Walsall Council,http://opendatacommunities.org/id/metropolitan-district-council/walsall ,WC134-4,31.01.2022,CHILDRENS,247 CARS (WILLENHALL) LIMITED,04/01/2022,"1,850.00",6241-Hire of Vehicle with Driver,TRANSPORT,DIRECT TRANSPORT COSTS,REVENUE
Walsall Council,http://opendatacommunities.org/id/metropolitan-district-council/walsall ,WC134-5,31.01.2022,CHILDRENS,247 CARS (WILLENHALL) LIMITED,04/01/2022,"1,330.00",6241-Hire of Vehicle with Driver,TRANSPORT,DIRECT TRANSPORT COSTS,REVENUE
Walsall Council,http://opendatacommunities.org/id/metropolitan-district-council/walsall ,WC134-6,31.01.2022,CHILDRENS,247 CARS (WILLENHALL) LIMITED,04/01/2022,"1,380.00",6241-Hire of Vehicle with Driver,TRANSPORT,DIRECT TRANSPORT COSTS,REVENUE
Walsall Council,http://opendatacommunities.org/id/metropolitan-district-council/walsall ,WC134-7,31.01.2022,CHILDRENS,247 CARS (WILLENHALL) LIMITED,04/01/2022,"2,333.50",6241-Hire of Vehicle with Driver,TRANSPORT,DIRECT TRANSPORT COSTS,REVENUE
Walsall Council,http://opendatacommunities.org/id/metropolitan-district-council/walsall ,WC134-8,31.01.2022,CHILDRENS,247 CARS (WILLENHALL) LIMITED,04/01/2022,"1,850.00",6241-Hire of Vehicle with Driver,TRANSPORT,DIRECT TRANSPORT COSTS,REVENUE
Walsall Council,http://opendatacommunities.org/id/metropolitan-district-council/walsall ,WC134-9,31.01.2022,CHILDRENS,247 CARS (WILLENHALL) LIMITED,04/01/2022,"1,850.00",6241-Hire of Vehicle with Driver,TRANSPORT,DIRECT TRANSPORT COSTS,REVENUE
Walsall Council,http://opendatacommunities.org/id/metropolitan-district-council/walsall ,WC134-10,31.01.2022,CHILDRENS,247 CARS (WILLENHALL) LIMITED,04/01/2022,"1,850.00",6241-Hire of Vehicle with Driver,TRANSPORT,DIRECT TRANSPORT COSTS,REVENUE
Walsall Council,http://opendatacommunities.org/id/metropolitan-district-council/walsall ,WC134-11,31.01.2022,CHILDRENS,247 CARS (WILLENHALL) LIMITED,04/01/2022,"1,850.00",6241-Hire of Vehicle with Driver,TRANSPORT,DIRECT TRANSPORT COSTS,REVENUE
Walsall Council,http://opendatacommunities.org/id/metropolitan-district-council/walsall ,WC134-12,31.01.2022,CHILDRENS,247 CARS (WILLENHALL) LIMITED,04/01/2022,"1,299.60",6241-Hire of Vehicle with Driver,TRANSPORT,DIRECT TRANSPORT COSTS,REVENUE
Walsall Council,http://opendatacommunities.org/id/metropolitan-district-council/walsall ,WC134-13,31.01.2022,CHILDRENS,247 CARS (WILLENHALL) LIMITED,04/01/2022,"1,330.00",6241-Hire of Vehicle with Driver,TRANSPORT,DIRECT TRANSPORT COSTS,REVENUE
Walsall Council,http://opendatacommunities.org/id/metropolitan-district-council/walsall ,WC134-14,31.01.2022,CHILDRENS,247 CARS (WILLENHALL) LIMITED,04/01/2022,"1,388.52",6241-Hire of Vehicle with Driver,TRANSPORT,DIRECT TRANSPORT COSTS,REVENUE
Walsall Council,http://opendatacommunities.org/id/metropolitan-district-council/walsall ,WC134-15,31.01.2022,CHILDRENS,247 CARS (WILLENHALL) LIMITED,04/01/2022,"1,176.00",6241-Hire of Vehicle with Driver,TRANSPORT,DIRECT TRANSPORT COSTS,REVENUE
Walsall Council,http://opendatacommunities.org/id/metropolitan-district-council/walsall ,WC134-16,31.01.2022,"ECONOMY, ENVIRONMENT & COMMUNITIES",3J SERVICES LTD,13/01/2022,"23,825.00",6410-Repair & Maintenance of Furniture & Equipment,SUPPLIES & SERVICES,EQUIPMENT FURNITURE & MATERIALS,REVENUE
Walsall Council,http://opendatacommunities.org/id/metropolitan-district-council/walsall ,WC134-17,31.01.2022,RESOURCES AND TRANSFORMATION,4-5 GRAYS INN SQUARE LIMITED,27/01/2022,"1,500.00",6610-External Legal Fees,SUPPLIES & SERVICES,SERVICES,REVENUE
Walsall Council,http://opendatacommunities.org/id/metropolitan-district-council/walsall ,WC134-18,31.01.2022,ADULT SOCIAL CARE,5 CARE SERVICES LTD,04/01/2022,490.49,6541-Domiciliary Care,THIRD PARTY PAYMENTS,PRIVATE CONTRACTOR,REVENUE
Walsall Council,http://opendatacommunities.org/id/metropolitan-district-council/walsall ,WC134-19,31.01.2022,ADULT SOCIAL CARE,5 CARE SERVICES LTD,04/01/2022,591.66,6541-Domiciliary Care,THIRD PARTY PAYMENTS,PRIVATE CONTRACTOR,REVENUE
Walsall Council,http://opendatacommunities.org/id/metropolitan-district-council/walsall ,WC134-20,31.01.2022,ADULT SOCIAL CARE,5 CARE SERVICES LTD,04/01/2022,654.01,6541-Domiciliary Care,THIRD PARTY PAYMENTS,PRIVATE CONTRACTOR,REVENUE
Walsall Council,http://opendatacommunities.org/id/metropolitan-district-council/walsall ,WC134-21,31.01.2022,ADULT SOCIAL CARE,5 CARE SERVICES LTD,04/01/2022,311.40,6541-Domiciliary Care,THIRD PARTY PAYMENTS,PRIVATE CONTRACTOR,REVENUE
Walsall Council,http://opendatacommunities.org/id/metropolitan-district-council/walsall ,WC134-22,31.01.2022,ADULT SOCIAL CARE,5 CARE SERVICES LTD,04/01/2022,326.97,6541-Domiciliary Care,THIRD PARTY PAYMENTS,PRIVATE CONTRACTOR,REVENUE
Walsall Council,http://opendatacommunities.org/id/metropolitan-district-council/walsall ,WC134-23,31.01.2022,ADULT SOCIAL CARE,5 CARE SERVICES LTD,04/01/2022,490.49,6541-Domiciliary Care,THIRD PARTY PAYMENTS,PRIVATE CONTRACTOR,REVENUE
Walsall Council,http://opendatacommunities.org/id/metropolitan-district-council/walsall ,WC134-24,31.01.2022,ADULT SOCIAL CARE,5 CARE SERVICES LTD,04/01/2022,490.49,6541-Domiciliary Care,THIRD PARTY PAYMENTS,PRIVATE CONTRACTOR,REVENUE
Walsall Council,http://opendatacommunities.org/id/metropolitan-district-council/walsall ,WC134-25,31.01.2022,ADULT SOCIAL CARE,5 CARE SERVICES LTD,04/01/2022,490.49,6541-Domiciliary Care,THIRD PARTY PAYMENTS,PRIVATE CONTRACTOR,REVENUE
Walsall Council,http://opendatacommunities.org/id/metropolitan-district-council/walsall ,WC134-26,31.01.2022,ADULT SOCIAL CARE,5 CARE SERVICES LTD,04/01/2022,268.68,6541-Domiciliary Care,THIRD PARTY PAYMENTS,PRIVATE CONTRACTOR,REVENUE
Walsall Council,http://opendatacommunities.org/id/metropolitan-district-council/walsall ,WC134-27,31.01.2022,ADULT SOCIAL CARE,5 CARE SERVICES LTD,04/01/2022,934.20,6541-Domiciliary Care,THIRD PARTY PAYMENTS,PRIVATE CONTRACTOR,REVENUE
Walsall Council,http://opendatacommunities.org/id/metropolitan-district-council/walsall ,WC134-28,31.01.2022,ADULT SOCIAL CARE,5 CARE SERVICES LTD,04/01/2022,490.49,6541-Domiciliary Care,THIRD PARTY PAYMENTS,PRIVATE CONTRACTOR,REVENUE
Walsall Council,http://opendatacommunities.org/id/metropolitan-district-council/walsall ,WC134-29,31.01.2022,ADULT SOCIAL CARE,5 CARE SERVICES LTD,04/01/2022,"1,198.89",6541-Domiciliary Care,THIRD PARTY PAYMENTS,PRIVATE CONTRACTOR,REVENUE
Walsall Council,http://opendatacommunities.org/id/metropolitan-district-council/walsall ,WC134-30,31.01.2022,ADULT SOCIAL CARE,5 CARE SERVICES LTD,04/01/2022,654.01,6541-Domiciliary Care,THIRD PARTY PAYMENTS,PRIVATE CONTRACTOR,REVENUE
Walsall Council,http://opendatacommunities.org/id/metropolitan-district-council/walsall ,WC134-31,31.01.2022,ADULT SOCIAL CARE,5 CARE SERVICES LTD,04/01/2022,326.97,6541-Domiciliary Care,THIRD PARTY PAYMENTS,PRIVATE CONTRACTOR,REVENUE
Walsall Council,http://opendatacommunities.org/id/metropolitan-district-council/walsall ,WC134-32,31.01.2022,ADULT SOCIAL CARE,5 CARE SERVICES LTD,04/01/2022,599.48,6541-Domiciliary Care,THIRD PARTY PAYMENTS,PRIVATE CONTRACTOR,REVENUE
Walsall Council,http://opendatacommunities.org/id/metropolitan-district-council/walsall ,WC134-33,31.01.2022,ADULT SOCIAL CARE,5 CARE SERVICES LTD,04/01/2022,327.04,6541-Domiciliary Care,THIRD PARTY PAYMENTS,PRIVATE CONTRACTOR,REVENUE
Walsall Council,http://opendatacommunities.org/id/metropolitan-district-council/walsall ,WC134-34,31.01.2022,ADULT SOCIAL CARE,5 CARE SERVICES LTD,04/01/2022,705.84,6541-Domiciliary Care,THIRD PARTY PAYMENTS,PRIVATE CONTRACTOR,REVENUE
Walsall Council,http://opendatacommunities.org/id/metropolitan-district-council/walsall ,WC134-35,31.01.2022,ADULT SOCIAL CARE,5 CARE SERVICES LTD,04/01/2022,560.52,6541-Domiciliary Care,THIRD PARTY PAYMENTS,PRIVATE CONTRACTOR,REVENUE
Walsall Council,http://opendatacommunities.org/id/metropolitan-district-council/walsall ,WC134-36,31.01.2022,ADULT SOCIAL CARE,5 CARE SERVICES LTD,04/01/2022,654.01,6541-Domiciliary Care,THIRD PARTY PAYMENTS,PRIVATE CONTRACTOR,REVENUE
Walsall Council,http://opendatacommunities.org/id/metropolitan-district-council/walsall ,WC134-37,31.01.2022,ADULT SOCIAL CARE,5 CARE SERVICES LTD,04/01/2022,"1,198.89",6541-Domiciliary Care,THIRD PARTY PAYMENTS,PRIVATE CONTRACTOR,REVENUE
Walsall Council,http://opendatacommunities.org/id/metropolitan-district-council/walsall ,WC134-38,31.01.2022,ADULT SOCIAL CARE,5 CARE SERVICES LTD,04/01/2022,268.68,6541-Domiciliary Care,THIRD PARTY PAYMENTS,PRIVATE CONTRACTOR,REVENUE
Walsall Council,http://opendatacommunities.org/id/metropolitan-district-council/walsall ,WC134-39,31.01.2022,ADULT SOCIAL CARE,5 CARE SERVICES LTD,04/01/2022,490.49,6541-Domiciliary Care,THIRD PARTY PAYMENTS,PRIVATE CONTRACTOR,REVENUE
Walsall Council,http://opendatacommunities.org/id/metropolitan-district-council/walsall ,WC134-40,31.01.2022,ADULT SOCIAL CARE,5 CARE SERVICES LTD,04/01/2022,560.52,6541-Domiciliary Care,THIRD PARTY PAYMENTS,PRIVATE CONTRACTOR,REVENUE
Walsall Council,http://opendatacommunities.org/id/metropolitan-district-council/walsall ,WC134-41,31.01.2022,ADULT SOCIAL CARE,5 CARE SERVICES LTD,04/01/2022,490.49,6541-Domiciliary Care,THIRD PARTY PAYMENTS,PRIVATE CONTRACTOR,REVENUE
Walsall Council,http://opendatacommunities.org/id/metropolitan-district-council/walsall ,WC134-42,31.01.2022,ADULT SOCIAL CARE,5 CARE SERVICES LTD,04/01/2022,490.49,6541-Domiciliary Care,THIRD PARTY PAYMENTS,PRIVATE CONTRACTOR,REVENUE
Walsall Council,http://opendatacommunities.org/id/metropolitan-district-council/walsall ,WC134-43,31.01.2022,ADULT SOCIAL CARE,5 CARE SERVICES LTD,04/01/2022,591.66,6541-Domiciliary Care,THIRD PARTY PAYMENTS,PRIVATE CONTRACTOR,REVENUE
Walsall Council,http://opendatacommunities.org/id/metropolitan-district-council/walsall ,WC134-44,31.01.2022,ADULT SOCIAL CARE,5 CARE SERVICES LTD,04/01/2022,490.49,6541-Domiciliary Care,THIRD PARTY PAYMENTS,PRIVATE CONTRACTOR,REVENUE
Walsall Council,http://opendatacommunities.org/id/metropolitan-district-council/walsall ,WC134-45,31.01.2022,ADULT SOCIAL CARE,5 CARE SERVICES LTD,04/01/2022,747.36,6541-Domiciliary Care,THIRD PARTY PAYMENTS,PRIVATE CONTRACTOR,REVENUE
Walsall Council,http://opendatacommunities.org/id/metropolitan-district-council/walsall ,WC134-46,31.01.2022,ADULT SOCIAL CARE,5 CARE SERVICES LTD,04/01/2022,327.04,6541-Domiciliary Care,THIRD PARTY PAYMENTS,PRIVATE CONTRACTOR,REVENUE
Walsall Council,http://opendatacommunities.org/id/metropolitan-district-council/walsall ,WC134-47,31.01.2022,ADULT SOCIAL CARE,5 CARE SERVICES LTD,04/01/2022,654.01,6541-Domiciliary Care,THIRD PARTY PAYMENTS,PRIVATE CONTRACTOR,REVENUE
Walsall Council,http://opendatacommunities.org/id/metropolitan-district-council/walsall ,WC134-48,31.01.2022,ADULT SOCIAL CARE,5 CARE SERVICES LTD,04/01/2022,326.97,6541-Domiciliary Care,THIRD PARTY PAYMENTS,PRIVATE CONTRACTOR,REVENUE
Walsall Council,http://opendatacommunities.org/id/metropolitan-district-council/walsall ,WC134-49,31.01.2022,ADULT SOCIAL CARE,5 CARE SERVICES LTD,04/01/2022,599.48,6541-Domiciliary Care,THIRD PARTY PAYMENTS,PRIVATE CONTRACTOR,REVENUE
Walsall Council,http://opendatacommunities.org/id/metropolitan-district-council/walsall ,WC134-50,31.01.2022,ADULT SOCIAL CARE,5 CARE SERVICES LTD,04/01/2022,705.84,6541-Domiciliary Care,THIRD PARTY PAYMENTS,PRIVATE CONTRACTOR,REVENUE
Walsall Council,http://opendatacommunities.org/id/metropolitan-district-council/walsall ,WC134-51,31.01.2022,ADULT SOCIAL CARE,5 CARE SERVICES LTD,04/01/2022,311.40,6541-Domiciliary Care,THIRD PARTY PAYMENTS,PRIVATE CONTRACTOR,REVENUE
Walsall Council,http://opendatacommunities.org/id/metropolitan-district-council/walsall ,WC134-52,31.01.2022,ADULT SOCIAL CARE,5 CARE SERVICES LTD,04/01/2022,326.97,6541-Domiciliary Care,THIRD PARTY PAYMENTS,PRIVATE CONTRACTOR,REVENUE
Walsall Council,http://opendatacommunities.org/id/metropolitan-district-council/walsall ,WC134-53,31.01.2022,ADULT SOCIAL CARE,5 CARE SERVICES LTD,04/01/2022,490.49,6541-Domiciliary Care,THIRD PARTY PAYMENTS,PRIVATE CONTRACTOR,REVENUE
Walsall Council,http://opendatacommunities.org/id/metropolitan-district-council/walsall ,WC134-54,31.01.2022,ADULT SOCIAL CARE,5 CARE SERVICES LTD,13/01/2022,436.24,6541-Domiciliary Care,THIRD PARTY PAYMENTS,PRIVATE CONTRACTOR,REVENUE
Walsall Council,http://opendatacommunities.org/id/metropolitan-district-council/walsall ,WC134-55,31.01.2022,ADULT SOCIAL CARE,5 CARE SERVICES LTD,13/01/2022,911.30,6541-Domiciliary Care,THIRD PARTY PAYMENTS,PRIVATE CONTRACTOR,REVENUE
Walsall Council,http://opendatacommunities.org/id/metropolitan-district-council/walsall ,WC134-56,31.01.2022,ADULT SOCIAL CARE,5 CARE SERVICES LTD,18/01/2022,654.01,6541-Domiciliary Care,THIRD PARTY PAYMENTS,PRIVATE CONTRACTOR,REVENUE
Walsall Council,http://opendatacommunities.org/id/metropolitan-district-council/walsall ,WC134-57,31.01.2022,ADULT SOCIAL CARE,5 CARE SERVICES LTD,18/01/2022,490.49,6541-Domiciliary Care,THIRD PARTY PAYMENTS,PRIVATE CONTRACTOR,REVENUE
Walsall Council,http://opendatacommunities.org/id/metropolitan-district-council/walsall ,WC134-58,31.01.2022,ADULT SOCIAL CARE,5 CARE SERVICES LTD,18/01/2022,591.66,6541-Domiciliary Care,THIRD PARTY PAYMENTS,PRIVATE CONTRACTOR,REVENUE
Walsall Council,http://opendatacommunities.org/id/metropolitan-district-council/walsall ,WC134-59,31.01.2022,ADULT SOCIAL CARE,5 CARE SERVICES LTD,18/01/2022,311.40,6541-Domiciliary Care,THIRD PARTY PAYMENTS,PRIVATE CONTRACTOR,REVENUE
Walsall Council,http://opendatacommunities.org/id/metropolitan-district-council/walsall ,WC134-60,31.01.2022,ADULT SOCIAL CARE,5 CARE SERVICES LTD,18/01/2022,326.97,6541-Domiciliary Care,THIRD PARTY PAYMENTS,PRIVATE CONTRACTOR,REVENUE
Walsall Council,http://opendatacommunities.org/id/metropolitan-district-council/walsall ,WC134-61,31.01.2022,ADULT SOCIAL CARE,5 CARE SERVICES LTD,18/01/2022,490.49,6541-Domiciliary Care,THIRD PARTY PAYMENTS,PRIVATE CONTRACTOR,REVENUE
Walsall Council,http://opendatacommunities.org/id/metropolitan-district-council/walsall ,WC134-62,31.01.2022,ADULT SOCIAL CARE,5 CARE SERVICES LTD,18/01/2022,268.68,6541-Domiciliary Care,THIRD PARTY PAYMENTS,PRIVATE CONTRACTOR,REVENUE
Walsall Council,http://opendatacommunities.org/id/metropolitan-district-council/walsall ,WC134-63,31.01.2022,ADULT SOCIAL CARE,5 CARE SERVICES LTD,18/01/2022,490.49,6541-Domiciliary Care,THIRD PARTY PAYMENTS,PRIVATE CONTRACTOR,REVENUE
Walsall Council,http://opendatacommunities.org/id/metropolitan-district-council/walsall ,WC134-64,31.01.2022,ADULT SOCIAL CARE,5 CARE SERVICES LTD,18/01/2022,654.01,6541-Domiciliary Care,THIRD PARTY PAYMENTS,PRIVATE CONTRACTOR,REVENUE
Walsall Council,http://opendatacommunities.org/id/metropolitan-district-council/walsall ,WC134-65,31.01.2022,ADULT SOCIAL CARE,5 CARE SERVICES LTD,18/01/2022,326.97,6541-Domiciliary Care,THIRD PARTY PAYMENTS,PRIVATE CONTRACTOR,REVENUE
Walsall Council,http://opendatacommunities.org/id/metropolitan-district-council/walsall ,WC134-66,31.01.2022,ADULT SOCIAL CARE,5 CARE SERVICES LTD,18/01/2022,599.48,6541-Domiciliary Care,THIRD PARTY PAYMENTS,PRIVATE CONTRACTOR,REVENUE
Walsall Council,http://opendatacommunities.org/id/metropolitan-district-council/walsall ,WC134-67,31.01.2022,ADULT SOCIAL CARE,5 CARE SERVICES LTD,18/01/2022,"1,743.84",6541-Domiciliary Care,THIRD PARTY PAYMENTS,PRIVATE CONTRACTOR,REVENUE
Walsall Council,http://opendatacommunities.org/id/metropolitan-district-council/walsall ,WC134-68,31.01.2022,ADULT SOCIAL CARE,5 CARE SERVICES LTD,18/01/2022,"2,428.92",6541-Domiciliary Care,THIRD PARTY PAYMENTS,PRIVATE CONTRACTOR,REVENUE
Walsall Council,http://opendatacommunities.org/id/metropolitan-district-council/walsall ,WC134-69,31.01.2022,ADULT SOCIAL CARE,5 CARE SERVICES LTD,18/01/2022,"1,198.89",6541-Domiciliary Care,THIRD PARTY PAYMENTS,PRIVATE CONTRACTOR,REVENUE
Walsall Council,http://opendatacommunities.org/id/metropolitan-district-council/walsall ,WC134-70,31.01.2022,ADULT SOCIAL CARE,5 CARE SERVICES LTD,18/01/2022,705.84,6541-Domiciliary Care,THIRD PARTY PAYMENTS,PRIVATE CONTRACTOR,REVENUE
Walsall Council,http://opendatacommunities.org/id/metropolitan-district-council/walsall ,WC134-71,31.01.2022,ADULT SOCIAL CARE,5 CARE SERVICES LTD,18/01/2022,327.04,6541-Domiciliary Care,THIRD PARTY PAYMENTS,PRIVATE CONTRACTOR,REVENUE
Walsall Council,http://opendatacommunities.org/id/metropolitan-district-council/walsall ,WC134-72,31.01.2022,ADULT SOCIAL CARE,5 CARE SERVICES LTD,18/01/2022,560.52,6541-Domiciliary Care,THIRD PARTY PAYMENTS,PRIVATE CONTRACTOR,REVENUE
Walsall Council,http://opendatacommunities.org/id/metropolitan-district-council/walsall ,WC134-73,31.01.2022,ADULT SOCIAL CARE,5 CARE SERVICES LTD,18/01/2022,268.68,6541-Domiciliary Care,THIRD PARTY PAYMENTS,PRIVATE CONTRACTOR,REVENUE
Walsall Council,http://opendatacommunities.org/id/metropolitan-district-council/walsall ,WC134-74,31.01.2022,ADULT SOCIAL CARE,5 CARE SERVICES LTD,18/01/2022,490.49,6541-Domiciliary Care,THIRD PARTY PAYMENTS,PRIVATE CONTRACTOR,REVENUE
Walsall Council,http://opendatacommunities.org/id/metropolitan-district-council/walsall ,WC134-75,31.01.2022,ADULT SOCIAL CARE,5 CARE SERVICES LTD,18/01/2022,591.66,6541-Domiciliary Care,THIRD PARTY PAYMENTS,PRIVATE CONTRACTOR,REVENUE
Walsall Council,http://opendatacommunities.org/id/metropolitan-district-council/walsall ,WC134-76,31.01.2022,ADULT SOCIAL CARE,5 CARE SERVICES LTD,18/01/2022,654.01,6541-Domiciliary Care,THIRD PARTY PAYMENTS,PRIVATE CONTRACTOR,REVENUE
Walsall Council,http://opendatacommunities.org/id/metropolitan-district-council/walsall ,WC134-77,31.01.2022,ADULT SOCIAL CARE,5 CARE SERVICES LTD,18/01/2022,"1,198.89",6541-Domiciliary Care,THIRD PARTY PAYMENTS,PRIVATE CONTRACTOR,REVENUE
Walsall Council,http://opendatacommunities.org/id/metropolitan-district-council/walsall ,WC134-78,31.01.2022,ADULT SOCIAL CARE,5 CARE SERVICES LTD,18/01/2022,490.49,6541-Domiciliary Care,THIRD PARTY PAYMENTS,PRIVATE CONTRACTOR,REVENUE
Walsall Council,http://opendatacommunities.org/id/metropolitan-district-council/walsall ,WC134-79,31.01.2022,ADULT SOCIAL CARE,5 CARE SERVICES LTD,18/01/2022,560.52,6541-Domiciliary Care,THIRD PARTY PAYMENTS,PRIVATE CONTRACTOR,REVENUE
Walsall Council,http://opendatacommunities.org/id/metropolitan-district-council/walsall ,WC134-80,31.01.2022,ADULT SOCIAL CARE,5 CARE SERVICES LTD,18/01/2022,560.52,6541-Domiciliary Care,THIRD PARTY PAYMENTS,PRIVATE CONTRACTOR,REVENUE
Walsall Council,http://opendatacommunities.org/id/metropolitan-district-council/walsall ,WC134-81,31.01.2022,ADULT SOCIAL CARE,5 CARE SERVICES LTD,18/01/2022,311.40,6541-Domiciliary Care,THIRD PARTY PAYMENTS,PRIVATE CONTRACTOR,REVENUE
Walsall Council,http://opendatacommunities.org/id/metropolitan-district-council/walsall ,WC134-82,31.01.2022,ADULT SOCIAL CARE,5 CARE SERVICES LTD,18/01/2022,326.97,6541-Domiciliary Care,THIRD PARTY PAYMENTS,PRIVATE CONTRACTOR,REVENUE
Walsall Council,http://opendatacommunities.org/id/metropolitan-district-council/walsall ,WC134-83,31.01.2022,ADULT SOCIAL CARE,5 CARE SERVICES LTD,18/01/2022,490.49,6541-Domiciliary Care,THIRD PARTY PAYMENTS,PRIVATE CONTRACTOR,REVENUE
Walsall Council,http://opendatacommunities.org/id/metropolitan-district-council/walsall ,WC134-84,31.01.2022,ADULT SOCIAL CARE,5 CARE SERVICES LTD,18/01/2022,327.04,6541-Domiciliary Care,THIRD PARTY PAYMENTS,PRIVATE CONTRACTOR,REVENUE
Walsall Council,http://opendatacommunities.org/id/metropolitan-district-council/walsall ,WC134-85,31.01.2022,ADULT SOCIAL CARE,5 CARE SERVICES LTD,18/01/2022,871.92,6541-Domiciliary Care,THIRD PARTY PAYMENTS,PRIVATE CONTRACTOR,REVENUE
Walsall Council,http://opendatacommunities.org/id/metropolitan-district-council/walsall ,WC134-86,31.01.2022,ADULT SOCIAL CARE,5 CARE SERVICES LTD,18/01/2022,654.01,6541-Domiciliary Care,THIRD PARTY PAYMENTS,PRIVATE CONTRACTOR,REVENUE
Walsall Council,http://opendatacommunities.org/id/metropolitan-district-council/walsall ,WC134-87,31.01.2022,ADULT SOCIAL CARE,5 CARE SERVICES LTD,18/01/2022,326.97,6541-Domiciliary Care,THIRD PARTY PAYMENTS,PRIVATE CONTRACTOR,REVENUE
Walsall Council,http://opendatacommunities.org/id/metropolitan-district-council/walsall ,WC134-88,31.01.2022,ADULT SOCIAL CARE,5 CARE SERVICES LTD,18/01/2022,599.48,6541-Domiciliary Care,THIRD PARTY PAYMENTS,PRIVATE CONTRACTOR,REVENUE
Walsall Council,http://opendatacommunities.org/id/metropolitan-district-council/walsall ,WC134-89,31.01.2022,ADULT SOCIAL CARE,5 CARE SERVICES LTD,18/01/2022,705.84,6541-Domiciliary Care,THIRD PARTY PAYMENTS,PRIVATE CONTRACTOR,REVENUE
Walsall Council,http://opendatacommunities.org/id/metropolitan-district-council/walsall ,WC134-90,31.01.2022,ADULT SOCIAL CARE,5 CARE SERVICES LTD,13/01/2022,"1,198.96",6541-Domiciliary Care,THIRD PARTY PAYMENTS,PRIVATE CONTRACTOR,REVENUE
Walsall Council,http://opendatacommunities.org/id/metropolitan-district-council/walsall ,WC134-91,31.01.2022,CHILDRENS,5 CARE SERVICES LTD,14/01/2022,255.20,6220-Professional Fees & Services,SUPPLIES & SERVICES,SERVICES,REVENUE
Walsall Council,http://opendatacommunities.org/id/metropolitan-district-council/walsall ,WC134-92,31.01.2022,ADULT SOCIAL CARE,5 CARE SERVICES LTD,04/01/2022,"9,425.20",6550-COVID-19 Local Support Grant Exp,TRANSFER PAYMENTS,COVID TRANSFER PAYMENT,REVENUE
Walsall Council,http://opendatacommunities.org/id/metropolitan-district-council/walsall ,WC134-93,31.01.2022,ADULT SOCIAL CARE,5 CARE SERVICES LTD,04/01/2022,"1,986.96",6550-National Tutoring Exp,TRANSFER PAYMENTS,COVID TRANSFER PAYMENT,REVENUE
Walsall Council,http://opendatacommunities.org/id/metropolitan-district-council/walsall ,WC134-94,31.01.2022,CHILDRENS,A D T FIRE AND SECURITY PLC,14/01/2022,"1,231.00",6223-Repair & Maintenance of Furniture & Equipment,SUPPLIES & SERVICES,EQUIPMENT FURNITURE & MATERIALS,REVENUE
Walsall Council,http://opendatacommunities.org/id/metropolitan-district-council/walsall ,WC134-95,31.01.2022,RESOURCES AND TRANSFORMATION,A D T FIRE AND SECURITY PLC,14/01/2022,"1,338.43",6310-Repair & Maintenance of Furniture & Equipment,SUPPLIES & SERVICES,EQUIPMENT FURNITURE & MATERIALS,REVENUE
Walsall Council,http://opendatacommunities.org/id/metropolitan-district-council/walsall ,WC134-96,31.01.2022,"ECONOMY, ENVIRONMENT & COMMUNITIES",A F BLAKEMORE & SON LTD,04/01/2022,391.15,6413-Food & Drink Supplies,SUPPLIES & SERVICES,CATERING,REVENUE
Walsall Council,http://opendatacommunities.org/id/metropolitan-district-council/walsall ,WC134-97,31.01.2022,ADULT SOCIAL CARE,A F BLAKEMORE & SON LTD,12/01/2022,260.14,6543-Food & Drink Supplies,SUPPLIES & SERVICES,CATERING,REVENUE
Walsall Council,http://opendatacommunities.org/id/metropolitan-district-council/walsall ,WC134-98,31.01.2022,CHILDRENS,AAINA COMMUNITY HUB,27/01/2022,500.00,6314-Grants to Other Orgs,SUPPLIES & SERVICES,GRANTS (EXP) & SUBSCRIPTIONS,REVENUE
Walsall Council,http://opendatacommunities.org/id/metropolitan-district-council/walsall ,WC134-99,31.01.2022,"ECONOMY, ENVIRONMENT & COMMUNITIES",AAINA COMMUNITY HUB,06/01/2022,944.97,6313-Grants to Other Orgs,SUPPLIES & SERVICES,GRANTS (EXP) & SUBSCRIPTIONS,REVENUE
Walsall Council,http://opendatacommunities.org/id/metropolitan-district-council/walsall ,WC134-100,31.01.2022,"ECONOMY, ENVIRONMENT & COMMUNITIES",AAINA COMMUNITY HUB,11/01/2022,"1,250.00",6430-Grants to Other Orgs,SUPPLIES & SERVICES,GRANTS (EXP) & SUBSCRIPTIONS,REVENUE
Walsall Council,http://opendatacommunities.org/id/metropolitan-district-council/walsall ,WC134-101,31.01.2022,ADULT SOCIAL CARE,ABBEY COURT NURSING & RESIDEN,18/01/2022,"2,331.08",6541-Residential EMI,THIRD PARTY PAYMENTS,PRIVATE CONTRACTOR,REVENUE
Walsall Council,http://opendatacommunities.org/id/metropolitan-district-council/walsall ,WC134-102,31.01.2022,ADULT SOCIAL CARE,ABBEY COURT NURSING & RESIDEN,18/01/2022,"2,571.08",6541-Residential EMI,THIRD PARTY PAYMENTS,PRIVATE CONTRACTOR,REVENUE
Walsall Council,http://opendatacommunities.org/id/metropolitan-district-council/walsall ,WC134-103,31.01.2022,ADULT SOCIAL CARE,ABBEY COURT NURSING & RESIDEN,18/01/2022,"2,064.44",6541-Residential,THIRD PARTY PAYMENTS,PRIVATE CONTRACTOR,REVENUE
Walsall Council,http://opendatacommunities.org/id/metropolitan-district-council/walsall ,WC134-104,31.01.2022,ADULT SOCIAL CARE,ABBEY HEALTHCARE HOMES LTD,18/01/2022,"3,551.56",6541-Residential,THIRD PARTY PAYMENTS,PRIVATE CONTRACTOR,REVENUE
Walsall Council,http://opendatacommunities.org/id/metropolitan-district-council/walsall ,WC134-105,31.01.2022,ADULT SOCIAL CARE,ABBEY HEALTHCARE HOMES LTD,18/01/2022,"3,133.76",6541-Residential,THIRD PARTY PAYMENTS,PRIVATE CONTRACTOR,REVENUE
Walsall Council,http://opendatacommunities.org/id/metropolitan-district-council/walsall ,WC134-106,31.01.2022,ADULT SOCIAL CARE,ABBEY HEALTHCARE HOMES LTD,18/01/2022,"2,396.36",6541-Residential,THIRD PARTY PAYMENTS,PRIVATE CONTRACTOR,REVENUE
Walsall Council,http://opendatacommunities.org/id/metropolitan-district-council/walsall ,WC134-107,31.01.2022,ADULT SOCIAL CARE,ABBEY HEALTHCARE HOMES LTD,18/01/2022,"3,133.76",6541-Residential,THIRD PARTY PAYMENTS,PRIVATE CONTRACTOR,REVENUE
Walsall Council,http://opendatacommunities.org/id/metropolitan-district-council/walsall ,WC134-108,31.01.2022,CHILDRENS,ABC DAY NURSERY (WILLENHALL) LIMITED,13/01/2022,"12,696.75",1184-Other-Grants to Other Orgs,SUPPLIES & SERVICES,GRANTS (EXP) & SUBSCRIPTIONS,REVENUE
Walsall Council,http://opendatacommunities.org/id/metropolitan-district-council/walsall ,WC134-109,31.01.2022,CHILDRENS,ABC DAY NURSERY (WILLENHALL) LIMITED,13/01/2022,"16,929.00",1184-Other-Grants to Other Orgs,SUPPLIES & SERVICES,GRANTS (EXP) & SUBSCRIPTIONS,REVENUE
Walsall Council,http://opendatacommunities.org/id/metropolitan-district-council/walsall ,WC134-110,31.01.2022,ADULT SOCIAL CARE,REDACTED,06/01/2022,"2,132.48",6541-Direct Payment,THIRD PARTY PAYMENTS,PRIVATE CONTRACTOR,REVENUE
Walsall Council,http://opendatacommunities.org/id/metropolitan-district-council/walsall ,WC134-111,31.01.2022,CHILDRENS,ABLEWELL CARS,04/01/2022,900.00,6241-Hire of Vehicle with Driver,TRANSPORT,DIRECT TRANSPORT COSTS,REVENUE
Walsall Council,http://opendatacommunities.org/id/metropolitan-district-council/walsall ,WC134-112,31.01.2022,CHILDRENS,ABLEWELL CARS,04/01/2022,"1,877.20",6241-Hire of Vehicle with Driver,TRANSPORT,DIRECT TRANSPORT COSTS,REVENUE
Walsall Council,http://opendatacommunities.org/id/metropolitan-district-council/walsall ,WC134-113,31.01.2022,CHILDRENS,ABLEWELL CARS,04/01/2022,"1,664.00",6241-Hire of Vehicle with Driver,TRANSPORT,DIRECT TRANSPORT COSTS,REVENUE
Walsall Council,http://opendatacommunities.org/id/metropolitan-district-council/walsall ,WC134-114,31.01.2022,CHILDRENS,ABLEWELL CARS,04/01/2022,"1,323.60",6241-Hire of Vehicle with Driver,TRANSPORT,DIRECT TRANSPORT COSTS,REVENUE
Walsall Council,http://opendatacommunities.org/id/metropolitan-district-council/walsall ,WC134-115,31.01.2022,CHILDRENS,ABLEWELL CARS,04/01/2022,"1,144.80",6241-Hire of Vehicle with Driver,TRANSPORT,DIRECT TRANSPORT COSTS,REVENUE
Walsall Council,http://opendatacommunities.org/id/metropolitan-district-council/walsall ,WC134-116,31.01.2022,CHILDRENS,ABLEWELL CARS,04/01/2022,"2,920.00",6241-Hire of Vehicle with Driver,TRANSPORT,DIRECT TRANSPORT COSTS,REVENUE
Walsall Council,http://opendatacommunities.org/id/metropolitan-district-council/walsall ,WC134-117,31.01.2022,CHILDRENS,ABS TAXIS (ALDRIDGE),04/01/2022,"1,814.00",6241-Hire of Vehicle with Driver,TRANSPORT,DIRECT TRANSPORT COSTS,REVENUE
Walsall Council,http://opendatacommunities.org/id/metropolitan-district-council/walsall ,WC134-118,31.01.2022,CHILDRENS,ABS TAXIS (ALDRIDGE),04/01/2022,690.90,6241-Hire of Vehicle with Driver,TRANSPORT,DIRECT TRANSPORT COSTS,REVENUE
Walsall Council,http://opendatacommunities.org/id/metropolitan-district-council/walsall ,WC134-119,31.01.2022,CHILDRENS,ABSOLUTE INTERPRETING & TRANSLATIONS LTD,18/01/2022,"-1,440.00",6223-Language & Interpretation Services,SUPPLIES & SERVICES,SERVICES,REVENUE
Walsall Council,http://opendatacommunities.org/id/metropolitan-district-council/walsall ,WC134-120,31.01.2022,CHILDRENS,ABSOLUTE INTERPRETING & TRANSLATIONS LTD,18/01/2022,"1,440.00",6223-Language & Interpretation Services,SUPPLIES & SERVICES,SERVICES,REVENUE
Walsall Council,http://opendatacommunities.org/id/metropolitan-district-council/walsall ,WC134-121,31.01.2022,CHILDRENS,ABU BAKR NURSERY,13/01/2022,"10,023.75",1184-Other-Grants to Other Orgs,SUPPLIES & SERVICES,GRANTS (EXP) & SUBSCRIPTIONS,REVENUE
Walsall Council,http://opendatacommunities.org/id/metropolitan-district-council/walsall ,WC134-122,31.01.2022,CHILDRENS,ABU BAKR NURSERY,13/01/2022,"29,907.90",1184-Other-Grants to Other Orgs,SUPPLIES & SERVICES,GRANTS (EXP) & SUBSCRIPTIONS,REVENUE
Walsall Council,http://opendatacommunities.org/id/metropolitan-district-council/walsall ,WC134-123,31.01.2022,CHILDRENS,ABU BAKR NURSERY,28/01/2022,640.00,1184-Transfer Payments-Other Schoolchildren/Student Related Items,TRANSFER PAYMENTS,SCHOOLCHILDREN/STUDENTS,REVENUE
Walsall Council,http://opendatacommunities.org/id/metropolitan-district-council/walsall ,WC134-124,31.01.2022,"ECONOMY, ENVIRONMENT & COMMUNITIES",AC OPTICS LTD,06/01/2022,500.00,6313-Grants to Other Orgs,SUPPLIES & SERVICES,GRANTS (EXP) & SUBSCRIPTIONS,REVENUE
Walsall Council,http://opendatacommunities.org/id/metropolitan-district-council/walsall ,WC134-125,31.01.2022,"ECONOMY, ENVIRONMENT & COMMUNITIES",AC OPTICS LTD,12/01/2022,710.66,6313-Grants to Other Orgs,SUPPLIES & SERVICES,GRANTS (EXP) & SUBSCRIPTIONS,REVENUE
Walsall Council,http://opendatacommunities.org/id/metropolitan-district-council/walsall ,WC134-126,31.01.2022,"ECONOMY, ENVIRONMENT & COMMUNITIES",AC OPTICS LTD,20/01/2022,710.66,6313-Grants to Other Orgs,SUPPLIES & SERVICES,GRANTS (EXP) & SUBSCRIPTIONS,REVENUE
Walsall Council,http://opendatacommunities.org/id/metropolitan-district-council/walsall ,WC134-127,31.01.2022,"ECONOMY, ENVIRONMENT & COMMUNITIES",AC OPTICS LTD,12/01/2022,710.64,6313-Grants to Other Orgs,SUPPLIES & SERVICES,GRANTS (EXP) & SUBSCRIPTIONS,REVENUE
Walsall Council,http://opendatacommunities.org/id/metropolitan-district-council/walsall ,WC134-128,31.01.2022,"ECONOMY, ENVIRONMENT & COMMUNITIES",AC OPTICS LTD,06/01/2022,500.00,6313-Grants to Other Orgs,SUPPLIES & SERVICES,GRANTS (EXP) & SUBSCRIPTIONS,REVENUE
Walsall Council,http://opendatacommunities.org/id/metropolitan-district-council/walsall ,WC134-129,31.01.2022,CHILDRENS,ACCALIA CARE SERVICES LTD,25/01/2022,"20,000.00",6223-External Residential Care-Oth Agency Provision,THIRD PARTY PAYMENTS,PRIVATE CONTRACTOR,REVENUE
Walsall Council,http://opendatacommunities.org/id/metropolitan-district-council/walsall ,WC134-130,31.01.2022,CHILDRENS,ACCOMPANIED CARE,17/01/2022,"3,602.47",6223-Accommodation and Related Costs-Assistance to S/S Clients,TRANSFER PAYMENTS,ADULT SOCIAL SERVICES CLIENT,REVENUE
Walsall Council,http://opendatacommunities.org/id/metropolitan-district-council/walsall ,WC134-131,31.01.2022,ADULT SOCIAL CARE,ACCOMPLISH GROUP LTD,18/01/2022,"7,881.48",6541-Residential,THIRD PARTY PAYMENTS,PRIVATE CONTRACTOR,REVENUE
Walsall Council,http://opendatacommunities.org/id/metropolitan-district-council/walsall ,WC134-132,31.01.2022,ADULT SOCIAL CARE,ACCORD HOUSING ASSOCIATION LIMITED - HOBS MEADOW,18/01/2022,"4,706.24",6541-Residential,THIRD PARTY PAYMENTS,PRIVATE CONTRACTOR,REVENUE
Walsall Council,http://opendatacommunities.org/id/metropolitan-district-council/walsall ,WC134-133,31.01.2022,ADULT SOCIAL CARE,ACCORD HOUSING ASSOCIATION LIMITED - HOBS MEADOW,18/01/2022,"4,706.24",6541-Residential,THIRD PARTY PAYMENTS,PRIVATE CONTRACTOR,REVENUE
Walsall Council,http://opendatacommunities.org/id/metropolitan-district-council/walsall ,WC134-134,31.01.2022,ADULT SOCIAL CARE,ACCORD HOUSING ASSOCIATION LIMITED - HOBS MEADOW,18/01/2022,"4,706.24",6541-Residential,THIRD PARTY PAYMENTS,PRIVATE CONTRACTOR,REVENUE
Walsall Council,http://opendatacommunities.org/id/metropolitan-district-council/walsall ,WC134-135,31.01.2022,ADULT SOCIAL CARE,ACCORD HOUSING ASSOCIATION LIMITED - HOBS MEADOW,18/01/2022,"4,706.24",6541-Residential,THIRD PARTY PAYMENTS,PRIVATE CONTRACTOR,REVENUE
Walsall Council,http://opendatacommunities.org/id/metropolitan-district-council/walsall ,WC134-136,31.01.2022,ADULT SOCIAL CARE,ACE CARE AGENCY,18/01/2022,"1,760.00",6550-Professional Fees & Services,SUPPLIES & SERVICES,SERVICES,REVENUE
Walsall Council,http://opendatacommunities.org/id/metropolitan-district-council/walsall ,WC134-137,31.01.2022,ADULT SOCIAL CARE,ACE CARE AGENCY,04/01/2022,554.28,6550-COVID-19 Local Support Grant Exp,TRANSFER PAYMENTS,COVID TRANSFER PAYMENT,REVENUE
Walsall Council,http://opendatacommunities.org/id/metropolitan-district-council/walsall ,WC134-138,31.01.2022,CHILDRENS,ACE CARS & MINIBUSES LTD,04/01/2022,"2,140.00",6241-Hire of Vehicle with Driver,TRANSPORT,DIRECT TRANSPORT COSTS,REVENUE
Walsall Council,http://opendatacommunities.org/id/metropolitan-district-council/walsall ,WC134-139,31.01.2022,CHILDRENS,ACE CARS & MINIBUSES LTD,04/01/2022,"2,360.00",6241-Hire of Vehicle with Driver,TRANSPORT,DIRECT TRANSPORT COSTS,REVENUE
Walsall Council,http://opendatacommunities.org/id/metropolitan-district-council/walsall ,WC134-140,31.01.2022,CHILDRENS,ACE CARS & MINIBUSES LTD,04/01/2022,"2,722.00",6241-Hire of Vehicle with Driver,TRANSPORT,DIRECT TRANSPORT COSTS,REVENUE
Walsall Council,http://opendatacommunities.org/id/metropolitan-district-council/walsall ,WC134-141,31.01.2022,CHILDRENS,ACE CARS & MINIBUSES LTD,04/01/2022,"2,722.00",6241-Hire of Vehicle with Driver,TRANSPORT,DIRECT TRANSPORT COSTS,REVENUE
Walsall Council,http://opendatacommunities.org/id/metropolitan-district-council/walsall ,WC134-142,31.01.2022,CHILDRENS,ACE CARS & MINIBUSES LTD,04/01/2022,"2,722.00",6241-Hire of Vehicle with Driver,TRANSPORT,DIRECT TRANSPORT COSTS,REVENUE
Walsall Council,http://opendatacommunities.org/id/metropolitan-district-council/walsall ,WC134-143,31.01.2022,CHILDRENS,ACE CARS & MINIBUSES LTD,04/01/2022,"2,140.00",6241-Hire of Vehicle with Driver,TRANSPORT,DIRECT TRANSPORT COSTS,REVENUE
Walsall Council,http://opendatacommunities.org/id/metropolitan-district-council/walsall ,WC134-144,31.01.2022,CHILDRENS,ACE CARS & MINIBUSES LTD,04/01/2022,"2,140.00",6241-Hire of Vehicle with Driver,TRANSPORT,DIRECT TRANSPORT COSTS,REVENUE
Walsall Council,http://opendatacommunities.org/id/metropolitan-district-council/walsall ,WC134-145,31.01.2022,CHILDRENS,ACE CARS & MINIBUSES LTD,04/01/2022,"2,280.00",6241-Hire of Vehicle with Driver,TRANSPORT,DIRECT TRANSPORT COSTS,REVENUE
Walsall Council,http://opendatacommunities.org/id/metropolitan-district-council/walsall ,WC134-146,31.01.2022,CHILDRENS,ACE CARS & MINIBUSES LTD,04/01/2022,"2,390.00",6241-Hire of Vehicle with Driver,TRANSPORT,DIRECT TRANSPORT COSTS,REVENUE
Walsall Council,http://opendatacommunities.org/id/metropolitan-district-council/walsall ,WC134-147,31.01.2022,CHILDRENS,ACE CARS & MINIBUSES LTD,04/01/2022,"2,280.00",6241-Hire of Vehicle with Driver,TRANSPORT,DIRECT TRANSPORT COSTS,REVENUE
Walsall Council,http://opendatacommunities.org/id/metropolitan-district-council/walsall ,WC134-148,31.01.2022,CHILDRENS,ACE CARS & MINIBUSES LTD,04/01/2022,"2,140.00",6241-Hire of Vehicle with Driver,TRANSPORT,DIRECT TRANSPORT COSTS,REVENUE
Walsall Council,http://opendatacommunities.org/id/metropolitan-district-council/walsall ,WC134-149,31.01.2022,CHILDRENS,ACE CARS & MINIBUSES LTD,04/01/2022,"2,140.00",6241-Hire of Vehicle with Driver,TRANSPORT,DIRECT TRANSPORT COSTS,REVENUE
Walsall Council,http://opendatacommunities.org/id/metropolitan-district-council/walsall ,WC134-150,31.01.2022,CHILDRENS,ACE CARS & MINIBUSES LTD,04/01/2022,"2,360.00",6241-Hire of Vehicle with Driver,TRANSPORT,DIRECT TRANSPORT COSTS,REVENUE
Walsall Council,http://opendatacommunities.org/id/metropolitan-district-council/walsall ,WC134-151,31.01.2022,CHILDRENS,ACE CARS & MINIBUSES LTD,04/01/2022,"2,390.00",6241-Hire of Vehicle with Driver,TRANSPORT,DIRECT TRANSPORT COSTS,REVENUE
Walsall Council,http://opendatacommunities.org/id/metropolitan-district-council/walsall ,WC134-152,31.01.2022,CHILDRENS,ACE CARS & MINIBUSES LTD,04/01/2022,"2,722.00",6241-Hire of Vehicle with Driver,TRANSPORT,DIRECT TRANSPORT COSTS,REVENUE
Walsall Council,http://opendatacommunities.org/id/metropolitan-district-council/walsall ,WC134-153,31.01.2022,CHILDRENS,ACE CARS & MINIBUSES LTD,04/01/2022,"2,722.00",6241-Hire of Vehicle with Driver,TRANSPORT,DIRECT TRANSPORT COSTS,REVENUE
Walsall Council,http://opendatacommunities.org/id/metropolitan-district-council/walsall ,WC134-154,31.01.2022,CHILDRENS,ACE CARS & MINIBUSES LTD,04/01/2022,"2,140.00",6241-Hire of Vehicle with Driver,TRANSPORT,DIRECT TRANSPORT COSTS,REVENUE
Walsall Council,http://opendatacommunities.org/id/metropolitan-district-council/walsall ,WC134-155,31.01.2022,CHILDRENS,ACE CARS & MINIBUSES LTD,04/01/2022,"2,140.00",6241-Hire of Vehicle with Driver,TRANSPORT,DIRECT TRANSPORT COSTS,REVENUE
Walsall Council,http://opendatacommunities.org/id/metropolitan-district-council/walsall ,WC134-156,31.01.2022,CHILDRENS,ACE CARS & MINIBUSES LTD,04/01/2022,"2,390.00",6241-Hire of Vehicle with Driver,TRANSPORT,DIRECT TRANSPORT COSTS,REVENUE
Walsall Council,http://opendatacommunities.org/id/metropolitan-district-council/walsall ,WC134-157,31.01.2022,CHILDRENS,ACE CARS & MINIBUSES LTD,04/01/2022,"2,390.00",6241-Hire of Vehicle with Driver,TRANSPORT,DIRECT TRANSPORT COSTS,REVENUE
Walsall Council,http://opendatacommunities.org/id/metropolitan-district-council/walsall ,WC134-158,31.01.2022,CHILDRENS,ACE CARS & MINIBUSES LTD,04/01/2022,"2,390.00",6241-Hire of Vehicle with Driver,TRANSPORT,DIRECT TRANSPORT COSTS,REVENUE
Walsall Council,http://opendatacommunities.org/id/metropolitan-district-council/walsall ,WC134-159,31.01.2022,CHILDRENS,ACE CARS & MINIBUSES LTD,04/01/2022,"2,722.00",6241-Hire of Vehicle with Driver,TRANSPORT,DIRECT TRANSPORT COSTS,REVENUE
Walsall Council,http://opendatacommunities.org/id/metropolitan-district-council/walsall ,WC134-160,31.01.2022,CHILDRENS,ACE CARS & MINIBUSES LTD,04/01/2022,"2,722.00",6241-Hire of Vehicle with Driver,TRANSPORT,DIRECT TRANSPORT COSTS,REVENUE
Walsall Council,http://opendatacommunities.org/id/metropolitan-district-council/walsall ,WC134-161,31.01.2022,CHILDRENS,ACE CARS & MINIBUSES LTD,04/01/2022,"3,360.00",6241-Hire of Vehicle with Driver,TRANSPORT,DIRECT TRANSPORT COSTS,REVENUE
Walsall Council,http://opendatacommunities.org/id/metropolitan-district-council/walsall ,WC134-162,31.01.2022,CHILDRENS,ACE CARS & MINIBUSES LTD,04/01/2022,"2,360.00",6241-Hire of Vehicle with Driver,TRANSPORT,DIRECT TRANSPORT COSTS,REVENUE
Walsall Council,http://opendatacommunities.org/id/metropolitan-district-council/walsall ,WC134-163,31.01.2022,CHILDRENS,ACE CARS & MINIBUSES LTD,04/01/2022,"2,690.40",6241-Hire of Vehicle with Driver,TRANSPORT,DIRECT TRANSPORT COSTS,REVENUE
Walsall Council,http://opendatacommunities.org/id/metropolitan-district-council/walsall ,WC134-164,31.01.2022,CHILDRENS,ACE CARS & MINIBUSES LTD,04/01/2022,"2,501.60",6241-Hire of Vehicle with Driver,TRANSPORT,DIRECT TRANSPORT COSTS,REVENUE
Walsall Council,http://opendatacommunities.org/id/metropolitan-district-council/walsall ,WC134-165,31.01.2022,CHILDRENS,ACE CARS & MINIBUSES LTD,04/01/2022,"2,360.00",6241-Hire of Vehicle with Driver,TRANSPORT,DIRECT TRANSPORT COSTS,REVENUE
Walsall Council,http://opendatacommunities.org/id/metropolitan-district-council/walsall ,WC134-166,31.01.2022,CHILDRENS,ACE CARS & MINIBUSES LTD,04/01/2022,"2,280.00",6241-Hire of Vehicle with Driver,TRANSPORT,DIRECT TRANSPORT COSTS,REVENUE
Walsall Council,http://opendatacommunities.org/id/metropolitan-district-council/walsall ,WC134-167,31.01.2022,CHILDRENS,ACE CARS & MINIBUSES LTD,04/01/2022,"2,390.00",6241-Hire of Vehicle with Driver,TRANSPORT,DIRECT TRANSPORT COSTS,REVENUE
Walsall Council,http://opendatacommunities.org/id/metropolitan-district-council/walsall ,WC134-168,31.01.2022,CHILDRENS,ACE CARS & MINIBUSES LTD,04/01/2022,"2,360.00",6241-Hire of Vehicle with Driver,TRANSPORT,DIRECT TRANSPORT COSTS,REVENUE
Walsall Council,http://opendatacommunities.org/id/metropolitan-district-council/walsall ,WC134-169,31.01.2022,CHILDRENS,ACE CARS & MINIBUSES LTD,04/01/2022,"2,280.00",6241-Hire of Vehicle with Driver,TRANSPORT,DIRECT TRANSPORT COSTS,REVENUE
Walsall Council,http://opendatacommunities.org/id/metropolitan-district-council/walsall ,WC134-170,31.01.2022,CHILDRENS,ACE CARS & MINIBUSES LTD,04/01/2022,"2,140.00",6241-Hire of Vehicle with Driver,TRANSPORT,DIRECT TRANSPORT COSTS,REVENUE
Walsall Council,http://opendatacommunities.org/id/metropolitan-district-council/walsall ,WC134-171,31.01.2022,CHILDRENS,ACE CARS & MINIBUSES LTD,04/01/2022,"4,248.00",6241-Hire of Vehicle with Driver,TRANSPORT,DIRECT TRANSPORT COSTS,REVENUE
Walsall Council,http://opendatacommunities.org/id/metropolitan-district-council/walsall ,WC134-172,31.01.2022,CHILDRENS,ACE CARS & MINIBUSES LTD,04/01/2022,"2,140.00",6241-Hire of Vehicle with Driver,TRANSPORT,DIRECT TRANSPORT COSTS,REVENUE
Walsall Council,http://opendatacommunities.org/id/metropolitan-district-council/walsall ,WC134-173,31.01.2022,CHILDRENS,ACE CARS & MINIBUSES LTD,04/01/2022,"2,722.00",6241-Hire of Vehicle with Driver,TRANSPORT,DIRECT TRANSPORT COSTS,REVENUE
Walsall Council,http://opendatacommunities.org/id/metropolitan-district-council/walsall ,WC134-174,31.01.2022,ADULT SOCIAL CARE,ACEPAY LTD (COTTAGE NUR HOME),18/01/2022,"2,419.96",6541-Nursing,THIRD PARTY PAYMENTS,PRIVATE CONTRACTOR,REVENUE
Walsall Council,http://opendatacommunities.org/id/metropolitan-district-council/walsall ,WC134-175,31.01.2022,ADULT SOCIAL CARE,ACEPAY LTD (COTTAGE NUR HOME),18/01/2022,"2,419.96",6541-Nursing,THIRD PARTY PAYMENTS,PRIVATE CONTRACTOR,REVENUE
Walsall Council,http://opendatacommunities.org/id/metropolitan-district-council/walsall ,WC134-176,31.01.2022,ADULT SOCIAL CARE,ACEPAY LTD (COTTAGE NUR HOME),18/01/2022,"2,419.96",6541-Nursing,THIRD PARTY PAYMENTS,PRIVATE CONTRACTOR,REVENUE
Walsall Council,http://opendatacommunities.org/id/metropolitan-district-council/walsall ,WC134-177,31.01.2022,ADULT SOCIAL CARE,ACEPAY LTD (COTTAGE NUR HOME),18/01/2022,777.84,6541-Nursing,THIRD PARTY PAYMENTS,PRIVATE CONTRACTOR,REVENUE
Walsall Council,http://opendatacommunities.org/id/metropolitan-district-council/walsall ,WC134-178,31.01.2022,ADULT SOCIAL CARE,ACEPAY LTD (COTTAGE NUR HOME),18/01/2022,"2,419.96",6541-Nursing,THIRD PARTY PAYMENTS,PRIVATE CONTRACTOR,REVENUE
Walsall Council,http://opendatacommunities.org/id/metropolitan-district-council/walsall ,WC134-179,31.01.2022,ADULT SOCIAL CARE,ACEPAY LTD (COTTAGE NUR HOME),18/01/2022,"2,331.08",6541-Residential EMI,THIRD PARTY PAYMENTS,PRIVATE CONTRACTOR,REVENUE
Walsall Council,http://opendatacommunities.org/id/metropolitan-district-council/walsall ,WC134-180,31.01.2022,ADULT SOCIAL CARE,ACEPAY LTD (COTTAGE NUR HOME),18/01/2022,"2,419.96",6541-Nursing,THIRD PARTY PAYMENTS,PRIVATE CONTRACTOR,REVENUE
Walsall Council,http://opendatacommunities.org/id/metropolitan-district-council/walsall ,WC134-181,31.01.2022,ADULT SOCIAL CARE,ACEPAY LTD (COTTAGE NUR HOME),18/01/2022,"2,331.08",6541-Residential EMI,THIRD PARTY PAYMENTS,PRIVATE CONTRACTOR,REVENUE
Walsall Council,http://opendatacommunities.org/id/metropolitan-district-council/walsall ,WC134-182,31.01.2022,ADULT SOCIAL CARE,ACEPAY LTD (COTTAGE NUR HOME),18/01/2022,"2,419.96",6541-Nursing,THIRD PARTY PAYMENTS,PRIVATE CONTRACTOR,REVENUE
Walsall Council,http://opendatacommunities.org/id/metropolitan-district-council/walsall ,WC134-183,31.01.2022,ADULT SOCIAL CARE,ACEPAY LTD (COTTAGE NUR HOME),18/01/2022,"2,419.96",6541-Nursing,THIRD PARTY PAYMENTS,PRIVATE CONTRACTOR,REVENUE
Walsall Council,http://opendatacommunities.org/id/metropolitan-district-council/walsall ,WC134-184,31.01.2022,ADULT SOCIAL CARE,ACEPAY LTD (COTTAGE NUR HOME),18/01/2022,"2,419.96",6541-Nursing,THIRD PARTY PAYMENTS,PRIVATE CONTRACTOR,REVENUE
Walsall Council,http://opendatacommunities.org/id/metropolitan-district-council/walsall ,WC134-185,31.01.2022,ADULT SOCIAL CARE,ACEPAY LTD (COTTAGE NUR HOME),18/01/2022,"7,259.88",6541-Nursing,THIRD PARTY PAYMENTS,PRIVATE CONTRACTOR,REVENUE
Walsall Council,http://opendatacommunities.org/id/metropolitan-district-council/walsall ,WC134-186,31.01.2022,ADULT SOCIAL CARE,ACEPAY LTD (COTTAGE NUR HOME),18/01/2022,"2,722.96",6541-Nursing EMI,THIRD PARTY PAYMENTS,PRIVATE CONTRACTOR,REVENUE
Walsall Council,http://opendatacommunities.org/id/metropolitan-district-council/walsall ,WC134-187,31.01.2022,ADULT SOCIAL CARE,ACEPAY LTD (COTTAGE NUR HOME),18/01/2022,"2,619.96",6541-Nursing,THIRD PARTY PAYMENTS,PRIVATE CONTRACTOR,REVENUE
Walsall Council,http://opendatacommunities.org/id/metropolitan-district-council/walsall ,WC134-188,31.01.2022,ADULT SOCIAL CARE,ACEPAY LTD (COTTAGE NUR HOME),18/01/2022,"3,111.95",6541-Nursing EMI,THIRD PARTY PAYMENTS,PRIVATE CONTRACTOR,REVENUE
Walsall Council,http://opendatacommunities.org/id/metropolitan-district-council/walsall ,WC134-189,31.01.2022,ADULT SOCIAL CARE,ACEPAY LTD (COTTAGE NUR HOME),13/01/2022,"2,328.44",6541-Residential EMI,THIRD PARTY PAYMENTS,PRIVATE CONTRACTOR,REVENUE
Walsall Council,http://opendatacommunities.org/id/metropolitan-district-council/walsall ,WC134-190,31.01.2022,ADULT SOCIAL CARE,ACEPAY LTD (COTTAGE NUR HOME),04/01/2022,"5,511.13",6550-COVID-19 Local Support Grant Exp,TRANSFER PAYMENTS,COVID TRANSFER PAYMENT,REVENUE
Walsall Council,http://opendatacommunities.org/id/metropolitan-district-council/walsall ,WC134-191,31.01.2022,ADULT SOCIAL CARE,ACEPAY LTD (COTTAGE NUR HOME),04/01/2022,"3,915.85",6550-COVID-19 Household Support Grant Exp,TRANSFER PAYMENTS,COVID TRANSFER PAYMENT,REVENUE
Walsall Council,http://opendatacommunities.org/id/metropolitan-district-council/walsall ,WC134-192,31.01.2022,ADULT SOCIAL CARE,ACEPAY LTD (COTTAGE NUR HOME),04/01/2022,387.49,6550-National Tutoring Exp,TRANSFER PAYMENTS,COVID TRANSFER PAYMENT,REVENUE
Walsall Council,http://opendatacommunities.org/id/metropolitan-district-council/walsall ,WC134-193,31.01.2022,ADULT SOCIAL CARE,ACEPAY LTD (COTTAGE NUR HOME),13/01/2022,"1,987.82",6541-Nursing,THIRD PARTY PAYMENTS,PRIVATE CONTRACTOR,REVENUE
Walsall Council,http://opendatacommunities.org/id/metropolitan-district-council/walsall ,WC134-194,31.01.2022,CHILDRENS,ACIRE CARE LTD,06/01/2022,"8,233.60",6223-Accommodation and Related Costs-Assistance to S/S Clients,TRANSFER PAYMENTS,ADULT SOCIAL SERVICES CLIENT,REVENUE
Walsall Council,http://opendatacommunities.org/id/metropolitan-district-council/walsall ,WC134-195,31.01.2022,CHILDRENS,ACORN CARE & EDUCATION LTD (SALES),25/01/2022,"14,000.00",6223-External Residential Care-Oth Agency Provision,THIRD PARTY PAYMENTS,PRIVATE CONTRACTOR,REVENUE
Walsall Council,http://opendatacommunities.org/id/metropolitan-district-council/walsall ,WC134-196,31.01.2022,CHILDRENS,ACORN CARE & EDUCATION LTD (SALES),13/01/2022,"6,306.18",1220-Professional Fees & Services,SUPPLIES & SERVICES,SERVICES,REVENUE
Walsall Council,http://opendatacommunities.org/id/metropolitan-district-council/walsall ,WC134-197,31.01.2022,CHILDRENS,ACORN CARE & EDUCATION LTD (SALES),13/01/2022,"6,306.18",1220-Professional Fees & Services,SUPPLIES & SERVICES,SERVICES,REVENUE
Walsall Council,http://opendatacommunities.org/id/metropolitan-district-council/walsall ,WC134-198,31.01.2022,CHILDRENS,ACORNS CHILDRENS HOSPICE TRUST,17/01/2022,"1,700.00",6220-Professional Fees & Services,SUPPLIES & SERVICES,SERVICES,REVENUE
Walsall Council,http://opendatacommunities.org/id/metropolitan-district-council/walsall ,WC134-199,31.01.2022,CHILDRENS,ACPAS LIMITED,04/01/2022,252.74,6220-School Only Payments - Catering,THIRD PARTY PAYMENTS,INDEPENDENT UNIT WITHIN COUNCIL,REVENUE
Walsall Council,http://opendatacommunities.org/id/metropolitan-district-council/walsall ,WC134-200,31.01.2022,"ECONOMY, ENVIRONMENT & COMMUNITIES",ACTION GRAPHICS & DISPLAY LTD,14/01/2022,749.00,6414-Events & Visual Arts,SUPPLIES & SERVICES,SERVICES,REVENUE
Walsall Council,http://opendatacommunities.org/id/metropolitan-district-council/walsall ,WC134-201,31.01.2022,"ECONOMY, ENVIRONMENT & COMMUNITIES",ACTION GRAPHICS & DISPLAY LTD,19/01/2022,712.40,6414-Outwork Print & Design,SUPPLIES & SERVICES,PRINTING STATIONERY & GENERAL OFFICE,REVENUE
Walsall Council,http://opendatacommunities.org/id/metropolitan-district-council/walsall ,WC134-202,31.01.2022,"ECONOMY, ENVIRONMENT & COMMUNITIES",ACTION GRAPHICS & DISPLAY LTD,19/01/2022,"1,894.90",6414-Events & Visual Arts,SUPPLIES & SERVICES,SERVICES,REVENUE
Walsall Council,http://opendatacommunities.org/id/metropolitan-district-council/walsall ,WC134-203,31.01.2022,RESOURCES AND TRANSFORMATION,AD HOC UK SECURITY LTD,28/01/2022,359.00,6310-Repair & Maintenance of Furniture & Equipment,SUPPLIES & SERVICES,EQUIPMENT FURNITURE & MATERIALS,REVENUE
Walsall Council,http://opendatacommunities.org/id/metropolitan-district-council/walsall ,WC134-204,31.01.2022,ADULT SOCIAL CARE,REDACTED,06/01/2022,790.88,6541-Direct Payment,THIRD PARTY PAYMENTS,PRIVATE CONTRACTOR,REVENUE
Walsall Council,http://opendatacommunities.org/id/metropolitan-district-council/walsall ,WC134-205,31.01.2022,"ECONOMY, ENVIRONMENT & COMMUNITIES",ADEPT,07/01/2022,499.00,6315-Professional Fees & Services,SUPPLIES & SERVICES,SERVICES,REVENUE
Walsall Council,http://opendatacommunities.org/id/metropolitan-district-council/walsall ,WC134-206,31.01.2022,CHILDRENS,REDACTED,13/01/2022,337.30,6223-Residents Orders,TRANSFER PAYMENTS,CHILDREN SOCIAL SERVICES CLIENT,REVENUE
Walsall Council,http://opendatacommunities.org/id/metropolitan-district-council/walsall ,WC134-207,31.01.2022,ADULT SOCIAL CARE,REDACTED,06/01/2022,"2,083.20",6541-Direct Payment,THIRD PARTY PAYMENTS,PRIVATE CONTRACTOR,REVENUE
Walsall Council,http://opendatacommunities.org/id/metropolitan-district-council/walsall ,WC134-208,31.01.2022,ADULT SOCIAL CARE,ADVANCE HEALTH CARE (UK) LTD,13/01/2022,"1,988.44",6541-Domiciliary Care,THIRD PARTY PAYMENTS,PRIVATE CONTRACTOR,REVENUE
Walsall Council,http://opendatacommunities.org/id/metropolitan-district-council/walsall ,WC134-209,31.01.2022,ADULT SOCIAL CARE,ADVANCE HEALTH CARE (UK) LTD,13/01/2022,"2,549.13",6541-Domiciliary Care,THIRD PARTY PAYMENTS,PRIVATE CONTRACTOR,REVENUE
Walsall Council,http://opendatacommunities.org/id/metropolitan-district-council/walsall ,WC134-210,31.01.2022,ADULT SOCIAL CARE,ADVANCE HEALTH CARE (UK) LTD,13/01/2022,726.88,6541-Domiciliary Care,THIRD PARTY PAYMENTS,PRIVATE CONTRACTOR,REVENUE
Walsall Council,http://opendatacommunities.org/id/metropolitan-district-council/walsall ,WC134-211,31.01.2022,ADULT SOCIAL CARE,ADVANCE HEALTH CARE (UK) LTD,13/01/2022,838.27,6541-Domiciliary Care,THIRD PARTY PAYMENTS,PRIVATE CONTRACTOR,REVENUE
Walsall Council,http://opendatacommunities.org/id/metropolitan-district-council/walsall ,WC134-212,31.01.2022,ADULT SOCIAL CARE,ADVANCE HEALTH CARE (UK) LTD,13/01/2022,752.97,6541-Domiciliary Care,THIRD PARTY PAYMENTS,PRIVATE CONTRACTOR,REVENUE
Walsall Council,http://opendatacommunities.org/id/metropolitan-district-council/walsall ,WC134-213,31.01.2022,ADULT SOCIAL CARE,ADVANCE HEALTH CARE (UK) LTD,13/01/2022,825.28,6541-Domiciliary Care,THIRD PARTY PAYMENTS,PRIVATE CONTRACTOR,REVENUE
Walsall Council,http://opendatacommunities.org/id/metropolitan-district-council/walsall ,WC134-214,31.01.2022,ADULT SOCIAL CARE,ADVANCE HEALTH CARE (UK) LTD,13/01/2022,472.36,6541-Domiciliary Care,THIRD PARTY PAYMENTS,PRIVATE CONTRACTOR,REVENUE
Walsall Council,http://opendatacommunities.org/id/metropolitan-district-council/walsall ,WC134-215,31.01.2022,ADULT SOCIAL CARE,ADVANCE HEALTH CARE (UK) LTD,13/01/2022,825.28,6541-Domiciliary Care,THIRD PARTY PAYMENTS,PRIVATE CONTRACTOR,REVENUE
Walsall Council,http://opendatacommunities.org/id/metropolitan-district-council/walsall ,WC134-216,31.01.2022,ADULT SOCIAL CARE,ADVANCE HEALTH CARE (UK) LTD,13/01/2022,"1,560.12",6541-Domiciliary Care,THIRD PARTY PAYMENTS,PRIVATE CONTRACTOR,REVENUE
Walsall Council,http://opendatacommunities.org/id/metropolitan-district-council/walsall ,WC134-217,31.01.2022,ADULT SOCIAL CARE,ADVANCE HEALTH CARE (UK) LTD,13/01/2022,"2,549.13",6541-Domiciliary Care,THIRD PARTY PAYMENTS,PRIVATE CONTRACTOR,REVENUE
Walsall Council,http://opendatacommunities.org/id/metropolitan-district-council/walsall ,WC134-218,31.01.2022,ADULT SOCIAL CARE,ADVANCE HEALTH CARE (UK) LTD,13/01/2022,"1,028.20",6541-Domiciliary Care,THIRD PARTY PAYMENTS,PRIVATE CONTRACTOR,REVENUE
Walsall Council,http://opendatacommunities.org/id/metropolitan-district-council/walsall ,WC134-219,31.01.2022,ADULT SOCIAL CARE,ADVANCE HEALTH CARE (UK) LTD,13/01/2022,"1,012.56",6541-Domiciliary Care,THIRD PARTY PAYMENTS,PRIVATE CONTRACTOR,REVENUE
Walsall Council,http://opendatacommunities.org/id/metropolitan-district-council/walsall ,WC134-220,31.01.2022,ADULT SOCIAL CARE,ADVANCE HEALTH CARE (UK) LTD,13/01/2022,763.00,6541-Domiciliary Care,THIRD PARTY PAYMENTS,PRIVATE CONTRACTOR,REVENUE
Walsall Council,http://opendatacommunities.org/id/metropolitan-district-council/walsall ,WC134-221,31.01.2022,ADULT SOCIAL CARE,ADVANCE HEALTH CARE (UK) LTD,13/01/2022,726.88,6541-Domiciliary Care,THIRD PARTY PAYMENTS,PRIVATE CONTRACTOR,REVENUE
Walsall Council,http://opendatacommunities.org/id/metropolitan-district-council/walsall ,WC134-222,31.01.2022,ADULT SOCIAL CARE,ADVANCE HEALTH CARE (UK) LTD,13/01/2022,825.63,6541-Domiciliary Care,THIRD PARTY PAYMENTS,PRIVATE CONTRACTOR,REVENUE
Walsall Council,http://opendatacommunities.org/id/metropolitan-district-council/walsall ,WC134-223,31.01.2022,ADULT SOCIAL CARE,ADVANCE HEALTH CARE (UK) LTD,13/01/2022,"1,744.12",6541-Domiciliary Care,THIRD PARTY PAYMENTS,PRIVATE CONTRACTOR,REVENUE
Walsall Council,http://opendatacommunities.org/id/metropolitan-district-council/walsall ,WC134-224,31.01.2022,ADULT SOCIAL CARE,ADVANCE HEALTH CARE (UK) LTD,13/01/2022,825.28,6541-Domiciliary Care,THIRD PARTY PAYMENTS,PRIVATE CONTRACTOR,REVENUE
Walsall Council,http://opendatacommunities.org/id/metropolitan-district-council/walsall ,WC134-225,31.01.2022,ADULT SOCIAL CARE,ADVANCE HEALTH CARE (UK) LTD,13/01/2022,472.36,6541-Domiciliary Care,THIRD PARTY PAYMENTS,PRIVATE CONTRACTOR,REVENUE
Walsall Council,http://opendatacommunities.org/id/metropolitan-district-council/walsall ,WC134-226,31.01.2022,ADULT SOCIAL CARE,ADVANCE HEALTH CARE (UK) LTD,13/01/2022,825.28,6541-Domiciliary Care,THIRD PARTY PAYMENTS,PRIVATE CONTRACTOR,REVENUE
Walsall Council,http://opendatacommunities.org/id/metropolitan-district-council/walsall ,WC134-227,31.01.2022,ADULT SOCIAL CARE,ADVANCE HEALTH CARE (UK) LTD,04/01/2022,490.49,6541-Domiciliary Care,THIRD PARTY PAYMENTS,PRIVATE CONTRACTOR,REVENUE
Walsall Council,http://opendatacommunities.org/id/metropolitan-district-council/walsall ,WC134-228,31.01.2022,ADULT SOCIAL CARE,ADVANCE HEALTH CARE (UK) LTD,04/01/2022,635.81,6541-Domiciliary Care,THIRD PARTY PAYMENTS,PRIVATE CONTRACTOR,REVENUE
Walsall Council,http://opendatacommunities.org/id/metropolitan-district-council/walsall ,WC134-229,31.01.2022,ADULT SOCIAL CARE,ADVANCE HEALTH CARE (UK) LTD,04/01/2022,537.20,6541-Domiciliary Care,THIRD PARTY PAYMENTS,PRIVATE CONTRACTOR,REVENUE
Walsall Council,http://opendatacommunities.org/id/metropolitan-district-council/walsall ,WC134-230,31.01.2022,ADULT SOCIAL CARE,ADVANCE HEALTH CARE (UK) LTD,04/01/2022,"3,013.01",6541-Domiciliary Care,THIRD PARTY PAYMENTS,PRIVATE CONTRACTOR,REVENUE
Walsall Council,http://opendatacommunities.org/id/metropolitan-district-council/walsall ,WC134-231,31.01.2022,ADULT SOCIAL CARE,ADVANCE HEALTH CARE (UK) LTD,04/01/2022,833.03,6541-Domiciliary Care,THIRD PARTY PAYMENTS,PRIVATE CONTRACTOR,REVENUE
Walsall Council,http://opendatacommunities.org/id/metropolitan-district-council/walsall ,WC134-232,31.01.2022,ADULT SOCIAL CARE,ADVANCE HEALTH CARE (UK) LTD,04/01/2022,490.49,6541-Domiciliary Care,THIRD PARTY PAYMENTS,PRIVATE CONTRACTOR,REVENUE
Walsall Council,http://opendatacommunities.org/id/metropolitan-district-council/walsall ,WC134-233,31.01.2022,ADULT SOCIAL CARE,ADVANCE HEALTH CARE (UK) LTD,04/01/2022,490.49,6541-Domiciliary Care,THIRD PARTY PAYMENTS,PRIVATE CONTRACTOR,REVENUE
Walsall Council,http://opendatacommunities.org/id/metropolitan-district-council/walsall ,WC134-234,31.01.2022,ADULT SOCIAL CARE,ADVANCE HEALTH CARE (UK) LTD,04/01/2022,490.49,6541-Domiciliary Care,THIRD PARTY PAYMENTS,PRIVATE CONTRACTOR,REVENUE
Walsall Council,http://opendatacommunities.org/id/metropolitan-district-council/walsall ,WC134-235,31.01.2022,ADULT SOCIAL CARE,ADVANCE HEALTH CARE (UK) LTD,04/01/2022,435.96,6541-Domiciliary Care,THIRD PARTY PAYMENTS,PRIVATE CONTRACTOR,REVENUE
Walsall Council,http://opendatacommunities.org/id/metropolitan-district-council/walsall ,WC134-236,31.01.2022,ADULT SOCIAL CARE,ADVANCE HEALTH CARE (UK) LTD,04/01/2022,"1,662.86",6541-Domiciliary Care,THIRD PARTY PAYMENTS,PRIVATE CONTRACTOR,REVENUE
Walsall Council,http://opendatacommunities.org/id/metropolitan-district-council/walsall ,WC134-237,31.01.2022,ADULT SOCIAL CARE,ADVANCE HEALTH CARE (UK) LTD,04/01/2022,"1,717.45",6541-Domiciliary Care,THIRD PARTY PAYMENTS,PRIVATE CONTRACTOR,REVENUE
Walsall Council,http://opendatacommunities.org/id/metropolitan-district-council/walsall ,WC134-238,31.01.2022,ADULT SOCIAL CARE,ADVANCE HEALTH CARE (UK) LTD,04/01/2022,980.98,6541-Domiciliary Care,THIRD PARTY PAYMENTS,PRIVATE CONTRACTOR,REVENUE
Walsall Council,http://opendatacommunities.org/id/metropolitan-district-council/walsall ,WC134-239,31.01.2022,ADULT SOCIAL CARE,ADVANCE HEALTH CARE (UK) LTD,04/01/2022,"2,032.03",6541-Domiciliary Care,THIRD PARTY PAYMENTS,PRIVATE CONTRACTOR,REVENUE
Walsall Council,http://opendatacommunities.org/id/metropolitan-district-council/walsall ,WC134-240,31.01.2022,ADULT SOCIAL CARE,ADVANCE HEALTH CARE (UK) LTD,04/01/2022,490.49,6541-Domiciliary Care,THIRD PARTY PAYMENTS,PRIVATE CONTRACTOR,REVENUE
Walsall Council,http://opendatacommunities.org/id/metropolitan-district-council/walsall ,WC134-241,31.01.2022,ADULT SOCIAL CARE,ADVANCE HEALTH CARE (UK) LTD,04/01/2022,363.30,6541-Domiciliary Care,THIRD PARTY PAYMENTS,PRIVATE CONTRACTOR,REVENUE
Walsall Council,http://opendatacommunities.org/id/metropolitan-district-council/walsall ,WC134-242,31.01.2022,ADULT SOCIAL CARE,ADVANCE HEALTH CARE (UK) LTD,04/01/2022,490.49,6541-Domiciliary Care,THIRD PARTY PAYMENTS,PRIVATE CONTRACTOR,REVENUE
Walsall Council,http://opendatacommunities.org/id/metropolitan-district-council/walsall ,WC134-243,31.01.2022,ADULT SOCIAL CARE,ADVANCE HEALTH CARE (UK) LTD,04/01/2022,490.49,6541-Domiciliary Care,THIRD PARTY PAYMENTS,PRIVATE CONTRACTOR,REVENUE
Walsall Council,http://opendatacommunities.org/id/metropolitan-district-council/walsall ,WC134-244,31.01.2022,ADULT SOCIAL CARE,ADVANCE HEALTH CARE (UK) LTD,04/01/2022,435.96,6541-Domiciliary Care,THIRD PARTY PAYMENTS,PRIVATE CONTRACTOR,REVENUE
Walsall Council,http://opendatacommunities.org/id/metropolitan-district-council/walsall ,WC134-245,31.01.2022,ADULT SOCIAL CARE,ADVANCE HEALTH CARE (UK) LTD,04/01/2022,435.96,6541-Domiciliary Care,THIRD PARTY PAYMENTS,PRIVATE CONTRACTOR,REVENUE
Walsall Council,http://opendatacommunities.org/id/metropolitan-district-council/walsall ,WC134-246,31.01.2022,ADULT SOCIAL CARE,ADVANCE HEALTH CARE (UK) LTD,04/01/2022,280.44,6541-Domiciliary Care,THIRD PARTY PAYMENTS,PRIVATE CONTRACTOR,REVENUE
Walsall Council,http://opendatacommunities.org/id/metropolitan-district-council/walsall ,WC134-247,31.01.2022,ADULT SOCIAL CARE,ADVANCE HEALTH CARE (UK) LTD,04/01/2022,490.49,6541-Domiciliary Care,THIRD PARTY PAYMENTS,PRIVATE CONTRACTOR,REVENUE
Walsall Council,http://opendatacommunities.org/id/metropolitan-district-council/walsall ,WC134-248,31.01.2022,ADULT SOCIAL CARE,ADVANCE HEALTH CARE (UK) LTD,04/01/2022,"1,798.65",6541-Domiciliary Care,THIRD PARTY PAYMENTS,PRIVATE CONTRACTOR,REVENUE
Walsall Council,http://opendatacommunities.org/id/metropolitan-district-council/walsall ,WC134-249,31.01.2022,ADULT SOCIAL CARE,ADVANCE HEALTH CARE (UK) LTD,04/01/2022,467.20,6541-Domiciliary Care,THIRD PARTY PAYMENTS,PRIVATE CONTRACTOR,REVENUE
Walsall Council,http://opendatacommunities.org/id/metropolitan-district-council/walsall ,WC134-250,31.01.2022,ADULT SOCIAL CARE,ADVANCE HEALTH CARE (UK) LTD,04/01/2022,490.49,6541-Domiciliary Care,THIRD PARTY PAYMENTS,PRIVATE CONTRACTOR,REVENUE
Walsall Council,http://opendatacommunities.org/id/metropolitan-district-council/walsall ,WC134-251,31.01.2022,ADULT SOCIAL CARE,ADVANCE HEALTH CARE (UK) LTD,04/01/2022,"2,452.45",6541-Domiciliary Care,THIRD PARTY PAYMENTS,PRIVATE CONTRACTOR,REVENUE
Walsall Council,http://opendatacommunities.org/id/metropolitan-district-council/walsall ,WC134-252,31.01.2022,ADULT SOCIAL CARE,ADVANCE HEALTH CARE (UK) LTD,04/01/2022,"3,269.70",6541-Domiciliary Care,THIRD PARTY PAYMENTS,PRIVATE CONTRACTOR,REVENUE
Walsall Council,http://opendatacommunities.org/id/metropolitan-district-council/walsall ,WC134-253,31.01.2022,ADULT SOCIAL CARE,ADVANCE HEALTH CARE (UK) LTD,04/01/2022,420.39,6541-Domiciliary Care,THIRD PARTY PAYMENTS,PRIVATE CONTRACTOR,REVENUE
Walsall Council,http://opendatacommunities.org/id/metropolitan-district-council/walsall ,WC134-254,31.01.2022,ADULT SOCIAL CARE,ADVANCE HEALTH CARE (UK) LTD,04/01/2022,435.96,6541-Domiciliary Care,THIRD PARTY PAYMENTS,PRIVATE CONTRACTOR,REVENUE
Walsall Council,http://opendatacommunities.org/id/metropolitan-district-council/walsall ,WC134-255,31.01.2022,ADULT SOCIAL CARE,ADVANCE HEALTH CARE (UK) LTD,04/01/2022,"1,821.69",6541-Domiciliary Care,THIRD PARTY PAYMENTS,PRIVATE CONTRACTOR,REVENUE
Walsall Council,http://opendatacommunities.org/id/metropolitan-district-council/walsall ,WC134-256,31.01.2022,ADULT SOCIAL CARE,ADVANCE HEALTH CARE (UK) LTD,04/01/2022,544.95,6541-Domiciliary Care,THIRD PARTY PAYMENTS,PRIVATE CONTRACTOR,REVENUE
Walsall Council,http://opendatacommunities.org/id/metropolitan-district-council/walsall ,WC134-257,31.01.2022,ADULT SOCIAL CARE,ADVANCE HEALTH CARE (UK) LTD,04/01/2022,381.50,6541-Domiciliary Care,THIRD PARTY PAYMENTS,PRIVATE CONTRACTOR,REVENUE
Walsall Council,http://opendatacommunities.org/id/metropolitan-district-council/walsall ,WC134-258,31.01.2022,ADULT SOCIAL CARE,ADVANCE HEALTH CARE (UK) LTD,04/01/2022,288.23,6541-Domiciliary Care,THIRD PARTY PAYMENTS,PRIVATE CONTRACTOR,REVENUE
Walsall Council,http://opendatacommunities.org/id/metropolitan-district-council/walsall ,WC134-259,31.01.2022,ADULT SOCIAL CARE,ADVANCE HEALTH CARE (UK) LTD,04/01/2022,490.49,6541-Domiciliary Care,THIRD PARTY PAYMENTS,PRIVATE CONTRACTOR,REVENUE
Walsall Council,http://opendatacommunities.org/id/metropolitan-district-council/walsall ,WC134-260,31.01.2022,ADULT SOCIAL CARE,ADVANCE HEALTH CARE (UK) LTD,04/01/2022,454.16,6541-Domiciliary Care,THIRD PARTY PAYMENTS,PRIVATE CONTRACTOR,REVENUE
Walsall Council,http://opendatacommunities.org/id/metropolitan-district-council/walsall ,WC134-261,31.01.2022,ADULT SOCIAL CARE,ADVANCE HEALTH CARE (UK) LTD,04/01/2022,399.63,6541-Domiciliary Care,THIRD PARTY PAYMENTS,PRIVATE CONTRACTOR,REVENUE
Walsall Council,http://opendatacommunities.org/id/metropolitan-district-council/walsall ,WC134-262,31.01.2022,ADULT SOCIAL CARE,ADVANCE HEALTH CARE (UK) LTD,04/01/2022,435.96,6541-Domiciliary Care,THIRD PARTY PAYMENTS,PRIVATE CONTRACTOR,REVENUE
Walsall Council,http://opendatacommunities.org/id/metropolitan-district-council/walsall ,WC134-263,31.01.2022,ADULT SOCIAL CARE,ADVANCE HEALTH CARE (UK) LTD,04/01/2022,490.49,6541-Domiciliary Care,THIRD PARTY PAYMENTS,PRIVATE CONTRACTOR,REVENUE
Walsall Council,http://opendatacommunities.org/id/metropolitan-district-council/walsall ,WC134-264,31.01.2022,ADULT SOCIAL CARE,ADVANCE HEALTH CARE (UK) LTD,04/01/2022,490.49,6541-Domiciliary Care,THIRD PARTY PAYMENTS,PRIVATE CONTRACTOR,REVENUE
Walsall Council,http://opendatacommunities.org/id/metropolitan-district-council/walsall ,WC134-265,31.01.2022,ADULT SOCIAL CARE,ADVANCE HEALTH CARE (UK) LTD,04/01/2022,871.92,6541-Domiciliary Care,THIRD PARTY PAYMENTS,PRIVATE CONTRACTOR,REVENUE
Walsall Council,http://opendatacommunities.org/id/metropolitan-district-council/walsall ,WC134-266,31.01.2022,ADULT SOCIAL CARE,ADVANCE HEALTH CARE (UK) LTD,04/01/2022,381.50,6541-Domiciliary Care,THIRD PARTY PAYMENTS,PRIVATE CONTRACTOR,REVENUE
Walsall Council,http://opendatacommunities.org/id/metropolitan-district-council/walsall ,WC134-267,31.01.2022,ADULT SOCIAL CARE,ADVANCE HEALTH CARE (UK) LTD,04/01/2022,"1,878.78",6541-Domiciliary Care,THIRD PARTY PAYMENTS,PRIVATE CONTRACTOR,REVENUE
Walsall Council,http://opendatacommunities.org/id/metropolitan-district-council/walsall ,WC134-268,31.01.2022,ADULT SOCIAL CARE,ADVANCE HEALTH CARE (UK) LTD,04/01/2022,454.16,6541-Domiciliary Care,THIRD PARTY PAYMENTS,PRIVATE CONTRACTOR,REVENUE
Walsall Council,http://opendatacommunities.org/id/metropolitan-district-council/walsall ,WC134-269,31.01.2022,ADULT SOCIAL CARE,ADVANCE HEALTH CARE (UK) LTD,04/01/2022,506.06,6541-Domiciliary Care,THIRD PARTY PAYMENTS,PRIVATE CONTRACTOR,REVENUE
Walsall Council,http://opendatacommunities.org/id/metropolitan-district-council/walsall ,WC134-270,31.01.2022,ADULT SOCIAL CARE,ADVANCE HEALTH CARE (UK) LTD,04/01/2022,435.96,6541-Domiciliary Care,THIRD PARTY PAYMENTS,PRIVATE CONTRACTOR,REVENUE
Walsall Council,http://opendatacommunities.org/id/metropolitan-district-council/walsall ,WC134-271,31.01.2022,ADULT SOCIAL CARE,ADVANCE HEALTH CARE (UK) LTD,04/01/2022,490.49,6541-Domiciliary Care,THIRD PARTY PAYMENTS,PRIVATE CONTRACTOR,REVENUE
Walsall Council,http://opendatacommunities.org/id/metropolitan-district-council/walsall ,WC134-272,31.01.2022,ADULT SOCIAL CARE,ADVANCE HEALTH CARE (UK) LTD,04/01/2022,490.49,6541-Domiciliary Care,THIRD PARTY PAYMENTS,PRIVATE CONTRACTOR,REVENUE
Walsall Council,http://opendatacommunities.org/id/metropolitan-district-council/walsall ,WC134-273,31.01.2022,ADULT SOCIAL CARE,ADVANCE HEALTH CARE (UK) LTD,04/01/2022,490.49,6541-Domiciliary Care,THIRD PARTY PAYMENTS,PRIVATE CONTRACTOR,REVENUE
Walsall Council,http://opendatacommunities.org/id/metropolitan-district-council/walsall ,WC134-274,31.01.2022,ADULT SOCIAL CARE,ADVANCE HEALTH CARE (UK) LTD,04/01/2022,327.12,6541-Domiciliary Care,THIRD PARTY PAYMENTS,PRIVATE CONTRACTOR,REVENUE
Walsall Council,http://opendatacommunities.org/id/metropolitan-district-council/walsall ,WC134-275,31.01.2022,ADULT SOCIAL CARE,ADVANCE HEALTH CARE (UK) LTD,04/01/2022,630.72,6541-Domiciliary Care,THIRD PARTY PAYMENTS,PRIVATE CONTRACTOR,REVENUE
Walsall Council,http://opendatacommunities.org/id/metropolitan-district-council/walsall ,WC134-276,31.01.2022,ADULT SOCIAL CARE,ADVANCE HEALTH CARE (UK) LTD,04/01/2022,490.49,6541-Domiciliary Care,THIRD PARTY PAYMENTS,PRIVATE CONTRACTOR,REVENUE
Walsall Council,http://opendatacommunities.org/id/metropolitan-district-council/walsall ,WC134-277,31.01.2022,ADULT SOCIAL CARE,ADVANCE HEALTH CARE (UK) LTD,04/01/2022,490.70,6541-Domiciliary Care,THIRD PARTY PAYMENTS,PRIVATE CONTRACTOR,REVENUE
Walsall Council,http://opendatacommunities.org/id/metropolitan-district-council/walsall ,WC134-278,31.01.2022,ADULT SOCIAL CARE,ADVANCE HEALTH CARE (UK) LTD,04/01/2022,256.93,6541-Domiciliary Care,THIRD PARTY PAYMENTS,PRIVATE CONTRACTOR,REVENUE
Walsall Council,http://opendatacommunities.org/id/metropolitan-district-council/walsall ,WC134-279,31.01.2022,ADULT SOCIAL CARE,ADVANCE HEALTH CARE (UK) LTD,04/01/2022,490.49,6541-Domiciliary Care,THIRD PARTY PAYMENTS,PRIVATE CONTRACTOR,REVENUE
Walsall Council,http://opendatacommunities.org/id/metropolitan-district-council/walsall ,WC134-280,31.01.2022,ADULT SOCIAL CARE,ADVANCE HEALTH CARE (UK) LTD,04/01/2022,572.32,6541-Domiciliary Care,THIRD PARTY PAYMENTS,PRIVATE CONTRACTOR,REVENUE
Walsall Council,http://opendatacommunities.org/id/metropolitan-district-council/walsall ,WC134-281,31.01.2022,ADULT SOCIAL CARE,ADVANCE HEALTH CARE (UK) LTD,04/01/2022,326.97,6541-Domiciliary Care,THIRD PARTY PAYMENTS,PRIVATE CONTRACTOR,REVENUE
Walsall Council,http://opendatacommunities.org/id/metropolitan-district-council/walsall ,WC134-282,31.01.2022,ADULT SOCIAL CARE,ADVANCE HEALTH CARE (UK) LTD,04/01/2022,342.60,6541-Domiciliary Care,THIRD PARTY PAYMENTS,PRIVATE CONTRACTOR,REVENUE
Walsall Council,http://opendatacommunities.org/id/metropolitan-district-council/walsall ,WC134-283,31.01.2022,ADULT SOCIAL CARE,ADVANCE HEALTH CARE (UK) LTD,04/01/2022,700.65,6541-Domiciliary Care,THIRD PARTY PAYMENTS,PRIVATE CONTRACTOR,REVENUE
Walsall Council,http://opendatacommunities.org/id/metropolitan-district-council/walsall ,WC134-284,31.01.2022,ADULT SOCIAL CARE,ADVANCE HEALTH CARE (UK) LTD,04/01/2022,825.74,6541-Domiciliary Care,THIRD PARTY PAYMENTS,PRIVATE CONTRACTOR,REVENUE
Walsall Council,http://opendatacommunities.org/id/metropolitan-district-council/walsall ,WC134-285,31.01.2022,ADULT SOCIAL CARE,ADVANCE HEALTH CARE (UK) LTD,04/01/2022,311.60,6541-Domiciliary Care,THIRD PARTY PAYMENTS,PRIVATE CONTRACTOR,REVENUE
Walsall Council,http://opendatacommunities.org/id/metropolitan-district-council/walsall ,WC134-286,31.01.2022,ADULT SOCIAL CARE,ADVANCE HEALTH CARE (UK) LTD,04/01/2022,833.03,6541-Domiciliary Care,THIRD PARTY PAYMENTS,PRIVATE CONTRACTOR,REVENUE
Walsall Council,http://opendatacommunities.org/id/metropolitan-district-council/walsall ,WC134-287,31.01.2022,ADULT SOCIAL CARE,ADVANCE HEALTH CARE (UK) LTD,04/01/2022,490.49,6541-Domiciliary Care,THIRD PARTY PAYMENTS,PRIVATE CONTRACTOR,REVENUE
Walsall Council,http://opendatacommunities.org/id/metropolitan-district-council/walsall ,WC134-288,31.01.2022,ADULT SOCIAL CARE,ADVANCE HEALTH CARE (UK) LTD,04/01/2022,490.49,6541-Domiciliary Care,THIRD PARTY PAYMENTS,PRIVATE CONTRACTOR,REVENUE
Walsall Council,http://opendatacommunities.org/id/metropolitan-district-council/walsall ,WC134-289,31.01.2022,ADULT SOCIAL CARE,ADVANCE HEALTH CARE (UK) LTD,04/01/2022,490.49,6541-Domiciliary Care,THIRD PARTY PAYMENTS,PRIVATE CONTRACTOR,REVENUE
Walsall Council,http://opendatacommunities.org/id/metropolitan-district-council/walsall ,WC134-290,31.01.2022,ADULT SOCIAL CARE,ADVANCE HEALTH CARE (UK) LTD,04/01/2022,435.96,6541-Domiciliary Care,THIRD PARTY PAYMENTS,PRIVATE CONTRACTOR,REVENUE
Walsall Council,http://opendatacommunities.org/id/metropolitan-district-council/walsall ,WC134-291,31.01.2022,ADULT SOCIAL CARE,ADVANCE HEALTH CARE (UK) LTD,04/01/2022,506.06,6541-Domiciliary Care,THIRD PARTY PAYMENTS,PRIVATE CONTRACTOR,REVENUE
Walsall Council,http://opendatacommunities.org/id/metropolitan-district-council/walsall ,WC134-292,31.01.2022,ADULT SOCIAL CARE,ADVANCE HEALTH CARE (UK) LTD,04/01/2022,435.96,6541-Domiciliary Care,THIRD PARTY PAYMENTS,PRIVATE CONTRACTOR,REVENUE
Walsall Council,http://opendatacommunities.org/id/metropolitan-district-council/walsall ,WC134-293,31.01.2022,ADULT SOCIAL CARE,ADVANCE HEALTH CARE (UK) LTD,04/01/2022,435.96,6541-Domiciliary Care,THIRD PARTY PAYMENTS,PRIVATE CONTRACTOR,REVENUE
Walsall Council,http://opendatacommunities.org/id/metropolitan-district-council/walsall ,WC134-294,31.01.2022,ADULT SOCIAL CARE,ADVANCE HEALTH CARE (UK) LTD,04/01/2022,490.49,6541-Domiciliary Care,THIRD PARTY PAYMENTS,PRIVATE CONTRACTOR,REVENUE
Walsall Council,http://opendatacommunities.org/id/metropolitan-district-council/walsall ,WC134-295,31.01.2022,ADULT SOCIAL CARE,ADVANCE HEALTH CARE (UK) LTD,04/01/2022,490.49,6541-Domiciliary Care,THIRD PARTY PAYMENTS,PRIVATE CONTRACTOR,REVENUE
Walsall Council,http://opendatacommunities.org/id/metropolitan-district-council/walsall ,WC134-296,31.01.2022,ADULT SOCIAL CARE,ADVANCE HEALTH CARE (UK) LTD,04/01/2022,399.63,6541-Domiciliary Care,THIRD PARTY PAYMENTS,PRIVATE CONTRACTOR,REVENUE
Walsall Council,http://opendatacommunities.org/id/metropolitan-district-council/walsall ,WC134-297,31.01.2022,ADULT SOCIAL CARE,ADVANCE HEALTH CARE (UK) LTD,04/01/2022,326.97,6541-Domiciliary Care,THIRD PARTY PAYMENTS,PRIVATE CONTRACTOR,REVENUE
Walsall Council,http://opendatacommunities.org/id/metropolitan-district-council/walsall ,WC134-298,31.01.2022,ADULT SOCIAL CARE,ADVANCE HEALTH CARE (UK) LTD,04/01/2022,454.16,6541-Domiciliary Care,THIRD PARTY PAYMENTS,PRIVATE CONTRACTOR,REVENUE
Walsall Council,http://opendatacommunities.org/id/metropolitan-district-council/walsall ,WC134-299,31.01.2022,ADULT SOCIAL CARE,ADVANCE HEALTH CARE (UK) LTD,04/01/2022,490.49,6541-Domiciliary Care,THIRD PARTY PAYMENTS,PRIVATE CONTRACTOR,REVENUE
Walsall Council,http://opendatacommunities.org/id/metropolitan-district-council/walsall ,WC134-300,31.01.2022,ADULT SOCIAL CARE,ADVANCE HEALTH CARE (UK) LTD,04/01/2022,635.81,6541-Domiciliary Care,THIRD PARTY PAYMENTS,PRIVATE CONTRACTOR,REVENUE
Walsall Council,http://opendatacommunities.org/id/metropolitan-district-council/walsall ,WC134-301,31.01.2022,ADULT SOCIAL CARE,ADVANCE HEALTH CARE (UK) LTD,04/01/2022,537.20,6541-Domiciliary Care,THIRD PARTY PAYMENTS,PRIVATE CONTRACTOR,REVENUE
Walsall Council,http://opendatacommunities.org/id/metropolitan-district-council/walsall ,WC134-302,31.01.2022,ADULT SOCIAL CARE,ADVANCE HEALTH CARE (UK) LTD,04/01/2022,490.49,6541-Domiciliary Care,THIRD PARTY PAYMENTS,PRIVATE CONTRACTOR,REVENUE
Walsall Council,http://opendatacommunities.org/id/metropolitan-district-council/walsall ,WC134-303,31.01.2022,ADULT SOCIAL CARE,ADVANCE HEALTH CARE (UK) LTD,04/01/2022,311.40,6541-Domiciliary Care,THIRD PARTY PAYMENTS,PRIVATE CONTRACTOR,REVENUE
Walsall Council,http://opendatacommunities.org/id/metropolitan-district-council/walsall ,WC134-304,31.01.2022,ADULT SOCIAL CARE,ADVANCE HEALTH CARE (UK) LTD,04/01/2022,490.49,6541-Domiciliary Care,THIRD PARTY PAYMENTS,PRIVATE CONTRACTOR,REVENUE
Walsall Council,http://opendatacommunities.org/id/metropolitan-district-council/walsall ,WC134-305,31.01.2022,ADULT SOCIAL CARE,ADVANCE HEALTH CARE (UK) LTD,04/01/2022,490.49,6541-Domiciliary Care,THIRD PARTY PAYMENTS,PRIVATE CONTRACTOR,REVENUE
Walsall Council,http://opendatacommunities.org/id/metropolitan-district-council/walsall ,WC134-306,31.01.2022,ADULT SOCIAL CARE,ADVANCE HEALTH CARE (UK) LTD,04/01/2022,490.49,6541-Domiciliary Care,THIRD PARTY PAYMENTS,PRIVATE CONTRACTOR,REVENUE
Walsall Council,http://opendatacommunities.org/id/metropolitan-district-council/walsall ,WC134-307,31.01.2022,ADULT SOCIAL CARE,ADVANCE HEALTH CARE (UK) LTD,04/01/2022,363.30,6541-Domiciliary Care,THIRD PARTY PAYMENTS,PRIVATE CONTRACTOR,REVENUE
Walsall Council,http://opendatacommunities.org/id/metropolitan-district-council/walsall ,WC134-308,31.01.2022,ADULT SOCIAL CARE,ADVANCE HEALTH CARE (UK) LTD,04/01/2022,490.49,6541-Domiciliary Care,THIRD PARTY PAYMENTS,PRIVATE CONTRACTOR,REVENUE
Walsall Council,http://opendatacommunities.org/id/metropolitan-district-council/walsall ,WC134-309,31.01.2022,ADULT SOCIAL CARE,ADVANCE HEALTH CARE (UK) LTD,04/01/2022,490.49,6541-Domiciliary Care,THIRD PARTY PAYMENTS,PRIVATE CONTRACTOR,REVENUE
Walsall Council,http://opendatacommunities.org/id/metropolitan-district-council/walsall ,WC134-310,31.01.2022,ADULT SOCIAL CARE,ADVANCE HEALTH CARE (UK) LTD,04/01/2022,544.95,6541-Domiciliary Care,THIRD PARTY PAYMENTS,PRIVATE CONTRACTOR,REVENUE
Walsall Council,http://opendatacommunities.org/id/metropolitan-district-council/walsall ,WC134-311,31.01.2022,ADULT SOCIAL CARE,ADVANCE HEALTH CARE (UK) LTD,04/01/2022,420.39,6541-Domiciliary Care,THIRD PARTY PAYMENTS,PRIVATE CONTRACTOR,REVENUE
Walsall Council,http://opendatacommunities.org/id/metropolitan-district-council/walsall ,WC134-312,31.01.2022,ADULT SOCIAL CARE,ADVANCE HEALTH CARE (UK) LTD,04/01/2022,435.96,6541-Domiciliary Care,THIRD PARTY PAYMENTS,PRIVATE CONTRACTOR,REVENUE
Walsall Council,http://opendatacommunities.org/id/metropolitan-district-council/walsall ,WC134-313,31.01.2022,ADULT SOCIAL CARE,ADVANCE HEALTH CARE (UK) LTD,04/01/2022,326.97,6541-Domiciliary Care,THIRD PARTY PAYMENTS,PRIVATE CONTRACTOR,REVENUE
Walsall Council,http://opendatacommunities.org/id/metropolitan-district-council/walsall ,WC134-314,31.01.2022,ADULT SOCIAL CARE,ADVANCE HEALTH CARE (UK) LTD,04/01/2022,544.95,6541-Domiciliary Care,THIRD PARTY PAYMENTS,PRIVATE CONTRACTOR,REVENUE
Walsall Council,http://opendatacommunities.org/id/metropolitan-district-council/walsall ,WC134-315,31.01.2022,ADULT SOCIAL CARE,ADVANCE HEALTH CARE (UK) LTD,04/01/2022,490.49,6541-Domiciliary Care,THIRD PARTY PAYMENTS,PRIVATE CONTRACTOR,REVENUE
Walsall Council,http://opendatacommunities.org/id/metropolitan-district-council/walsall ,WC134-316,31.01.2022,ADULT SOCIAL CARE,ADVANCE HEALTH CARE (UK) LTD,04/01/2022,871.92,6541-Domiciliary Care,THIRD PARTY PAYMENTS,PRIVATE CONTRACTOR,REVENUE
Walsall Council,http://opendatacommunities.org/id/metropolitan-district-council/walsall ,WC134-317,31.01.2022,ADULT SOCIAL CARE,ADVANCE HEALTH CARE (UK) LTD,04/01/2022,381.50,6541-Domiciliary Care,THIRD PARTY PAYMENTS,PRIVATE CONTRACTOR,REVENUE
Walsall Council,http://opendatacommunities.org/id/metropolitan-district-council/walsall ,WC134-318,31.01.2022,ADULT SOCIAL CARE,ADVANCE HEALTH CARE (UK) LTD,04/01/2022,490.49,6541-Domiciliary Care,THIRD PARTY PAYMENTS,PRIVATE CONTRACTOR,REVENUE
Walsall Council,http://opendatacommunities.org/id/metropolitan-district-council/walsall ,WC134-319,31.01.2022,ADULT SOCIAL CARE,ADVANCE HEALTH CARE (UK) LTD,04/01/2022,490.49,6541-Domiciliary Care,THIRD PARTY PAYMENTS,PRIVATE CONTRACTOR,REVENUE
Walsall Council,http://opendatacommunities.org/id/metropolitan-district-council/walsall ,WC134-320,31.01.2022,ADULT SOCIAL CARE,ADVANCE HEALTH CARE (UK) LTD,04/01/2022,490.49,6541-Domiciliary Care,THIRD PARTY PAYMENTS,PRIVATE CONTRACTOR,REVENUE
Walsall Council,http://opendatacommunities.org/id/metropolitan-district-council/walsall ,WC134-321,31.01.2022,ADULT SOCIAL CARE,ADVANCE HEALTH CARE (UK) LTD,04/01/2022,256.93,6541-Domiciliary Care,THIRD PARTY PAYMENTS,PRIVATE CONTRACTOR,REVENUE
Walsall Council,http://opendatacommunities.org/id/metropolitan-district-council/walsall ,WC134-322,31.01.2022,ADULT SOCIAL CARE,ADVANCE HEALTH CARE (UK) LTD,04/01/2022,490.49,6541-Domiciliary Care,THIRD PARTY PAYMENTS,PRIVATE CONTRACTOR,REVENUE
Walsall Council,http://opendatacommunities.org/id/metropolitan-district-council/walsall ,WC134-323,31.01.2022,ADULT SOCIAL CARE,ADVANCE HEALTH CARE (UK) LTD,04/01/2022,490.49,6541-Domiciliary Care,THIRD PARTY PAYMENTS,PRIVATE CONTRACTOR,REVENUE
Walsall Council,http://opendatacommunities.org/id/metropolitan-district-council/walsall ,WC134-324,31.01.2022,ADULT SOCIAL CARE,ADVANCE HEALTH CARE (UK) LTD,04/01/2022,326.97,6541-Domiciliary Care,THIRD PARTY PAYMENTS,PRIVATE CONTRACTOR,REVENUE
Walsall Council,http://opendatacommunities.org/id/metropolitan-district-council/walsall ,WC134-325,31.01.2022,ADULT SOCIAL CARE,ADVANCE HEALTH CARE (UK) LTD,04/01/2022,490.49,6541-Domiciliary Care,THIRD PARTY PAYMENTS,PRIVATE CONTRACTOR,REVENUE
Walsall Council,http://opendatacommunities.org/id/metropolitan-district-council/walsall ,WC134-326,31.01.2022,ADULT SOCIAL CARE,ADVANCE HEALTH CARE (UK) LTD,04/01/2022,490.49,6541-Domiciliary Care,THIRD PARTY PAYMENTS,PRIVATE CONTRACTOR,REVENUE
Walsall Council,http://opendatacommunities.org/id/metropolitan-district-council/walsall ,WC134-327,31.01.2022,ADULT SOCIAL CARE,ADVANCE HEALTH CARE (UK) LTD,04/01/2022,435.96,6541-Domiciliary Care,THIRD PARTY PAYMENTS,PRIVATE CONTRACTOR,REVENUE
Walsall Council,http://opendatacommunities.org/id/metropolitan-district-council/walsall ,WC134-328,31.01.2022,ADULT SOCIAL CARE,ADVANCE HEALTH CARE (UK) LTD,04/01/2022,435.96,6541-Domiciliary Care,THIRD PARTY PAYMENTS,PRIVATE CONTRACTOR,REVENUE
Walsall Council,http://opendatacommunities.org/id/metropolitan-district-council/walsall ,WC134-329,31.01.2022,ADULT SOCIAL CARE,ADVANCE HEALTH CARE (UK) LTD,04/01/2022,381.50,6541-Domiciliary Care,THIRD PARTY PAYMENTS,PRIVATE CONTRACTOR,REVENUE
Walsall Council,http://opendatacommunities.org/id/metropolitan-district-council/walsall ,WC134-330,31.01.2022,ADULT SOCIAL CARE,ADVANCE HEALTH CARE (UK) LTD,04/01/2022,490.49,6541-Domiciliary Care,THIRD PARTY PAYMENTS,PRIVATE CONTRACTOR,REVENUE
Walsall Council,http://opendatacommunities.org/id/metropolitan-district-council/walsall ,WC134-331,31.01.2022,ADULT SOCIAL CARE,ADVANCE HEALTH CARE (UK) LTD,04/01/2022,454.16,6541-Domiciliary Care,THIRD PARTY PAYMENTS,PRIVATE CONTRACTOR,REVENUE
Walsall Council,http://opendatacommunities.org/id/metropolitan-district-council/walsall ,WC134-332,31.01.2022,ADULT SOCIAL CARE,ADVANCE HEALTH CARE (UK) LTD,13/01/2022,872.48,6541-Domiciliary Care,THIRD PARTY PAYMENTS,PRIVATE CONTRACTOR,REVENUE
Walsall Council,http://opendatacommunities.org/id/metropolitan-district-council/walsall ,WC134-333,31.01.2022,ADULT SOCIAL CARE,ADVANCE HEALTH CARE (UK) LTD,13/01/2022,373.92,6541-Domiciliary Care,THIRD PARTY PAYMENTS,PRIVATE CONTRACTOR,REVENUE
Walsall Council,http://opendatacommunities.org/id/metropolitan-district-council/walsall ,WC134-334,31.01.2022,ADULT SOCIAL CARE,ADVANCE HEALTH CARE (UK) LTD,13/01/2022,363.32,6541-Domiciliary Care,THIRD PARTY PAYMENTS,PRIVATE CONTRACTOR,REVENUE
Walsall Council,http://opendatacommunities.org/id/metropolitan-district-council/walsall ,WC134-335,31.01.2022,ADULT SOCIAL CARE,ADVANCE HEALTH CARE (UK) LTD,13/01/2022,961.93,6541-Domiciliary Care,THIRD PARTY PAYMENTS,PRIVATE CONTRACTOR,REVENUE
Walsall Council,http://opendatacommunities.org/id/metropolitan-district-council/walsall ,WC134-336,31.01.2022,ADULT SOCIAL CARE,ADVANCE HEALTH CARE (UK) LTD,13/01/2022,"1,121.12",6541-Domiciliary Care,THIRD PARTY PAYMENTS,PRIVATE CONTRACTOR,REVENUE
Walsall Council,http://opendatacommunities.org/id/metropolitan-district-council/walsall ,WC134-337,31.01.2022,ADULT SOCIAL CARE,ADVANCE HEALTH CARE (UK) LTD,13/01/2022,"1,261.26",6541-Domiciliary Care,THIRD PARTY PAYMENTS,PRIVATE CONTRACTOR,REVENUE
Walsall Council,http://opendatacommunities.org/id/metropolitan-district-council/walsall ,WC134-338,31.01.2022,ADULT SOCIAL CARE,ADVANCE HEALTH CARE (UK) LTD,13/01/2022,942.05,6541-Domiciliary Care,THIRD PARTY PAYMENTS,PRIVATE CONTRACTOR,REVENUE
Walsall Council,http://opendatacommunities.org/id/metropolitan-district-council/walsall ,WC134-339,31.01.2022,ADULT SOCIAL CARE,ADVANCE HEALTH CARE (UK) LTD,13/01/2022,"2,179.80",6541-Domiciliary Care,THIRD PARTY PAYMENTS,PRIVATE CONTRACTOR,REVENUE
Walsall Council,http://opendatacommunities.org/id/metropolitan-district-council/walsall ,WC134-340,31.01.2022,ADULT SOCIAL CARE,ADVANCE HEALTH CARE (UK) LTD,13/01/2022,435.96,6541-Domiciliary Care,THIRD PARTY PAYMENTS,PRIVATE CONTRACTOR,REVENUE
Walsall Council,http://opendatacommunities.org/id/metropolitan-district-council/walsall ,WC134-341,31.01.2022,ADULT SOCIAL CARE,ADVANCE HEALTH CARE (UK) LTD,13/01/2022,"1,307.88",6541-Domiciliary Care,THIRD PARTY PAYMENTS,PRIVATE CONTRACTOR,REVENUE
Walsall Council,http://opendatacommunities.org/id/metropolitan-district-council/walsall ,WC134-342,31.01.2022,ADULT SOCIAL CARE,ADVANCE HEALTH CARE (UK) LTD,18/01/2022,833.03,6541-Domiciliary Care,THIRD PARTY PAYMENTS,PRIVATE CONTRACTOR,REVENUE
Walsall Council,http://opendatacommunities.org/id/metropolitan-district-council/walsall ,WC134-343,31.01.2022,ADULT SOCIAL CARE,ADVANCE HEALTH CARE (UK) LTD,18/01/2022,490.49,6541-Domiciliary Care,THIRD PARTY PAYMENTS,PRIVATE CONTRACTOR,REVENUE
Walsall Council,http://opendatacommunities.org/id/metropolitan-district-council/walsall ,WC134-344,31.01.2022,ADULT SOCIAL CARE,ADVANCE HEALTH CARE (UK) LTD,18/01/2022,490.49,6541-Domiciliary Care,THIRD PARTY PAYMENTS,PRIVATE CONTRACTOR,REVENUE
Walsall Council,http://opendatacommunities.org/id/metropolitan-district-council/walsall ,WC134-345,31.01.2022,ADULT SOCIAL CARE,ADVANCE HEALTH CARE (UK) LTD,18/01/2022,490.49,6541-Domiciliary Care,THIRD PARTY PAYMENTS,PRIVATE CONTRACTOR,REVENUE
Walsall Council,http://opendatacommunities.org/id/metropolitan-district-council/walsall ,WC134-346,31.01.2022,ADULT SOCIAL CARE,ADVANCE HEALTH CARE (UK) LTD,18/01/2022,435.96,6541-Domiciliary Care,THIRD PARTY PAYMENTS,PRIVATE CONTRACTOR,REVENUE
Walsall Council,http://opendatacommunities.org/id/metropolitan-district-council/walsall ,WC134-347,31.01.2022,ADULT SOCIAL CARE,ADVANCE HEALTH CARE (UK) LTD,18/01/2022,490.49,6541-Domiciliary Care,THIRD PARTY PAYMENTS,PRIVATE CONTRACTOR,REVENUE
Walsall Council,http://opendatacommunities.org/id/metropolitan-district-council/walsall ,WC134-348,31.01.2022,ADULT SOCIAL CARE,ADVANCE HEALTH CARE (UK) LTD,18/01/2022,635.81,6541-Domiciliary Care,THIRD PARTY PAYMENTS,PRIVATE CONTRACTOR,REVENUE
Walsall Council,http://opendatacommunities.org/id/metropolitan-district-council/walsall ,WC134-349,31.01.2022,ADULT SOCIAL CARE,ADVANCE HEALTH CARE (UK) LTD,18/01/2022,537.20,6541-Domiciliary Care,THIRD PARTY PAYMENTS,PRIVATE CONTRACTOR,REVENUE
Walsall Council,http://opendatacommunities.org/id/metropolitan-district-council/walsall ,WC134-350,31.01.2022,ADULT SOCIAL CARE,ADVANCE HEALTH CARE (UK) LTD,18/01/2022,490.49,6541-Domiciliary Care,THIRD PARTY PAYMENTS,PRIVATE CONTRACTOR,REVENUE
Walsall Council,http://opendatacommunities.org/id/metropolitan-district-council/walsall ,WC134-351,31.01.2022,ADULT SOCIAL CARE,ADVANCE HEALTH CARE (UK) LTD,18/01/2022,490.49,6541-Domiciliary Care,THIRD PARTY PAYMENTS,PRIVATE CONTRACTOR,REVENUE
Walsall Council,http://opendatacommunities.org/id/metropolitan-district-council/walsall ,WC134-352,31.01.2022,ADULT SOCIAL CARE,ADVANCE HEALTH CARE (UK) LTD,18/01/2022,490.49,6541-Domiciliary Care,THIRD PARTY PAYMENTS,PRIVATE CONTRACTOR,REVENUE
Walsall Council,http://opendatacommunities.org/id/metropolitan-district-council/walsall ,WC134-353,31.01.2022,ADULT SOCIAL CARE,ADVANCE HEALTH CARE (UK) LTD,18/01/2022,544.95,6541-Domiciliary Care,THIRD PARTY PAYMENTS,PRIVATE CONTRACTOR,REVENUE
Walsall Council,http://opendatacommunities.org/id/metropolitan-district-council/walsall ,WC134-354,31.01.2022,ADULT SOCIAL CARE,ADVANCE HEALTH CARE (UK) LTD,18/01/2022,420.39,6541-Domiciliary Care,THIRD PARTY PAYMENTS,PRIVATE CONTRACTOR,REVENUE
Walsall Council,http://opendatacommunities.org/id/metropolitan-district-council/walsall ,WC134-355,31.01.2022,ADULT SOCIAL CARE,ADVANCE HEALTH CARE (UK) LTD,18/01/2022,435.96,6541-Domiciliary Care,THIRD PARTY PAYMENTS,PRIVATE CONTRACTOR,REVENUE
Walsall Council,http://opendatacommunities.org/id/metropolitan-district-council/walsall ,WC134-356,31.01.2022,ADULT SOCIAL CARE,ADVANCE HEALTH CARE (UK) LTD,18/01/2022,544.95,6541-Domiciliary Care,THIRD PARTY PAYMENTS,PRIVATE CONTRACTOR,REVENUE
Walsall Council,http://opendatacommunities.org/id/metropolitan-district-council/walsall ,WC134-357,31.01.2022,ADULT SOCIAL CARE,ADVANCE HEALTH CARE (UK) LTD,18/01/2022,490.49,6541-Domiciliary Care,THIRD PARTY PAYMENTS,PRIVATE CONTRACTOR,REVENUE
Walsall Council,http://opendatacommunities.org/id/metropolitan-district-council/walsall ,WC134-358,31.01.2022,ADULT SOCIAL CARE,ADVANCE HEALTH CARE (UK) LTD,18/01/2022,490.49,6541-Domiciliary Care,THIRD PARTY PAYMENTS,PRIVATE CONTRACTOR,REVENUE
Walsall Council,http://opendatacommunities.org/id/metropolitan-district-council/walsall ,WC134-359,31.01.2022,ADULT SOCIAL CARE,ADVANCE HEALTH CARE (UK) LTD,18/01/2022,490.49,6541-Domiciliary Care,THIRD PARTY PAYMENTS,PRIVATE CONTRACTOR,REVENUE
Walsall Council,http://opendatacommunities.org/id/metropolitan-district-council/walsall ,WC134-360,31.01.2022,ADULT SOCIAL CARE,ADVANCE HEALTH CARE (UK) LTD,18/01/2022,435.96,6541-Domiciliary Care,THIRD PARTY PAYMENTS,PRIVATE CONTRACTOR,REVENUE
Walsall Council,http://opendatacommunities.org/id/metropolitan-district-council/walsall ,WC134-361,31.01.2022,ADULT SOCIAL CARE,ADVANCE HEALTH CARE (UK) LTD,18/01/2022,435.96,6541-Domiciliary Care,THIRD PARTY PAYMENTS,PRIVATE CONTRACTOR,REVENUE
Walsall Council,http://opendatacommunities.org/id/metropolitan-district-council/walsall ,WC134-362,31.01.2022,ADULT SOCIAL CARE,ADVANCE HEALTH CARE (UK) LTD,18/01/2022,490.49,6541-Domiciliary Care,THIRD PARTY PAYMENTS,PRIVATE CONTRACTOR,REVENUE
Walsall Council,http://opendatacommunities.org/id/metropolitan-district-council/walsall ,WC134-363,31.01.2022,ADULT SOCIAL CARE,ADVANCE HEALTH CARE (UK) LTD,18/01/2022,490.49,6541-Domiciliary Care,THIRD PARTY PAYMENTS,PRIVATE CONTRACTOR,REVENUE
Walsall Council,http://opendatacommunities.org/id/metropolitan-district-council/walsall ,WC134-364,31.01.2022,ADULT SOCIAL CARE,ADVANCE HEALTH CARE (UK) LTD,18/01/2022,490.49,6541-Domiciliary Care,THIRD PARTY PAYMENTS,PRIVATE CONTRACTOR,REVENUE
Walsall Council,http://opendatacommunities.org/id/metropolitan-district-council/walsall ,WC134-365,31.01.2022,ADULT SOCIAL CARE,ADVANCE HEALTH CARE (UK) LTD,18/01/2022,363.30,6541-Domiciliary Care,THIRD PARTY PAYMENTS,PRIVATE CONTRACTOR,REVENUE
Walsall Council,http://opendatacommunities.org/id/metropolitan-district-council/walsall ,WC134-366,31.01.2022,ADULT SOCIAL CARE,ADVANCE HEALTH CARE (UK) LTD,18/01/2022,381.50,6541-Domiciliary Care,THIRD PARTY PAYMENTS,PRIVATE CONTRACTOR,REVENUE
Walsall Council,http://opendatacommunities.org/id/metropolitan-district-council/walsall ,WC134-367,31.01.2022,ADULT SOCIAL CARE,ADVANCE HEALTH CARE (UK) LTD,18/01/2022,490.49,6541-Domiciliary Care,THIRD PARTY PAYMENTS,PRIVATE CONTRACTOR,REVENUE
Walsall Council,http://opendatacommunities.org/id/metropolitan-district-council/walsall ,WC134-368,31.01.2022,ADULT SOCIAL CARE,ADVANCE HEALTH CARE (UK) LTD,18/01/2022,454.16,6541-Domiciliary Care,THIRD PARTY PAYMENTS,PRIVATE CONTRACTOR,REVENUE
Walsall Council,http://opendatacommunities.org/id/metropolitan-district-council/walsall ,WC134-369,31.01.2022,ADULT SOCIAL CARE,ADVANCE HEALTH CARE (UK) LTD,18/01/2022,435.96,6541-Domiciliary Care,THIRD PARTY PAYMENTS,PRIVATE CONTRACTOR,REVENUE
Walsall Council,http://opendatacommunities.org/id/metropolitan-district-council/walsall ,WC134-370,31.01.2022,ADULT SOCIAL CARE,ADVANCE HEALTH CARE (UK) LTD,18/01/2022,490.49,6541-Domiciliary Care,THIRD PARTY PAYMENTS,PRIVATE CONTRACTOR,REVENUE
Walsall Council,http://opendatacommunities.org/id/metropolitan-district-council/walsall ,WC134-371,31.01.2022,ADULT SOCIAL CARE,ADVANCE HEALTH CARE (UK) LTD,18/01/2022,326.97,6541-Domiciliary Care,THIRD PARTY PAYMENTS,PRIVATE CONTRACTOR,REVENUE
Walsall Council,http://opendatacommunities.org/id/metropolitan-district-council/walsall ,WC134-372,31.01.2022,ADULT SOCIAL CARE,ADVANCE HEALTH CARE (UK) LTD,18/01/2022,454.16,6541-Domiciliary Care,THIRD PARTY PAYMENTS,PRIVATE CONTRACTOR,REVENUE
Walsall Council,http://opendatacommunities.org/id/metropolitan-district-council/walsall ,WC134-373,31.01.2022,ADULT SOCIAL CARE,ADVANCE HEALTH CARE (UK) LTD,18/01/2022,490.49,6541-Domiciliary Care,THIRD PARTY PAYMENTS,PRIVATE CONTRACTOR,REVENUE
Walsall Council,http://opendatacommunities.org/id/metropolitan-district-council/walsall ,WC134-374,31.01.2022,ADULT SOCIAL CARE,ADVANCE HEALTH CARE (UK) LTD,18/01/2022,490.49,6541-Domiciliary Care,THIRD PARTY PAYMENTS,PRIVATE CONTRACTOR,REVENUE
Walsall Council,http://opendatacommunities.org/id/metropolitan-district-council/walsall ,WC134-375,31.01.2022,ADULT SOCIAL CARE,ADVANCE HEALTH CARE (UK) LTD,18/01/2022,871.92,6541-Domiciliary Care,THIRD PARTY PAYMENTS,PRIVATE CONTRACTOR,REVENUE
Walsall Council,http://opendatacommunities.org/id/metropolitan-district-council/walsall ,WC134-376,31.01.2022,ADULT SOCIAL CARE,ADVANCE HEALTH CARE (UK) LTD,18/01/2022,381.50,6541-Domiciliary Care,THIRD PARTY PAYMENTS,PRIVATE CONTRACTOR,REVENUE
Walsall Council,http://opendatacommunities.org/id/metropolitan-district-council/walsall ,WC134-377,31.01.2022,ADULT SOCIAL CARE,ADVANCE HEALTH CARE (UK) LTD,18/01/2022,506.06,6541-Domiciliary Care,THIRD PARTY PAYMENTS,PRIVATE CONTRACTOR,REVENUE
Walsall Council,http://opendatacommunities.org/id/metropolitan-district-council/walsall ,WC134-378,31.01.2022,ADULT SOCIAL CARE,ADVANCE HEALTH CARE (UK) LTD,18/01/2022,435.96,6541-Domiciliary Care,THIRD PARTY PAYMENTS,PRIVATE CONTRACTOR,REVENUE
Walsall Council,http://opendatacommunities.org/id/metropolitan-district-council/walsall ,WC134-379,31.01.2022,ADULT SOCIAL CARE,ADVANCE HEALTH CARE (UK) LTD,18/01/2022,490.49,6541-Domiciliary Care,THIRD PARTY PAYMENTS,PRIVATE CONTRACTOR,REVENUE
Walsall Council,http://opendatacommunities.org/id/metropolitan-district-council/walsall ,WC134-380,31.01.2022,ADULT SOCIAL CARE,ADVANCE HEALTH CARE (UK) LTD,18/01/2022,326.97,6541-Domiciliary Care,THIRD PARTY PAYMENTS,PRIVATE CONTRACTOR,REVENUE
Walsall Council,http://opendatacommunities.org/id/metropolitan-district-council/walsall ,WC134-381,31.01.2022,ADULT SOCIAL CARE,ADVANCE HEALTH CARE (UK) LTD,18/01/2022,490.49,6541-Domiciliary Care,THIRD PARTY PAYMENTS,PRIVATE CONTRACTOR,REVENUE
Walsall Council,http://opendatacommunities.org/id/metropolitan-district-council/walsall ,WC134-382,31.01.2022,ADULT SOCIAL CARE,ADVANCE HEALTH CARE (UK) LTD,18/01/2022,490.49,6541-Domiciliary Care,THIRD PARTY PAYMENTS,PRIVATE CONTRACTOR,REVENUE
Walsall Council,http://opendatacommunities.org/id/metropolitan-district-council/walsall ,WC134-383,31.01.2022,ADULT SOCIAL CARE,ADVANCE HEALTH CARE (UK) LTD,18/01/2022,490.49,6541-Domiciliary Care,THIRD PARTY PAYMENTS,PRIVATE CONTRACTOR,REVENUE
Walsall Council,http://opendatacommunities.org/id/metropolitan-district-council/walsall ,WC134-384,31.01.2022,ADULT SOCIAL CARE,ADVANCE HEALTH CARE (UK) LTD,18/01/2022,544.95,6541-Domiciliary Care,THIRD PARTY PAYMENTS,PRIVATE CONTRACTOR,REVENUE
Walsall Council,http://opendatacommunities.org/id/metropolitan-district-council/walsall ,WC134-385,31.01.2022,ADULT SOCIAL CARE,ADVANCE HEALTH CARE (UK) LTD,18/01/2022,435.96,6541-Domiciliary Care,THIRD PARTY PAYMENTS,PRIVATE CONTRACTOR,REVENUE
Walsall Council,http://opendatacommunities.org/id/metropolitan-district-council/walsall ,WC134-386,31.01.2022,ADULT SOCIAL CARE,ADVANCE HEALTH CARE (UK) LTD,18/01/2022,435.96,6541-Domiciliary Care,THIRD PARTY PAYMENTS,PRIVATE CONTRACTOR,REVENUE
Walsall Council,http://opendatacommunities.org/id/metropolitan-district-council/walsall ,WC134-387,31.01.2022,ADULT SOCIAL CARE,ADVANCE HEALTH CARE (UK) LTD,18/01/2022,490.49,6541-Domiciliary Care,THIRD PARTY PAYMENTS,PRIVATE CONTRACTOR,REVENUE
Walsall Council,http://opendatacommunities.org/id/metropolitan-district-council/walsall ,WC134-388,31.01.2022,ADULT SOCIAL CARE,ADVANCE HEALTH CARE (UK) LTD,18/01/2022,490.49,6541-Domiciliary Care,THIRD PARTY PAYMENTS,PRIVATE CONTRACTOR,REVENUE
Walsall Council,http://opendatacommunities.org/id/metropolitan-district-council/walsall ,WC134-389,31.01.2022,ADULT SOCIAL CARE,ADVANCE HEALTH CARE (UK) LTD,18/01/2022,635.81,6541-Domiciliary Care,THIRD PARTY PAYMENTS,PRIVATE CONTRACTOR,REVENUE
Walsall Council,http://opendatacommunities.org/id/metropolitan-district-council/walsall ,WC134-390,31.01.2022,ADULT SOCIAL CARE,ADVANCE HEALTH CARE (UK) LTD,18/01/2022,537.20,6541-Domiciliary Care,THIRD PARTY PAYMENTS,PRIVATE CONTRACTOR,REVENUE
Walsall Council,http://opendatacommunities.org/id/metropolitan-district-council/walsall ,WC134-391,31.01.2022,ADULT SOCIAL CARE,ADVANCE HEALTH CARE (UK) LTD,18/01/2022,490.49,6541-Domiciliary Care,THIRD PARTY PAYMENTS,PRIVATE CONTRACTOR,REVENUE
Walsall Council,http://opendatacommunities.org/id/metropolitan-district-council/walsall ,WC134-392,31.01.2022,ADULT SOCIAL CARE,ADVANCE HEALTH CARE (UK) LTD,18/01/2022,506.06,6541-Domiciliary Care,THIRD PARTY PAYMENTS,PRIVATE CONTRACTOR,REVENUE
Walsall Council,http://opendatacommunities.org/id/metropolitan-district-council/walsall ,WC134-393,31.01.2022,ADULT SOCIAL CARE,ADVANCE HEALTH CARE (UK) LTD,18/01/2022,435.96,6541-Domiciliary Care,THIRD PARTY PAYMENTS,PRIVATE CONTRACTOR,REVENUE
Walsall Council,http://opendatacommunities.org/id/metropolitan-district-council/walsall ,WC134-394,31.01.2022,ADULT SOCIAL CARE,ADVANCE HEALTH CARE (UK) LTD,18/01/2022,833.03,6541-Domiciliary Care,THIRD PARTY PAYMENTS,PRIVATE CONTRACTOR,REVENUE
Walsall Council,http://opendatacommunities.org/id/metropolitan-district-council/walsall ,WC134-395,31.01.2022,ADULT SOCIAL CARE,ADVANCE HEALTH CARE (UK) LTD,18/01/2022,490.49,6541-Domiciliary Care,THIRD PARTY PAYMENTS,PRIVATE CONTRACTOR,REVENUE
Walsall Council,http://opendatacommunities.org/id/metropolitan-district-council/walsall ,WC134-396,31.01.2022,ADULT SOCIAL CARE,ADVANCE HEALTH CARE (UK) LTD,18/01/2022,490.49,6541-Domiciliary Care,THIRD PARTY PAYMENTS,PRIVATE CONTRACTOR,REVENUE
Walsall Council,http://opendatacommunities.org/id/metropolitan-district-council/walsall ,WC134-397,31.01.2022,ADULT SOCIAL CARE,ADVANCE HEALTH CARE (UK) LTD,18/01/2022,490.49,6541-Domiciliary Care,THIRD PARTY PAYMENTS,PRIVATE CONTRACTOR,REVENUE
Walsall Council,http://opendatacommunities.org/id/metropolitan-district-council/walsall ,WC134-398,31.01.2022,ADULT SOCIAL CARE,ADVANCE HEALTH CARE (UK) LTD,18/01/2022,435.96,6541-Domiciliary Care,THIRD PARTY PAYMENTS,PRIVATE CONTRACTOR,REVENUE
Walsall Council,http://opendatacommunities.org/id/metropolitan-district-council/walsall ,WC134-399,31.01.2022,ADULT SOCIAL CARE,ADVANCE HEALTH CARE (UK) LTD,18/01/2022,326.97,6541-Domiciliary Care,THIRD PARTY PAYMENTS,PRIVATE CONTRACTOR,REVENUE
Walsall Council,http://opendatacommunities.org/id/metropolitan-district-council/walsall ,WC134-400,31.01.2022,ADULT SOCIAL CARE,ADVANCE HEALTH CARE (UK) LTD,18/01/2022,454.16,6541-Domiciliary Care,THIRD PARTY PAYMENTS,PRIVATE CONTRACTOR,REVENUE
Walsall Council,http://opendatacommunities.org/id/metropolitan-district-council/walsall ,WC134-401,31.01.2022,ADULT SOCIAL CARE,ADVANCE HEALTH CARE (UK) LTD,18/01/2022,490.49,6541-Domiciliary Care,THIRD PARTY PAYMENTS,PRIVATE CONTRACTOR,REVENUE
Walsall Council,http://opendatacommunities.org/id/metropolitan-district-council/walsall ,WC134-402,31.01.2022,ADULT SOCIAL CARE,ADVANCE HEALTH CARE (UK) LTD,18/01/2022,871.92,6541-Domiciliary Care,THIRD PARTY PAYMENTS,PRIVATE CONTRACTOR,REVENUE
Walsall Council,http://opendatacommunities.org/id/metropolitan-district-council/walsall ,WC134-403,31.01.2022,ADULT SOCIAL CARE,ADVANCE HEALTH CARE (UK) LTD,18/01/2022,381.50,6541-Domiciliary Care,THIRD PARTY PAYMENTS,PRIVATE CONTRACTOR,REVENUE
Walsall Council,http://opendatacommunities.org/id/metropolitan-district-council/walsall ,WC134-404,31.01.2022,ADULT SOCIAL CARE,ADVANCE HEALTH CARE (UK) LTD,18/01/2022,490.49,6541-Domiciliary Care,THIRD PARTY PAYMENTS,PRIVATE CONTRACTOR,REVENUE
Walsall Council,http://opendatacommunities.org/id/metropolitan-district-council/walsall ,WC134-405,31.01.2022,ADULT SOCIAL CARE,ADVANCE HEALTH CARE (UK) LTD,18/01/2022,490.49,6541-Domiciliary Care,THIRD PARTY PAYMENTS,PRIVATE CONTRACTOR,REVENUE
Walsall Council,http://opendatacommunities.org/id/metropolitan-district-council/walsall ,WC134-406,31.01.2022,ADULT SOCIAL CARE,ADVANCE HEALTH CARE (UK) LTD,18/01/2022,490.49,6541-Domiciliary Care,THIRD PARTY PAYMENTS,PRIVATE CONTRACTOR,REVENUE
Walsall Council,http://opendatacommunities.org/id/metropolitan-district-council/walsall ,WC134-407,31.01.2022,ADULT SOCIAL CARE,ADVANCE HEALTH CARE (UK) LTD,18/01/2022,363.30,6541-Domiciliary Care,THIRD PARTY PAYMENTS,PRIVATE CONTRACTOR,REVENUE
Walsall Council,http://opendatacommunities.org/id/metropolitan-district-council/walsall ,WC134-408,31.01.2022,ADULT SOCIAL CARE,ADVANCE HEALTH CARE (UK) LTD,18/01/2022,490.49,6541-Domiciliary Care,THIRD PARTY PAYMENTS,PRIVATE CONTRACTOR,REVENUE
Walsall Council,http://opendatacommunities.org/id/metropolitan-district-council/walsall ,WC134-409,31.01.2022,ADULT SOCIAL CARE,ADVANCE HEALTH CARE (UK) LTD,18/01/2022,490.49,6541-Domiciliary Care,THIRD PARTY PAYMENTS,PRIVATE CONTRACTOR,REVENUE
Walsall Council,http://opendatacommunities.org/id/metropolitan-district-council/walsall ,WC134-410,31.01.2022,ADULT SOCIAL CARE,ADVANCE HEALTH CARE (UK) LTD,18/01/2022,544.95,6541-Domiciliary Care,THIRD PARTY PAYMENTS,PRIVATE CONTRACTOR,REVENUE
Walsall Council,http://opendatacommunities.org/id/metropolitan-district-council/walsall ,WC134-411,31.01.2022,ADULT SOCIAL CARE,ADVANCE HEALTH CARE (UK) LTD,18/01/2022,420.39,6541-Domiciliary Care,THIRD PARTY PAYMENTS,PRIVATE CONTRACTOR,REVENUE
Walsall Council,http://opendatacommunities.org/id/metropolitan-district-council/walsall ,WC134-412,31.01.2022,ADULT SOCIAL CARE,ADVANCE HEALTH CARE (UK) LTD,18/01/2022,435.96,6541-Domiciliary Care,THIRD PARTY PAYMENTS,PRIVATE CONTRACTOR,REVENUE
Walsall Council,http://opendatacommunities.org/id/metropolitan-district-council/walsall ,WC134-413,31.01.2022,ADULT SOCIAL CARE,ADVANCE HEALTH CARE (UK) LTD,18/01/2022,326.97,6541-Domiciliary Care,THIRD PARTY PAYMENTS,PRIVATE CONTRACTOR,REVENUE
Walsall Council,http://opendatacommunities.org/id/metropolitan-district-council/walsall ,WC134-414,31.01.2022,ADULT SOCIAL CARE,ADVANCE HEALTH CARE (UK) LTD,18/01/2022,544.95,6541-Domiciliary Care,THIRD PARTY PAYMENTS,PRIVATE CONTRACTOR,REVENUE
Walsall Council,http://opendatacommunities.org/id/metropolitan-district-council/walsall ,WC134-415,31.01.2022,ADULT SOCIAL CARE,ADVANCE HEALTH CARE (UK) LTD,18/01/2022,490.49,6541-Domiciliary Care,THIRD PARTY PAYMENTS,PRIVATE CONTRACTOR,REVENUE
Walsall Council,http://opendatacommunities.org/id/metropolitan-district-council/walsall ,WC134-416,31.01.2022,ADULT SOCIAL CARE,ADVANCE HEALTH CARE (UK) LTD,18/01/2022,490.49,6541-Domiciliary Care,THIRD PARTY PAYMENTS,PRIVATE CONTRACTOR,REVENUE
Walsall Council,http://opendatacommunities.org/id/metropolitan-district-council/walsall ,WC134-417,31.01.2022,ADULT SOCIAL CARE,ADVANCE HEALTH CARE (UK) LTD,18/01/2022,435.96,6541-Domiciliary Care,THIRD PARTY PAYMENTS,PRIVATE CONTRACTOR,REVENUE
Walsall Council,http://opendatacommunities.org/id/metropolitan-district-council/walsall ,WC134-418,31.01.2022,ADULT SOCIAL CARE,ADVANCE HEALTH CARE (UK) LTD,18/01/2022,435.96,6541-Domiciliary Care,THIRD PARTY PAYMENTS,PRIVATE CONTRACTOR,REVENUE
Walsall Council,http://opendatacommunities.org/id/metropolitan-district-council/walsall ,WC134-419,31.01.2022,ADULT SOCIAL CARE,ADVANCE HEALTH CARE (UK) LTD,18/01/2022,490.49,6541-Domiciliary Care,THIRD PARTY PAYMENTS,PRIVATE CONTRACTOR,REVENUE
Walsall Council,http://opendatacommunities.org/id/metropolitan-district-council/walsall ,WC134-420,31.01.2022,ADULT SOCIAL CARE,ADVANCE HEALTH CARE (UK) LTD,18/01/2022,490.49,6541-Domiciliary Care,THIRD PARTY PAYMENTS,PRIVATE CONTRACTOR,REVENUE
Walsall Council,http://opendatacommunities.org/id/metropolitan-district-council/walsall ,WC134-421,31.01.2022,ADULT SOCIAL CARE,ADVANCE HEALTH CARE (UK) LTD,18/01/2022,490.49,6541-Domiciliary Care,THIRD PARTY PAYMENTS,PRIVATE CONTRACTOR,REVENUE
Walsall Council,http://opendatacommunities.org/id/metropolitan-district-council/walsall ,WC134-422,31.01.2022,ADULT SOCIAL CARE,ADVANCE HEALTH CARE (UK) LTD,18/01/2022,490.49,6541-Domiciliary Care,THIRD PARTY PAYMENTS,PRIVATE CONTRACTOR,REVENUE
Walsall Council,http://opendatacommunities.org/id/metropolitan-district-council/walsall ,WC134-423,31.01.2022,ADULT SOCIAL CARE,ADVANCE HEALTH CARE (UK) LTD,18/01/2022,544.95,6541-Domiciliary Care,THIRD PARTY PAYMENTS,PRIVATE CONTRACTOR,REVENUE
Walsall Council,http://opendatacommunities.org/id/metropolitan-district-council/walsall ,WC134-424,31.01.2022,ADULT SOCIAL CARE,ADVANCE HEALTH CARE (UK) LTD,18/01/2022,435.96,6541-Domiciliary Care,THIRD PARTY PAYMENTS,PRIVATE CONTRACTOR,REVENUE
Walsall Council,http://opendatacommunities.org/id/metropolitan-district-council/walsall ,WC134-425,31.01.2022,ADULT SOCIAL CARE,ADVANCE HEALTH CARE (UK) LTD,18/01/2022,256.93,6541-Domiciliary Care,THIRD PARTY PAYMENTS,PRIVATE CONTRACTOR,REVENUE
Walsall Council,http://opendatacommunities.org/id/metropolitan-district-council/walsall ,WC134-426,31.01.2022,ADULT SOCIAL CARE,ADVANCE HEALTH CARE (UK) LTD,18/01/2022,490.49,6541-Domiciliary Care,THIRD PARTY PAYMENTS,PRIVATE CONTRACTOR,REVENUE
Walsall Council,http://opendatacommunities.org/id/metropolitan-district-council/walsall ,WC134-427,31.01.2022,ADULT SOCIAL CARE,ADVANCE HEALTH CARE (UK) LTD,18/01/2022,381.50,6541-Domiciliary Care,THIRD PARTY PAYMENTS,PRIVATE CONTRACTOR,REVENUE
Walsall Council,http://opendatacommunities.org/id/metropolitan-district-council/walsall ,WC134-428,31.01.2022,ADULT SOCIAL CARE,ADVANCE HEALTH CARE (UK) LTD,18/01/2022,490.49,6541-Domiciliary Care,THIRD PARTY PAYMENTS,PRIVATE CONTRACTOR,REVENUE
Walsall Council,http://opendatacommunities.org/id/metropolitan-district-council/walsall ,WC134-429,31.01.2022,ADULT SOCIAL CARE,ADVANCE HEALTH CARE (UK) LTD,18/01/2022,454.16,6541-Domiciliary Care,THIRD PARTY PAYMENTS,PRIVATE CONTRACTOR,REVENUE
Walsall Council,http://opendatacommunities.org/id/metropolitan-district-council/walsall ,WC134-430,31.01.2022,ADULT SOCIAL CARE,ADVANCE HEALTH CARE (UK) LTD,18/01/2022,490.49,6541-Domiciliary Care,THIRD PARTY PAYMENTS,PRIVATE CONTRACTOR,REVENUE
Walsall Council,http://opendatacommunities.org/id/metropolitan-district-council/walsall ,WC134-431,31.01.2022,ADULT SOCIAL CARE,ADVANCE HEALTH CARE (UK) LTD,18/01/2022,326.97,6541-Domiciliary Care,THIRD PARTY PAYMENTS,PRIVATE CONTRACTOR,REVENUE
Walsall Council,http://opendatacommunities.org/id/metropolitan-district-council/walsall ,WC134-432,31.01.2022,ADULT SOCIAL CARE,ADVANCE HEALTH CARE (UK) LTD,26/01/2022,"31,446.72",6540-Professional Services-Priv Contractor & Other Agencies,THIRD PARTY PAYMENTS,PRIVATE CONTRACTOR,REVENUE
Walsall Council,http://opendatacommunities.org/id/metropolitan-district-council/walsall ,WC134-433,31.01.2022,CHILDRENS,ADVENTURELAND DAY NURSERY,13/01/2022,"8,019.00",1184-Other-Grants to Other Orgs,SUPPLIES & SERVICES,GRANTS (EXP) & SUBSCRIPTIONS,REVENUE
Walsall Council,http://opendatacommunities.org/id/metropolitan-district-council/walsall ,WC134-434,31.01.2022,CHILDRENS,ADVENTURELAND DAY NURSERY,28/01/2022,640.00,1184-Transfer Payments-Other Schoolchildren/Student Related Items,TRANSFER PAYMENTS,SCHOOLCHILDREN/STUDENTS,REVENUE
Walsall Council,http://opendatacommunities.org/id/metropolitan-district-council/walsall ,WC134-435,31.01.2022,CHILDRENS,ADVENTURELAND DAY NURSERY,28/01/2022,640.00,1184-Transfer Payments-Other Schoolchildren/Student Related Items,TRANSFER PAYMENTS,SCHOOLCHILDREN/STUDENTS,REVENUE
Walsall Council,http://opendatacommunities.org/id/metropolitan-district-council/walsall ,WC134-436,31.01.2022,CHILDRENS,ADVENTURELAND DAY NURSERY,13/01/2022,"20,314.80",1184-Other-Grants to Other Orgs,SUPPLIES & SERVICES,GRANTS (EXP) & SUBSCRIPTIONS,REVENUE
Walsall Council,http://opendatacommunities.org/id/metropolitan-district-council/walsall ,WC134-437,31.01.2022,ADULT SOCIAL CARE,ADVINIA CARE HOMES LTD - HAMMERWICH HALL CARE HOME,18/01/2022,"2,331.08",6541-Residential EMI,THIRD PARTY PAYMENTS,PRIVATE CONTRACTOR,REVENUE
Walsall Council,http://opendatacommunities.org/id/metropolitan-district-council/walsall ,WC134-438,31.01.2022,ADULT SOCIAL CARE,ADVINIA CARE HOMES LTD - HAMMERWICH HALL CARE HOME,18/01/2022,"2,064.44",6541-Residential,THIRD PARTY PAYMENTS,PRIVATE CONTRACTOR,REVENUE
Walsall Council,http://opendatacommunities.org/id/metropolitan-district-council/walsall ,WC134-439,31.01.2022,"ECONOMY, ENVIRONMENT & COMMUNITIES",AECOM INFRASTRUCTURE & ENVIRONMENT UK LIMITED,06/01/2022,"1,041.43",6411-Professional Services-Priv Contractor & Other Agencies,THIRD PARTY PAYMENTS,PRIVATE CONTRACTOR,REVENUE
Walsall Council,http://opendatacommunities.org/id/metropolitan-district-council/walsall ,WC134-440,31.01.2022,CHILDRENS,REDACTED,13/01/2022,378.86,6223-Internal Foster Carers-Carer Fees,TRANSFER PAYMENTS,CHILDREN SOCIAL SERVICES CLIENT,REVENUE
Walsall Council,http://opendatacommunities.org/id/metropolitan-district-council/walsall ,WC134-441,31.01.2022,CHILDRENS,REDACTED,13/01/2022,507.71,6223-Foster Carers Maintenance Allowance,TRANSFER PAYMENTS,CHILDREN SOCIAL SERVICES CLIENT,REVENUE
Walsall Council,http://opendatacommunities.org/id/metropolitan-district-council/walsall ,WC134-442,31.01.2022,CHILDRENS,REDACTED,13/01/2022,564.57,6223-Foster Carers Maintenance Allowance,TRANSFER PAYMENTS,CHILDREN SOCIAL SERVICES CLIENT,REVENUE
Walsall Council,http://opendatacommunities.org/id/metropolitan-district-council/walsall ,WC134-443,31.01.2022,ADULT SOCIAL CARE,REDACTED,06/01/2022,"2,480.64",6541-Direct Payment,THIRD PARTY PAYMENTS,PRIVATE CONTRACTOR,REVENUE
Walsall Council,http://opendatacommunities.org/id/metropolitan-district-council/walsall ,WC134-444,31.01.2022,"ECONOMY, ENVIRONMENT & COMMUNITIES",AIR PLANTS DUST EXTRACTION LTD,25/01/2022,-723.60,6414-Operational Maintenance,PREMISES,REPAIRS & MAINTENANCE,REVENUE
Walsall Council,http://opendatacommunities.org/id/metropolitan-district-council/walsall ,WC134-445,31.01.2022,"ECONOMY, ENVIRONMENT & COMMUNITIES",AIR PLANTS DUST EXTRACTION LTD,25/01/2022,548.83,6414-Operational Maintenance,PREMISES,REPAIRS & MAINTENANCE,REVENUE
Walsall Council,http://opendatacommunities.org/id/metropolitan-district-council/walsall ,WC134-446,31.01.2022,"ECONOMY, ENVIRONMENT & COMMUNITIES",AIR PLANTS DUST EXTRACTION LTD,25/01/2022,723.60,6414-Operational Maintenance,PREMISES,REPAIRS & MAINTENANCE,REVENUE
Walsall Council,http://opendatacommunities.org/id/metropolitan-district-council/walsall ,WC134-447,31.01.2022,CHILDRENS,ALAN SAVILL T/A INSPIRED TRAINERS,26/01/2022,"1,200.00",6211-External Training,INDIRECT EMPLOYEES,EXTERNAL TRAINING,REVENUE
Walsall Council,http://opendatacommunities.org/id/metropolitan-district-council/walsall ,WC134-448,31.01.2022,"ECONOMY, ENVIRONMENT & COMMUNITIES",ALBERT JAGGER LTD,27/01/2022,430.48,6410-Materials,SUPPLIES & SERVICES,EQUIPMENT FURNITURE & MATERIALS,REVENUE
Walsall Council,http://opendatacommunities.org/id/metropolitan-district-council/walsall ,WC134-449,31.01.2022,CHILDRENS,ALDRIDGE & BARONS LIMITED,04/01/2022,"2,080.00",6241-Hire of Vehicle with Driver,TRANSPORT,DIRECT TRANSPORT COSTS,REVENUE
Walsall Council,http://opendatacommunities.org/id/metropolitan-district-council/walsall ,WC134-450,31.01.2022,CHILDRENS,ALDRIDGE & BARONS LIMITED,04/01/2022,"2,626.00",6241-Hire of Vehicle with Driver,TRANSPORT,DIRECT TRANSPORT COSTS,REVENUE
Walsall Council,http://opendatacommunities.org/id/metropolitan-district-council/walsall ,WC134-451,31.01.2022,CHILDRENS,ALDRIDGE & BARONS LIMITED,04/01/2022,"2,130.00",6241-Hire of Vehicle with Driver,TRANSPORT,DIRECT TRANSPORT COSTS,REVENUE
Walsall Council,http://opendatacommunities.org/id/metropolitan-district-council/walsall ,WC134-452,31.01.2022,CHILDRENS,ALDRIDGE & BARONS LIMITED,04/01/2022,"1,219.80",6241-Hire of Vehicle with Driver,TRANSPORT,DIRECT TRANSPORT COSTS,REVENUE
Walsall Council,http://opendatacommunities.org/id/metropolitan-district-council/walsall ,WC134-453,31.01.2022,CHILDRENS,ALDRIDGE & BARONS LIMITED,04/01/2022,"1,950.00",6241-Hire of Vehicle with Driver,TRANSPORT,DIRECT TRANSPORT COSTS,REVENUE
Walsall Council,http://opendatacommunities.org/id/metropolitan-district-council/walsall ,WC134-454,31.01.2022,CHILDRENS,ALDRIDGE & BARONS LIMITED,04/01/2022,"2,464.00",6241-Hire of Vehicle with Driver,TRANSPORT,DIRECT TRANSPORT COSTS,REVENUE
Walsall Council,http://opendatacommunities.org/id/metropolitan-district-council/walsall ,WC134-455,31.01.2022,CHILDRENS,ALDRIDGE & BARONS LIMITED,04/01/2022,"2,147.60",6241-Hire of Vehicle with Driver,TRANSPORT,DIRECT TRANSPORT COSTS,REVENUE
Walsall Council,http://opendatacommunities.org/id/metropolitan-district-council/walsall ,WC134-456,31.01.2022,CHILDRENS,ALDRIDGE & BARONS LIMITED,04/01/2022,"1,800.00",6241-Hire of Vehicle with Driver,TRANSPORT,DIRECT TRANSPORT COSTS,REVENUE
Walsall Council,http://opendatacommunities.org/id/metropolitan-district-council/walsall ,WC134-457,31.01.2022,CHILDRENS,ALDRIDGE & BARONS LIMITED,04/01/2022,"1,631.15",6241-Hire of Vehicle with Driver,TRANSPORT,DIRECT TRANSPORT COSTS,REVENUE
Walsall Council,http://opendatacommunities.org/id/metropolitan-district-council/walsall ,WC134-458,31.01.2022,CHILDRENS,ALDRIDGE & BARONS LIMITED,04/01/2022,"2,081.52",6241-Hire of Vehicle with Driver,TRANSPORT,DIRECT TRANSPORT COSTS,REVENUE
Walsall Council,http://opendatacommunities.org/id/metropolitan-district-council/walsall ,WC134-459,31.01.2022,CHILDRENS,ALDRIDGE & BARONS LIMITED,04/01/2022,"1,512.00",6241-Hire of Vehicle with Driver,TRANSPORT,DIRECT TRANSPORT COSTS,REVENUE
Walsall Council,http://opendatacommunities.org/id/metropolitan-district-council/walsall ,WC134-460,31.01.2022,CHILDRENS,ALDRIDGE & BARONS LIMITED,04/01/2022,"2,278.00",6241-Hire of Vehicle with Driver,TRANSPORT,DIRECT TRANSPORT COSTS,REVENUE
Walsall Council,http://opendatacommunities.org/id/metropolitan-district-council/walsall ,WC134-461,31.01.2022,CHILDRENS,ALDRIDGE & BARONS LIMITED,04/01/2022,"2,084.40",6241-Hire of Vehicle with Driver,TRANSPORT,DIRECT TRANSPORT COSTS,REVENUE
Walsall Council,http://opendatacommunities.org/id/metropolitan-district-council/walsall ,WC134-462,31.01.2022,CHILDRENS,ALDRIDGE & BARONS LIMITED,04/01/2022,"1,931.40",6241-Hire of Vehicle with Driver,TRANSPORT,DIRECT TRANSPORT COSTS,REVENUE
Walsall Council,http://opendatacommunities.org/id/metropolitan-district-council/walsall ,WC134-463,31.01.2022,CHILDRENS,ALDRIDGE & BARONS LIMITED,04/01/2022,"1,935.00",6241-Hire of Vehicle with Driver,TRANSPORT,DIRECT TRANSPORT COSTS,REVENUE
Walsall Council,http://opendatacommunities.org/id/metropolitan-district-council/walsall ,WC134-464,31.01.2022,CHILDRENS,ALDRIDGE & BARONS LIMITED,04/01/2022,"2,090.00",6241-Hire of Vehicle with Driver,TRANSPORT,DIRECT TRANSPORT COSTS,REVENUE
Walsall Council,http://opendatacommunities.org/id/metropolitan-district-council/walsall ,WC134-465,31.01.2022,CHILDRENS,ALDRIDGE & BARONS LIMITED,04/01/2022,600.00,6241-Hire of Vehicle with Driver,TRANSPORT,DIRECT TRANSPORT COSTS,REVENUE
Walsall Council,http://opendatacommunities.org/id/metropolitan-district-council/walsall ,WC134-466,31.01.2022,CHILDRENS,ALDRIDGE & BARONS LIMITED,04/01/2022,"2,414.00",6241-Hire of Vehicle with Driver,TRANSPORT,DIRECT TRANSPORT COSTS,REVENUE
Walsall Council,http://opendatacommunities.org/id/metropolitan-district-council/walsall ,WC134-467,31.01.2022,CHILDRENS,ALDRIDGE & BARONS LIMITED,04/01/2022,696.00,6241-Hire of Vehicle with Driver,TRANSPORT,DIRECT TRANSPORT COSTS,REVENUE
Walsall Council,http://opendatacommunities.org/id/metropolitan-district-council/walsall ,WC134-468,31.01.2022,CHILDRENS,ALDRIDGE & BARONS LIMITED,04/01/2022,"2,232.00",6241-Hire of Vehicle with Driver,TRANSPORT,DIRECT TRANSPORT COSTS,REVENUE
Walsall Council,http://opendatacommunities.org/id/metropolitan-district-council/walsall ,WC134-469,31.01.2022,CHILDRENS,ALDRIDGE & BARONS LIMITED,04/01/2022,"1,848.70",6241-Hire of Vehicle with Driver,TRANSPORT,DIRECT TRANSPORT COSTS,REVENUE
Walsall Council,http://opendatacommunities.org/id/metropolitan-district-council/walsall ,WC134-470,31.01.2022,CHILDRENS,ALDRIDGE & BARONS LIMITED,04/01/2022,"2,200.00",6241-Hire of Vehicle with Driver,TRANSPORT,DIRECT TRANSPORT COSTS,REVENUE
Walsall Council,http://opendatacommunities.org/id/metropolitan-district-council/walsall ,WC134-471,31.01.2022,CHILDRENS,ALDRIDGE & BARONS LIMITED,04/01/2022,"1,575.60",6241-Hire of Vehicle with Driver,TRANSPORT,DIRECT TRANSPORT COSTS,REVENUE
Walsall Council,http://opendatacommunities.org/id/metropolitan-district-council/walsall ,WC134-472,31.01.2022,CHILDRENS,ALDRIDGE & BARONS LIMITED,04/01/2022,"1,816.01",6241-Hire of Vehicle with Driver,TRANSPORT,DIRECT TRANSPORT COSTS,REVENUE
Walsall Council,http://opendatacommunities.org/id/metropolitan-district-council/walsall ,WC134-473,31.01.2022,CHILDRENS,ALDRIDGE & BARONS LIMITED,04/01/2022,"1,710.00",6241-Hire of Vehicle with Driver,TRANSPORT,DIRECT TRANSPORT COSTS,REVENUE
Walsall Council,http://opendatacommunities.org/id/metropolitan-district-council/walsall ,WC134-474,31.01.2022,CHILDRENS,ALDRIDGE & BARONS LIMITED,04/01/2022,"1,914.00",6241-Hire of Vehicle with Driver,TRANSPORT,DIRECT TRANSPORT COSTS,REVENUE
Walsall Council,http://opendatacommunities.org/id/metropolitan-district-council/walsall ,WC134-475,31.01.2022,CHILDRENS,ALDRIDGE & BARONS LIMITED,04/01/2022,"1,862.00",6241-Hire of Vehicle with Driver,TRANSPORT,DIRECT TRANSPORT COSTS,REVENUE
Walsall Council,http://opendatacommunities.org/id/metropolitan-district-council/walsall ,WC134-476,31.01.2022,CHILDRENS,ALDRIDGE & BARONS LIMITED,04/01/2022,"1,985.00",6241-Hire of Vehicle with Driver,TRANSPORT,DIRECT TRANSPORT COSTS,REVENUE
Walsall Council,http://opendatacommunities.org/id/metropolitan-district-council/walsall ,WC134-477,31.01.2022,CHILDRENS,ALDRIDGE & BARONS LIMITED,04/01/2022,"1,420.00",6241-Hire of Vehicle with Driver,TRANSPORT,DIRECT TRANSPORT COSTS,REVENUE
Walsall Council,http://opendatacommunities.org/id/metropolitan-district-council/walsall ,WC134-478,31.01.2022,CHILDRENS,ALDRIDGE & BARONS LIMITED,04/01/2022,"1,710.00",6241-Hire of Vehicle with Driver,TRANSPORT,DIRECT TRANSPORT COSTS,REVENUE
Walsall Council,http://opendatacommunities.org/id/metropolitan-district-council/walsall ,WC134-479,31.01.2022,CHILDRENS,ALDRIDGE & BARONS LIMITED,04/01/2022,"2,090.00",6241-Hire of Vehicle with Driver,TRANSPORT,DIRECT TRANSPORT COSTS,REVENUE
Walsall Council,http://opendatacommunities.org/id/metropolitan-district-council/walsall ,WC134-480,31.01.2022,CHILDRENS,ALDRIDGE & BARONS LIMITED,04/01/2022,"1,640.00",6241-Hire of Vehicle with Driver,TRANSPORT,DIRECT TRANSPORT COSTS,REVENUE
Walsall Council,http://opendatacommunities.org/id/metropolitan-district-council/walsall ,WC134-481,31.01.2022,ADULT SOCIAL CARE,REDACTED,06/01/2022,"1,494.72",6541-Direct Payment,THIRD PARTY PAYMENTS,PRIVATE CONTRACTOR,REVENUE
Walsall Council,http://opendatacommunities.org/id/metropolitan-district-council/walsall ,WC134-482,31.01.2022,ADULT SOCIAL CARE,ALEXANDRA HOUSE CARE SERVICES LTD T/A STONEBRIDGE NURSING HOME,18/01/2022,"7,434.72",6541-Residential,THIRD PARTY PAYMENTS,PRIVATE CONTRACTOR,REVENUE
Walsall Council,http://opendatacommunities.org/id/metropolitan-district-council/walsall ,WC134-483,31.01.2022,ADULT SOCIAL CARE,REDACTED,06/01/2022,957.44,6541-Direct Payment,THIRD PARTY PAYMENTS,PRIVATE CONTRACTOR,REVENUE
Walsall Council,http://opendatacommunities.org/id/metropolitan-district-council/walsall ,WC134-484,31.01.2022,CHILDRENS,REDACTED,13/01/2022,295.92,6223-Special Guardianship Orders,TRANSFER PAYMENTS,CHILDREN SOCIAL SERVICES CLIENT,REVENUE
Walsall Council,http://opendatacommunities.org/id/metropolitan-district-council/walsall ,WC134-485,31.01.2022,"ECONOMY, ENVIRONMENT & COMMUNITIES",ALLAN HADDOW LTD,10/01/2022,"1,920.00",6410-External Training,INDIRECT EMPLOYEES,EXTERNAL TRAINING,REVENUE
Walsall Council,http://opendatacommunities.org/id/metropolitan-district-council/walsall ,WC134-486,31.01.2022,"ECONOMY, ENVIRONMENT & COMMUNITIES",ALLIANCE LEISURE SERVICES LTD,12/01/2022,"70,849.65",6413-Repair & Maintenance of Furniture & Equipment,SUPPLIES & SERVICES,EQUIPMENT FURNITURE & MATERIALS,REVENUE
Walsall Council,http://opendatacommunities.org/id/metropolitan-district-council/walsall ,WC134-487,31.01.2022,"ECONOMY, ENVIRONMENT & COMMUNITIES",ALLIANCE LEISURE SERVICES LTD,21/01/2022,"10,788.63",6413-Repair & Maintenance of Furniture & Equipment,SUPPLIES & SERVICES,EQUIPMENT FURNITURE & MATERIALS,REVENUE
Walsall Council,http://opendatacommunities.org/id/metropolitan-district-council/walsall ,WC134-488,31.01.2022,"ECONOMY, ENVIRONMENT & COMMUNITIES",ALLIANCE TRANSPORT TECHNOLOGIES LTD,14/01/2022,499.95,6410-Materials to Stores,SUPPLIES & SERVICES,EQUIPMENT FURNITURE & MATERIALS,REVENUE
Walsall Council,http://opendatacommunities.org/id/metropolitan-district-council/walsall ,WC134-489,31.01.2022,RESOURCES AND TRANSFORMATION,ALLIED PUBLICITY SERVICES (MANCHESTER) LIMITED T/A APS GROUP,14/01/2022,"1,481.33",6312-External Printing Services,SUPPLIES & SERVICES,PRINTING STATIONERY & GENERAL OFFICE,REVENUE
Walsall Council,http://opendatacommunities.org/id/metropolitan-district-council/walsall ,WC134-490,31.01.2022,ADULT SOCIAL CARE,ALMA COURT,18/01/2022,"3,626.96",6541-Nursing EMI,THIRD PARTY PAYMENTS,PRIVATE CONTRACTOR,REVENUE
Walsall Council,http://opendatacommunities.org/id/metropolitan-district-council/walsall ,WC134-491,31.01.2022,ADULT SOCIAL CARE,ALMA COURT,18/01/2022,"3,826.96",6541-Nursing EMI,THIRD PARTY PAYMENTS,PRIVATE CONTRACTOR,REVENUE
Walsall Council,http://opendatacommunities.org/id/metropolitan-district-council/walsall ,WC134-492,31.01.2022,ADULT SOCIAL CARE,ALMA COURT,18/01/2022,"6,619.12",6541-Residential,THIRD PARTY PAYMENTS,PRIVATE CONTRACTOR,REVENUE
Walsall Council,http://opendatacommunities.org/id/metropolitan-district-council/walsall ,WC134-493,31.01.2022,ADULT SOCIAL CARE,ALMA COURT,18/01/2022,"4,764.88",6541-Nursing EMI,THIRD PARTY PAYMENTS,PRIVATE CONTRACTOR,REVENUE
Walsall Council,http://opendatacommunities.org/id/metropolitan-district-council/walsall ,WC134-494,31.01.2022,ADULT SOCIAL CARE,ALMA COURT,18/01/2022,"4,200.00",6541-Nursing EMI,THIRD PARTY PAYMENTS,PRIVATE CONTRACTOR,REVENUE
Walsall Council,http://opendatacommunities.org/id/metropolitan-district-council/walsall ,WC134-495,31.01.2022,ADULT SOCIAL CARE,ALMA COURT,18/01/2022,"4,200.00",6541-Residential,THIRD PARTY PAYMENTS,PRIVATE CONTRACTOR,REVENUE
Walsall Council,http://opendatacommunities.org/id/metropolitan-district-council/walsall ,WC134-496,31.01.2022,RESOURCES AND TRANSFORMATION,ALMADEN UK LTD,25/01/2022,"13,480.00",6623-Computer Equipment,SUPPLIES & SERVICES,COMMUNICATIONS & COMPUTING,REVENUE
Walsall Council,http://opendatacommunities.org/id/metropolitan-district-council/walsall ,WC134-497,31.01.2022,"ECONOMY, ENVIRONMENT & COMMUNITIES",ALMOZENE NURSERY & CHILDRENS CENTRE,07/01/2022,928.99,6313-Grants to Other Orgs,SUPPLIES & SERVICES,GRANTS (EXP) & SUBSCRIPTIONS,REVENUE
Walsall Council,http://opendatacommunities.org/id/metropolitan-district-council/walsall ,WC134-498,31.01.2022,CHILDRENS,ALMOZENE NURSERY & CHILDRENS CENTRE,13/01/2022,"5,346.00",1184-Other-Grants to Other Orgs,SUPPLIES & SERVICES,GRANTS (EXP) & SUBSCRIPTIONS,REVENUE
Walsall Council,http://opendatacommunities.org/id/metropolitan-district-council/walsall ,WC134-499,31.01.2022,CHILDRENS,ALMOZENE NURSERY & CHILDRENS CENTRE,13/01/2022,"9,593.10",1184-Other-Grants to Other Orgs,SUPPLIES & SERVICES,GRANTS (EXP) & SUBSCRIPTIONS,REVENUE
Walsall Council,http://opendatacommunities.org/id/metropolitan-district-council/walsall ,WC134-500,31.01.2022,"ECONOMY, ENVIRONMENT & COMMUNITIES",ALMOZENE NURSERY & CHILDRENS CENTRE,10/01/2022,710.67,6313-Grants to Other Orgs,SUPPLIES & SERVICES,GRANTS (EXP) & SUBSCRIPTIONS,REVENUE
Walsall Council,http://opendatacommunities.org/id/metropolitan-district-council/walsall ,WC134-501,31.01.2022,"ECONOMY, ENVIRONMENT & COMMUNITIES",ALMOZENE NURSERY & CHILDRENS CENTRE,20/01/2022,710.67,6313-Grants to Other Orgs,SUPPLIES & SERVICES,GRANTS (EXP) & SUBSCRIPTIONS,REVENUE
Walsall Council,http://opendatacommunities.org/id/metropolitan-district-council/walsall ,WC134-502,31.01.2022,"ECONOMY, ENVIRONMENT & COMMUNITIES",ALMOZENE NURSERY & CHILDRENS CENTRE,12/01/2022,677.87,6313-Grants to Other Orgs,SUPPLIES & SERVICES,GRANTS (EXP) & SUBSCRIPTIONS,REVENUE
Walsall Council,http://opendatacommunities.org/id/metropolitan-district-council/walsall ,WC134-503,31.01.2022,"ECONOMY, ENVIRONMENT & COMMUNITIES",ALMOZENE NURSERY & CHILDRENS CENTRE,28/01/2022,500.00,6313-Grants to Other Orgs,SUPPLIES & SERVICES,GRANTS (EXP) & SUBSCRIPTIONS,REVENUE
Walsall Council,http://opendatacommunities.org/id/metropolitan-district-council/walsall ,WC134-504,31.01.2022,ADULT SOCIAL CARE,ALPHA HEALTH CARE LTD,18/01/2022,"3,091.28",6541-Nursing EMI,THIRD PARTY PAYMENTS,PRIVATE CONTRACTOR,REVENUE
Walsall Council,http://opendatacommunities.org/id/metropolitan-district-council/walsall ,WC134-505,31.01.2022,ADULT SOCIAL CARE,ALPHA HEALTH CARE LTD,18/01/2022,"-3,532.89",6541-Nursing EMI,THIRD PARTY PAYMENTS,PRIVATE CONTRACTOR,REVENUE
Walsall Council,http://opendatacommunities.org/id/metropolitan-district-council/walsall ,WC134-506,31.01.2022,ADULT SOCIAL CARE,ALPHA HEALTH CARE LTD,18/01/2022,"2,722.96",6541-Nursing EMI,THIRD PARTY PAYMENTS,PRIVATE CONTRACTOR,REVENUE
Walsall Council,http://opendatacommunities.org/id/metropolitan-district-council/walsall ,WC134-507,31.01.2022,ADULT SOCIAL CARE,ALPHA HEALTH CARE LTD,18/01/2022,"2,961.72",6541-Nursing,THIRD PARTY PAYMENTS,PRIVATE CONTRACTOR,REVENUE
Walsall Council,http://opendatacommunities.org/id/metropolitan-district-council/walsall ,WC134-508,31.01.2022,ADULT SOCIAL CARE,ALPHA HEALTH CARE LTD,18/01/2022,"2,722.96",6541-Nursing EMI,THIRD PARTY PAYMENTS,PRIVATE CONTRACTOR,REVENUE
Walsall Council,http://opendatacommunities.org/id/metropolitan-district-council/walsall ,WC134-509,31.01.2022,ADULT SOCIAL CARE,ALPHA HEALTH CARE LTD,18/01/2022,"7,026.96",6541-Nursing EMI,THIRD PARTY PAYMENTS,PRIVATE CONTRACTOR,REVENUE
Walsall Council,http://opendatacommunities.org/id/metropolitan-district-council/walsall ,WC134-510,31.01.2022,ADULT SOCIAL CARE,ALPHA HEALTH CARE LTD,18/01/2022,"2,331.08",6541-Residential EMI,THIRD PARTY PAYMENTS,PRIVATE CONTRACTOR,REVENUE
Walsall Council,http://opendatacommunities.org/id/metropolitan-district-council/walsall ,WC134-511,31.01.2022,ADULT SOCIAL CARE,ALPHA HEALTH CARE LTD,18/01/2022,"2,854.56",6541-Residential EMI,THIRD PARTY PAYMENTS,PRIVATE CONTRACTOR,REVENUE
Walsall Council,http://opendatacommunities.org/id/metropolitan-district-council/walsall ,WC134-512,31.01.2022,ADULT SOCIAL CARE,ALPHA HEALTH CARE LTD,18/01/2022,"2,722.96",6541-Nursing EMI,THIRD PARTY PAYMENTS,PRIVATE CONTRACTOR,REVENUE
Walsall Council,http://opendatacommunities.org/id/metropolitan-district-council/walsall ,WC134-513,31.01.2022,ADULT SOCIAL CARE,ALPHA HEALTH CARE LTD,18/01/2022,"2,731.08",6541-Residential EMI,THIRD PARTY PAYMENTS,PRIVATE CONTRACTOR,REVENUE
Walsall Council,http://opendatacommunities.org/id/metropolitan-district-council/walsall ,WC134-514,31.01.2022,ADULT SOCIAL CARE,ALPHA HEALTH CARE LTD,18/01/2022,"4,200.00",6541-Professional Services-Priv Contractor & Other Agencies,THIRD PARTY PAYMENTS,PRIVATE CONTRACTOR,REVENUE
Walsall Council,http://opendatacommunities.org/id/metropolitan-district-council/walsall ,WC134-515,31.01.2022,ADULT SOCIAL CARE,ALPHA HEALTH CARE LTD,18/01/2022,"3,900.00",6541-Residential,THIRD PARTY PAYMENTS,PRIVATE CONTRACTOR,REVENUE
Walsall Council,http://opendatacommunities.org/id/metropolitan-district-council/walsall ,WC134-516,31.01.2022,ADULT SOCIAL CARE,ALPHA HEALTH CARE LTD,18/01/2022,"3,800.00",6541-Nursing,THIRD PARTY PAYMENTS,PRIVATE CONTRACTOR,REVENUE
Walsall Council,http://opendatacommunities.org/id/metropolitan-district-council/walsall ,WC134-517,31.01.2022,ADULT SOCIAL CARE,ALPHA HEALTH CARE LTD,18/01/2022,"2,331.08",6541-Residential EMI,THIRD PARTY PAYMENTS,PRIVATE CONTRACTOR,REVENUE
Walsall Council,http://opendatacommunities.org/id/metropolitan-district-council/walsall ,WC134-518,31.01.2022,ADULT SOCIAL CARE,ALPHA HEALTH CARE LTD,18/01/2022,"6,249.60",6541-Residential,THIRD PARTY PAYMENTS,PRIVATE CONTRACTOR,REVENUE
Walsall Council,http://opendatacommunities.org/id/metropolitan-district-council/walsall ,WC134-519,31.01.2022,ADULT SOCIAL CARE,ALPHA HEALTH CARE LTD,18/01/2022,"3,149.60",6541-Nursing EMI,THIRD PARTY PAYMENTS,PRIVATE CONTRACTOR,REVENUE
Walsall Council,http://opendatacommunities.org/id/metropolitan-district-council/walsall ,WC134-520,31.01.2022,ADULT SOCIAL CARE,ALPHA HEALTH CARE LTD,18/01/2022,"7,000.00",6541-Residential,THIRD PARTY PAYMENTS,PRIVATE CONTRACTOR,REVENUE
Walsall Council,http://opendatacommunities.org/id/metropolitan-district-council/walsall ,WC134-521,31.01.2022,ADULT SOCIAL CARE,ALPHA HEALTH CARE LTD,18/01/2022,"3,340.00",6541-Residential EMI,THIRD PARTY PAYMENTS,PRIVATE CONTRACTOR,REVENUE
Walsall Council,http://opendatacommunities.org/id/metropolitan-district-council/walsall ,WC134-522,31.01.2022,ADULT SOCIAL CARE,ALPHA HEALTH CARE LTD,18/01/2022,"3,626.96",6541-Nursing EMI,THIRD PARTY PAYMENTS,PRIVATE CONTRACTOR,REVENUE
Walsall Council,http://opendatacommunities.org/id/metropolitan-district-council/walsall ,WC134-523,31.01.2022,ADULT SOCIAL CARE,ALPHA HEALTH CARE LTD,18/01/2022,"2,600.00",6541-Residential,THIRD PARTY PAYMENTS,PRIVATE CONTRACTOR,REVENUE
Walsall Council,http://opendatacommunities.org/id/metropolitan-district-council/walsall ,WC134-524,31.01.2022,ADULT SOCIAL CARE,ALPHA HEALTH CARE LTD,18/01/2022,"3,091.28",6541-Nursing EMI,THIRD PARTY PAYMENTS,PRIVATE CONTRACTOR,REVENUE
Walsall Council,http://opendatacommunities.org/id/metropolitan-district-council/walsall ,WC134-525,31.01.2022,ADULT SOCIAL CARE,ALPHA HEALTH CARE LTD,18/01/2022,"2,331.08",6541-Residential EMI,THIRD PARTY PAYMENTS,PRIVATE CONTRACTOR,REVENUE
Walsall Council,http://opendatacommunities.org/id/metropolitan-district-council/walsall ,WC134-526,31.01.2022,ADULT SOCIAL CARE,ALPHA HEALTH CARE LTD,18/01/2022,"3,363.08",6541-Residential EMI,THIRD PARTY PAYMENTS,PRIVATE CONTRACTOR,REVENUE
Walsall Council,http://opendatacommunities.org/id/metropolitan-district-council/walsall ,WC134-527,31.01.2022,ADULT SOCIAL CARE,ALPHA HEALTH CARE LTD,18/01/2022,"3,049.60",6541-Nursing EMI,THIRD PARTY PAYMENTS,PRIVATE CONTRACTOR,REVENUE
Walsall Council,http://opendatacommunities.org/id/metropolitan-district-council/walsall ,WC134-528,31.01.2022,ADULT SOCIAL CARE,ALPHA HEALTH CARE LTD,18/01/2022,"2,027.86",6541-Professional Services-Priv Contractor & Other Agencies,THIRD PARTY PAYMENTS,PRIVATE CONTRACTOR,REVENUE
Walsall Council,http://opendatacommunities.org/id/metropolitan-district-council/walsall ,WC134-529,31.01.2022,ADULT SOCIAL CARE,ALPHA HEALTH CARE LTD,18/01/2022,"5,656.00",6541-Residential,THIRD PARTY PAYMENTS,PRIVATE CONTRACTOR,REVENUE
Walsall Council,http://opendatacommunities.org/id/metropolitan-district-council/walsall ,WC134-530,31.01.2022,ADULT SOCIAL CARE,ALPHA HEALTH CARE LTD,18/01/2022,"3,064.32",6541-Nursing EMI,THIRD PARTY PAYMENTS,PRIVATE CONTRACTOR,REVENUE
Walsall Council,http://opendatacommunities.org/id/metropolitan-district-council/walsall ,WC134-531,31.01.2022,ADULT SOCIAL CARE,ALPHA HEALTH CARE LTD,18/01/2022,"-2,660.00",6541-Professional Services-Priv Contractor & Other Agencies,THIRD PARTY PAYMENTS,PRIVATE CONTRACTOR,REVENUE
Walsall Council,http://opendatacommunities.org/id/metropolitan-district-council/walsall ,WC134-532,31.01.2022,ADULT SOCIAL CARE,ALPHA HEALTH CARE LTD,18/01/2022,993.63,6541-Nursing EMI,THIRD PARTY PAYMENTS,PRIVATE CONTRACTOR,REVENUE
Walsall Council,http://opendatacommunities.org/id/metropolitan-district-council/walsall ,WC134-533,31.01.2022,ADULT SOCIAL CARE,ALPHA HEALTH CARE LTD,18/01/2022,"3,340.00",6541-Residential EMI,THIRD PARTY PAYMENTS,PRIVATE CONTRACTOR,REVENUE
Walsall Council,http://opendatacommunities.org/id/metropolitan-district-council/walsall ,WC134-534,31.01.2022,ADULT SOCIAL CARE,ALPHA HEALTH CARE LTD,18/01/2022,"2,940.00",6541-Professional Services-Priv Contractor & Other Agencies,THIRD PARTY PAYMENTS,PRIVATE CONTRACTOR,REVENUE
Walsall Council,http://opendatacommunities.org/id/metropolitan-district-council/walsall ,WC134-535,31.01.2022,ADULT SOCIAL CARE,ALPHA HEALTH CARE LTD,10/01/2022,"1,085.71",6554-Professional Services-Priv Contractor & Other Agencies,THIRD PARTY PAYMENTS,PRIVATE CONTRACTOR,REVENUE
Walsall Council,http://opendatacommunities.org/id/metropolitan-district-council/walsall ,WC134-536,31.01.2022,ADULT SOCIAL CARE,ALPHA HEALTH CARE LTD,10/01/2022,"1,085.71",6554-Professional Services-Priv Contractor & Other Agencies,THIRD PARTY PAYMENTS,PRIVATE CONTRACTOR,REVENUE
Walsall Council,http://opendatacommunities.org/id/metropolitan-district-council/walsall ,WC134-537,31.01.2022,ADULT SOCIAL CARE,ALPHA HEALTH CARE LTD,13/01/2022,691.41,6541-Nursing,THIRD PARTY PAYMENTS,PRIVATE CONTRACTOR,REVENUE
Walsall Council,http://opendatacommunities.org/id/metropolitan-district-council/walsall ,WC134-538,31.01.2022,ADULT SOCIAL CARE,ALPHA HEALTH CARE LTD,13/01/2022,"4,602.85",6541-Residential EMI,THIRD PARTY PAYMENTS,PRIVATE CONTRACTOR,REVENUE
Walsall Council,http://opendatacommunities.org/id/metropolitan-district-council/walsall ,WC134-539,31.01.2022,CHILDRENS,ALPHABIOLABS,11/01/2022,"1,009.00",6222-Professional Services-Priv Contractor & Other Agencies,THIRD PARTY PAYMENTS,PRIVATE CONTRACTOR,REVENUE
Walsall Council,http://opendatacommunities.org/id/metropolitan-district-council/walsall ,WC134-540,31.01.2022,CHILDRENS,AMAH NURSERIES LIMITED T/A BANANA MOON WALSALL,13/01/2022,"8,687.25",1184-Other-Grants to Other Orgs,SUPPLIES & SERVICES,GRANTS (EXP) & SUBSCRIPTIONS,REVENUE
Walsall Council,http://opendatacommunities.org/id/metropolitan-district-council/walsall ,WC134-541,31.01.2022,CHILDRENS,AMAH NURSERIES LIMITED T/A BANANA MOON WALSALL,13/01/2022,"25,393.50",1184-Other-Grants to Other Orgs,SUPPLIES & SERVICES,GRANTS (EXP) & SUBSCRIPTIONS,REVENUE
Walsall Council,http://opendatacommunities.org/id/metropolitan-district-council/walsall ,WC134-542,31.01.2022,ADULT SOCIAL CARE,REDACTED,06/01/2022,"1,626.96",6541-Direct Payment,THIRD PARTY PAYMENTS,PRIVATE CONTRACTOR,REVENUE
Walsall Council,http://opendatacommunities.org/id/metropolitan-district-council/walsall ,WC134-543,31.01.2022,"ECONOMY, ENVIRONMENT & COMMUNITIES",AMEY LG LIMITED,26/01/2022,-633.38,6430-Repair & Maintenance of Furniture & Equipment,SUPPLIES & SERVICES,EQUIPMENT FURNITURE & MATERIALS,REVENUE
Walsall Council,http://opendatacommunities.org/id/metropolitan-district-council/walsall ,WC134-544,31.01.2022,"ECONOMY, ENVIRONMENT & COMMUNITIES",AMEY LG LIMITED,26/01/2022,633.38,6430-Repair & Maintenance of Furniture & Equipment,SUPPLIES & SERVICES,EQUIPMENT FURNITURE & MATERIALS,REVENUE
Walsall Council,http://opendatacommunities.org/id/metropolitan-district-council/walsall ,WC134-545,31.01.2022,"ECONOMY, ENVIRONMENT & COMMUNITIES",AMEY LG LIMITED,26/01/2022,663.38,6430-Repair & Maintenance of Furniture & Equipment,SUPPLIES & SERVICES,EQUIPMENT FURNITURE & MATERIALS,REVENUE
Walsall Council,http://opendatacommunities.org/id/metropolitan-district-council/walsall ,WC134-546,31.01.2022,"ECONOMY, ENVIRONMENT & COMMUNITIES",AMEY LG LIMITED,07/01/2022,865.14,6411-Materials,SUPPLIES & SERVICES,EQUIPMENT FURNITURE & MATERIALS,REVENUE
Walsall Council,http://opendatacommunities.org/id/metropolitan-district-council/walsall ,WC134-547,31.01.2022,"ECONOMY, ENVIRONMENT & COMMUNITIES",AMEY LG LIMITED,07/01/2022,"14,466.41",6411-Materials,SUPPLIES & SERVICES,EQUIPMENT FURNITURE & MATERIALS,REVENUE
Walsall Council,http://opendatacommunities.org/id/metropolitan-district-council/walsall ,WC134-548,31.01.2022,"ECONOMY, ENVIRONMENT & COMMUNITIES",AMEY LG LIMITED,14/01/2022,938.33,6430-Repair & Maintenance of Furniture & Equipment,SUPPLIES & SERVICES,EQUIPMENT FURNITURE & MATERIALS,REVENUE
Walsall Council,http://opendatacommunities.org/id/metropolitan-district-council/walsall ,WC134-549,31.01.2022,"ECONOMY, ENVIRONMENT & COMMUNITIES",AMEY LG LIMITED,28/01/2022,736.06,6411-Professional Services-Priv Contractor & Other Agencies,THIRD PARTY PAYMENTS,PRIVATE CONTRACTOR,REVENUE
Walsall Council,http://opendatacommunities.org/id/metropolitan-district-council/walsall ,WC134-550,31.01.2022,ECONOMY & ENVIRONMENT CAPITAL,AMEY OW LTD,07/01/2022,"2,813.50",7200-Project Fees,CAPITAL,"NEW CONSTRUCTION,CONVERSION & RENOVATION",CAPITAL
Walsall Council,http://opendatacommunities.org/id/metropolitan-district-council/walsall ,WC134-551,31.01.2022,CHILDRENS,AMG NURSING CARE SERVICES,28/01/2022,"2,644.72",6220-Accommodation and Related Costs-Assistance to S/S Clients,TRANSFER PAYMENTS,ADULT SOCIAL SERVICES CLIENT,REVENUE
Walsall Council,http://opendatacommunities.org/id/metropolitan-district-council/walsall ,WC134-552,31.01.2022,CHILDRENS,AMG NURSING CARE SERVICES,28/01/2022,"2,274.48",6220-Accommodation and Related Costs-Assistance to S/S Clients,TRANSFER PAYMENTS,ADULT SOCIAL SERVICES CLIENT,REVENUE
Walsall Council,http://opendatacommunities.org/id/metropolitan-district-council/walsall ,WC134-553,31.01.2022,CHILDRENS,AMG NURSING CARE SERVICES,28/01/2022,"2,315.68",6220-Accommodation and Related Costs-Assistance to S/S Clients,TRANSFER PAYMENTS,ADULT SOCIAL SERVICES CLIENT,REVENUE
Walsall Council,http://opendatacommunities.org/id/metropolitan-district-council/walsall ,WC134-554,31.01.2022,CHILDRENS,AMG NURSING CARE SERVICES,28/01/2022,"2,274.48",6220-Accommodation and Related Costs-Assistance to S/S Clients,TRANSFER PAYMENTS,ADULT SOCIAL SERVICES CLIENT,REVENUE
Walsall Council,http://opendatacommunities.org/id/metropolitan-district-council/walsall ,WC134-555,31.01.2022,ADULT SOCIAL CARE,AMG NURSING CARE SERVICES,13/01/2022,"15,450.97",6541-Community Supported Living/Supported Accommodation,THIRD PARTY PAYMENTS,PRIVATE CONTRACTOR,REVENUE
Walsall Council,http://opendatacommunities.org/id/metropolitan-district-council/walsall ,WC134-556,31.01.2022,ADULT SOCIAL CARE,AMG NURSING CARE SERVICES,13/01/2022,"2,906.00",6541-Community Supported Living/Supported Accommodation,THIRD PARTY PAYMENTS,PRIVATE CONTRACTOR,REVENUE
Walsall Council,http://opendatacommunities.org/id/metropolitan-district-council/walsall ,WC134-557,31.01.2022,CHILDRENS,AMG NURSING CARE SERVICES,31/01/2022,918.54,6220-Accommodation and Related Costs-Assistance to S/S Clients,TRANSFER PAYMENTS,ADULT SOCIAL SERVICES CLIENT,REVENUE
Walsall Council,http://opendatacommunities.org/id/metropolitan-district-council/walsall ,WC134-558,31.01.2022,CHILDRENS,AMG NURSING CARE SERVICES,06/01/2022,541.12,6220-Accommodation and Related Costs-Assistance to S/S Clients,TRANSFER PAYMENTS,ADULT SOCIAL SERVICES CLIENT,REVENUE
Walsall Council,http://opendatacommunities.org/id/metropolitan-district-council/walsall ,WC134-559,31.01.2022,CHILDRENS,AMG NURSING CARE SERVICES,04/01/2022,406.60,6220-Professional Fees & Services,SUPPLIES & SERVICES,SERVICES,REVENUE
Walsall Council,http://opendatacommunities.org/id/metropolitan-district-council/walsall ,WC134-560,31.01.2022,CHILDRENS,AMG NURSING CARE SERVICES,04/01/2022,"1,316.28",6220-Accommodation and Related Costs-Assistance to S/S Clients,TRANSFER PAYMENTS,ADULT SOCIAL SERVICES CLIENT,REVENUE
Walsall Council,http://opendatacommunities.org/id/metropolitan-district-council/walsall ,WC134-561,31.01.2022,CHILDRENS,AMG NURSING CARE SERVICES,06/01/2022,388.52,6220-Professional Fees & Services,SUPPLIES & SERVICES,SERVICES,REVENUE
Walsall Council,http://opendatacommunities.org/id/metropolitan-district-council/walsall ,WC134-562,31.01.2022,CHILDRENS,AMG NURSING CARE SERVICES,06/01/2022,745.58,6220-Accommodation and Related Costs-Assistance to S/S Clients,TRANSFER PAYMENTS,ADULT SOCIAL SERVICES CLIENT,REVENUE
Walsall Council,http://opendatacommunities.org/id/metropolitan-district-council/walsall ,WC134-563,31.01.2022,CHILDRENS,AMG NURSING CARE SERVICES,17/01/2022,425.04,6220-Professional Fees & Services,SUPPLIES & SERVICES,SERVICES,REVENUE
Walsall Council,http://opendatacommunities.org/id/metropolitan-district-council/walsall ,WC134-564,31.01.2022,CHILDRENS,AMG NURSING CARE SERVICES,17/01/2022,"1,037.82",6220-Accommodation and Related Costs-Assistance to S/S Clients,TRANSFER PAYMENTS,ADULT SOCIAL SERVICES CLIENT,REVENUE
Walsall Council,http://opendatacommunities.org/id/metropolitan-district-council/walsall ,WC134-565,31.01.2022,CHILDRENS,AMG NURSING CARE SERVICES,19/01/2022,321.84,6220-Professional Fees & Services,SUPPLIES & SERVICES,SERVICES,REVENUE
Walsall Council,http://opendatacommunities.org/id/metropolitan-district-council/walsall ,WC134-566,31.01.2022,CHILDRENS,AMG NURSING CARE SERVICES,25/01/2022,406.60,6220-Professional Fees & Services,SUPPLIES & SERVICES,SERVICES,REVENUE
Walsall Council,http://opendatacommunities.org/id/metropolitan-district-council/walsall ,WC134-567,31.01.2022,CHILDRENS,REDACTED,13/01/2022,564.57,6223-Foster Carers Maintenance Allowance,TRANSFER PAYMENTS,CHILDREN SOCIAL SERVICES CLIENT,REVENUE
Walsall Council,http://opendatacommunities.org/id/metropolitan-district-council/walsall ,WC134-568,31.01.2022,CHILDRENS,REDACTED,13/01/2022,315.71,6223-Internal Foster Carers-Carer Fees,TRANSFER PAYMENTS,CHILDREN SOCIAL SERVICES CLIENT,REVENUE
Walsall Council,http://opendatacommunities.org/id/metropolitan-district-council/walsall ,WC134-569,31.01.2022,ADULT SOCIAL CARE,ANCHOR CARE HOMES LTD,18/01/2022,"2,331.08",6541-Residential EMI,THIRD PARTY PAYMENTS,PRIVATE CONTRACTOR,REVENUE
Walsall Council,http://opendatacommunities.org/id/metropolitan-district-council/walsall ,WC134-570,31.01.2022,ADULT SOCIAL CARE,ANCHOR CAREHOMES LTD - HARDEN HALL,10/01/2022,"1,729.98",6554-Professional Services-Priv Contractor & Other Agencies,THIRD PARTY PAYMENTS,PRIVATE CONTRACTOR,REVENUE
Walsall Council,http://opendatacommunities.org/id/metropolitan-district-council/walsall ,WC134-571,31.01.2022,ADULT SOCIAL CARE,ANCHOR CAREHOMES LTD - HARDEN HALL,18/01/2022,"2,355.32",6541-Residential EMI,THIRD PARTY PAYMENTS,PRIVATE CONTRACTOR,REVENUE
Walsall Council,http://opendatacommunities.org/id/metropolitan-district-council/walsall ,WC134-572,31.01.2022,ADULT SOCIAL CARE,ANCHOR CAREHOMES LTD - HARDEN HALL,18/01/2022,"2,331.08",6541-Residential EMI,THIRD PARTY PAYMENTS,PRIVATE CONTRACTOR,REVENUE
Walsall Council,http://opendatacommunities.org/id/metropolitan-district-council/walsall ,WC134-573,31.01.2022,ADULT SOCIAL CARE,ANCHOR CAREHOMES LTD - HARDEN HALL,18/01/2022,"2,331.08",6541-Residential EMI,THIRD PARTY PAYMENTS,PRIVATE CONTRACTOR,REVENUE
Walsall Council,http://opendatacommunities.org/id/metropolitan-district-council/walsall ,WC134-574,31.01.2022,ADULT SOCIAL CARE,ANCHOR CAREHOMES LTD - HARDEN HALL,18/01/2022,"2,064.44",6541-Residential,THIRD PARTY PAYMENTS,PRIVATE CONTRACTOR,REVENUE
Walsall Council,http://opendatacommunities.org/id/metropolitan-district-council/walsall ,WC134-575,31.01.2022,ADULT SOCIAL CARE,ANCHOR CAREHOMES LTD - HARDEN HALL,18/01/2022,"2,331.08",6541-Residential EMI,THIRD PARTY PAYMENTS,PRIVATE CONTRACTOR,REVENUE
Walsall Council,http://opendatacommunities.org/id/metropolitan-district-council/walsall ,WC134-576,31.01.2022,ADULT SOCIAL CARE,ANCHOR CAREHOMES LTD - HARDEN HALL,18/01/2022,"2,331.08",6541-Residential EMI,THIRD PARTY PAYMENTS,PRIVATE CONTRACTOR,REVENUE
Walsall Council,http://opendatacommunities.org/id/metropolitan-district-council/walsall ,WC134-577,31.01.2022,ADULT SOCIAL CARE,ANCHOR CAREHOMES LTD - HARDEN HALL,18/01/2022,"2,331.08",6541-Residential EMI,THIRD PARTY PAYMENTS,PRIVATE CONTRACTOR,REVENUE
Walsall Council,http://opendatacommunities.org/id/metropolitan-district-council/walsall ,WC134-578,31.01.2022,ADULT SOCIAL CARE,ANCHOR CAREHOMES LTD - HARDEN HALL,18/01/2022,"2,331.08",6541-Residential EMI,THIRD PARTY PAYMENTS,PRIVATE CONTRACTOR,REVENUE
Walsall Council,http://opendatacommunities.org/id/metropolitan-district-council/walsall ,WC134-579,31.01.2022,ADULT SOCIAL CARE,ANCHOR CAREHOMES LTD - HARDEN HALL,18/01/2022,"2,331.08",6541-Residential EMI,THIRD PARTY PAYMENTS,PRIVATE CONTRACTOR,REVENUE
Walsall Council,http://opendatacommunities.org/id/metropolitan-district-council/walsall ,WC134-580,31.01.2022,ADULT SOCIAL CARE,ANCHOR CAREHOMES LTD - HARDEN HALL,18/01/2022,667.23,6541-Residential EMI,THIRD PARTY PAYMENTS,PRIVATE CONTRACTOR,REVENUE
Walsall Council,http://opendatacommunities.org/id/metropolitan-district-council/walsall ,WC134-581,31.01.2022,ADULT SOCIAL CARE,ANCHOR CAREHOMES LTD - HARDEN HALL,18/01/2022,"2,355.32",6541-Residential EMI,THIRD PARTY PAYMENTS,PRIVATE CONTRACTOR,REVENUE
Walsall Council,http://opendatacommunities.org/id/metropolitan-district-council/walsall ,WC134-582,31.01.2022,ADULT SOCIAL CARE,ANCHOR CAREHOMES LTD - HARDEN HALL,18/01/2022,"2,382.04",6541-Residential EMI,THIRD PARTY PAYMENTS,PRIVATE CONTRACTOR,REVENUE
Walsall Council,http://opendatacommunities.org/id/metropolitan-district-council/walsall ,WC134-583,31.01.2022,ADULT SOCIAL CARE,ANCHOR CAREHOMES LTD - HARDEN HALL,18/01/2022,999.03,6541-Residential EMI,THIRD PARTY PAYMENTS,PRIVATE CONTRACTOR,REVENUE
Walsall Council,http://opendatacommunities.org/id/metropolitan-district-council/walsall ,WC134-584,31.01.2022,ADULT SOCIAL CARE,ANCHOR CAREHOMES LTD - HARDEN HALL,18/01/2022,"2,350.28",6541-Residential EMI,THIRD PARTY PAYMENTS,PRIVATE CONTRACTOR,REVENUE
Walsall Council,http://opendatacommunities.org/id/metropolitan-district-council/walsall ,WC134-585,31.01.2022,ADULT SOCIAL CARE,ANCHOR CAREHOMES LTD - HARDEN HALL,18/01/2022,"2,691.08",6541-Residential EMI,THIRD PARTY PAYMENTS,PRIVATE CONTRACTOR,REVENUE
Walsall Council,http://opendatacommunities.org/id/metropolitan-district-council/walsall ,WC134-586,31.01.2022,ADULT SOCIAL CARE,ANCHOR CAREHOMES LTD - HARDEN HALL,18/01/2022,"2,294.56",6541-Residential EMI,THIRD PARTY PAYMENTS,PRIVATE CONTRACTOR,REVENUE
Walsall Council,http://opendatacommunities.org/id/metropolitan-district-council/walsall ,WC134-587,31.01.2022,ADULT SOCIAL CARE,ANCHOR CAREHOMES LTD - HARDEN HALL,18/01/2022,"2,331.08",6541-Residential EMI,THIRD PARTY PAYMENTS,PRIVATE CONTRACTOR,REVENUE
Walsall Council,http://opendatacommunities.org/id/metropolitan-district-council/walsall ,WC134-588,31.01.2022,ADULT SOCIAL CARE,ANCHOR CAREHOMES LTD - HARDEN HALL,18/01/2022,"2,691.08",6541-Residential EMI,THIRD PARTY PAYMENTS,PRIVATE CONTRACTOR,REVENUE
Walsall Council,http://opendatacommunities.org/id/metropolitan-district-council/walsall ,WC134-589,31.01.2022,ADULT SOCIAL CARE,ANCHOR CAREHOMES LTD - HARDEN HALL,18/01/2022,"2,331.08",6541-Residential EMI,THIRD PARTY PAYMENTS,PRIVATE CONTRACTOR,REVENUE
Walsall Council,http://opendatacommunities.org/id/metropolitan-district-council/walsall ,WC134-590,31.01.2022,ADULT SOCIAL CARE,ANCHOR CAREHOMES LTD - HARDEN HALL,18/01/2022,"2,064.44",6541-Residential,THIRD PARTY PAYMENTS,PRIVATE CONTRACTOR,REVENUE
Walsall Council,http://opendatacommunities.org/id/metropolitan-district-council/walsall ,WC134-591,31.01.2022,ADULT SOCIAL CARE,ANCHOR CAREHOMES LTD - HARDEN HALL,18/01/2022,"2,331.08",6541-Residential EMI,THIRD PARTY PAYMENTS,PRIVATE CONTRACTOR,REVENUE
Walsall Council,http://opendatacommunities.org/id/metropolitan-district-council/walsall ,WC134-592,31.01.2022,ADULT SOCIAL CARE,ANCHOR CAREHOMES LTD - HARDEN HALL,18/01/2022,"2,331.08",6541-Residential EMI,THIRD PARTY PAYMENTS,PRIVATE CONTRACTOR,REVENUE
Walsall Council,http://opendatacommunities.org/id/metropolitan-district-council/walsall ,WC134-593,31.01.2022,ADULT SOCIAL CARE,ANCHOR CAREHOMES LTD - HARDEN HALL,18/01/2022,"2,064.44",6541-Residential,THIRD PARTY PAYMENTS,PRIVATE CONTRACTOR,REVENUE
Walsall Council,http://opendatacommunities.org/id/metropolitan-district-council/walsall ,WC134-594,31.01.2022,ADULT SOCIAL CARE,ANCHOR CAREHOMES LTD - HARDEN HALL,18/01/2022,"2,691.08",6541-Residential EMI,THIRD PARTY PAYMENTS,PRIVATE CONTRACTOR,REVENUE
Walsall Council,http://opendatacommunities.org/id/metropolitan-district-council/walsall ,WC134-595,31.01.2022,ADULT SOCIAL CARE,ANCHOR CAREHOMES LTD - HARDEN HALL,18/01/2022,"2,691.08",6541-Residential EMI,THIRD PARTY PAYMENTS,PRIVATE CONTRACTOR,REVENUE
Walsall Council,http://opendatacommunities.org/id/metropolitan-district-council/walsall ,WC134-596,31.01.2022,ADULT SOCIAL CARE,ANCHOR CAREHOMES LTD - HARDEN HALL,04/01/2022,"9,018.22",6550-COVID-19 Local Support Grant Exp,TRANSFER PAYMENTS,COVID TRANSFER PAYMENT,REVENUE
Walsall Council,http://opendatacommunities.org/id/metropolitan-district-council/walsall ,WC134-597,31.01.2022,ADULT SOCIAL CARE,ANCHOR CAREHOMES LTD - HARDEN HALL,04/01/2022,"6,407.75",6550-COVID-19 Household Support Grant Exp,TRANSFER PAYMENTS,COVID TRANSFER PAYMENT,REVENUE
Walsall Council,http://opendatacommunities.org/id/metropolitan-district-council/walsall ,WC134-598,31.01.2022,ADULT SOCIAL CARE,ANCHOR CAREHOMES LTD - HARDEN HALL,04/01/2022,634.07,6550-National Tutoring Exp,TRANSFER PAYMENTS,COVID TRANSFER PAYMENT,REVENUE
Walsall Council,http://opendatacommunities.org/id/metropolitan-district-council/walsall ,WC134-599,31.01.2022,CHILDRENS,REDACTED,13/01/2022,292.02,6223-Special Guardianship Orders,TRANSFER PAYMENTS,CHILDREN SOCIAL SERVICES CLIENT,REVENUE
Walsall Council,http://opendatacommunities.org/id/metropolitan-district-council/walsall ,WC134-600,31.01.2022,ADULT SOCIAL CARE,REDACTED,06/01/2022,518.00,6541-Direct Payment,THIRD PARTY PAYMENTS,PRIVATE CONTRACTOR,REVENUE
Walsall Council,http://opendatacommunities.org/id/metropolitan-district-council/walsall ,WC134-601,31.01.2022,ADULT SOCIAL CARE,REDACTED,06/01/2022,"2,710.16",6541-Direct Payment,THIRD PARTY PAYMENTS,PRIVATE CONTRACTOR,REVENUE
Walsall Council,http://opendatacommunities.org/id/metropolitan-district-council/walsall ,WC134-602,31.01.2022,CHILDRENS CAPITAL,ANDREWS ELECTRICAL LTD,12/01/2022,"3,850.00",7150-Site Works Contractors,CAPITAL,"NEW CONSTRUCTION,CONVERSION & RENOVATION",CAPITAL
Walsall Council,http://opendatacommunities.org/id/metropolitan-district-council/walsall ,WC134-603,31.01.2022,CHILDRENS CAPITAL,ANDREWS ELECTRICAL LTD,31/01/2022,462.00,7150-Site Works Contractors,CAPITAL,"NEW CONSTRUCTION,CONVERSION & RENOVATION",CAPITAL
Walsall Council,http://opendatacommunities.org/id/metropolitan-district-council/walsall ,WC134-604,31.01.2022,CHILDRENS,REDACTED,13/01/2022,337.30,6223-Special Guardianship Orders,TRANSFER PAYMENTS,CHILDREN SOCIAL SERVICES CLIENT,REVENUE
Walsall Council,http://opendatacommunities.org/id/metropolitan-district-council/walsall ,WC134-605,31.01.2022,CHILDRENS,REDACTED,13/01/2022,460.61,6223-Special Guardianship Orders,TRANSFER PAYMENTS,CHILDREN SOCIAL SERVICES CLIENT,REVENUE
Walsall Council,http://opendatacommunities.org/id/metropolitan-district-council/walsall ,WC134-606,31.01.2022,CHILDRENS,REDACTED,13/01/2022,295.62,6223-Special Guardianship Orders,TRANSFER PAYMENTS,CHILDREN SOCIAL SERVICES CLIENT,REVENUE
Walsall Council,http://opendatacommunities.org/id/metropolitan-district-council/walsall ,WC134-607,31.01.2022,CHILDRENS,ANGELS AND BUTTERFLIES CHILDMINDING,13/01/2022,668.25,1184-Other-Grants to Other Orgs,SUPPLIES & SERVICES,GRANTS (EXP) & SUBSCRIPTIONS,REVENUE
Walsall Council,http://opendatacommunities.org/id/metropolitan-district-council/walsall ,WC134-608,31.01.2022,CHILDRENS,ANGELS AND BUTTERFLIES CHILDMINDING,13/01/2022,"1,692.90",1184-Other-Grants to Other Orgs,SUPPLIES & SERVICES,GRANTS (EXP) & SUBSCRIPTIONS,REVENUE
Walsall Council,http://opendatacommunities.org/id/metropolitan-district-council/walsall ,WC134-609,31.01.2022,ADULT SOCIAL CARE,REDACTED,13/01/2022,352.80,6541-Shared Lives,THIRD PARTY PAYMENTS,PRIVATE CONTRACTOR,REVENUE
Walsall Council,http://opendatacommunities.org/id/metropolitan-district-council/walsall ,WC134-610,31.01.2022,ADULT SOCIAL CARE,REDACTED,27/01/2022,352.80,6541-Shared Lives,THIRD PARTY PAYMENTS,PRIVATE CONTRACTOR,REVENUE
Walsall Council,http://opendatacommunities.org/id/metropolitan-district-council/walsall ,WC134-611,31.01.2022,CHILDRENS,REDACTED,25/01/2022,260.36,6223-Foster Carers Maintenance Allowance,TRANSFER PAYMENTS,CHILDREN SOCIAL SERVICES CLIENT,REVENUE
Walsall Council,http://opendatacommunities.org/id/metropolitan-district-council/walsall ,WC134-612,31.01.2022,"ECONOMY, ENVIRONMENT & COMMUNITIES",REDACTED,13/01/2022,400.00,6414-Professional Fees & Services,SUPPLIES & SERVICES,SERVICES,REVENUE
Walsall Council,http://opendatacommunities.org/id/metropolitan-district-council/walsall ,WC134-613,31.01.2022,CHILDRENS,REDACTED,13/01/2022,416.78,6223-Special Guardianship Orders,TRANSFER PAYMENTS,CHILDREN SOCIAL SERVICES CLIENT,REVENUE
Walsall Council,http://opendatacommunities.org/id/metropolitan-district-council/walsall ,WC134-614,31.01.2022,ADULT SOCIAL CARE,ANSON COURT RESIDENTIAL HOME,18/01/2022,"2,331.08",6541-Residential EMI,THIRD PARTY PAYMENTS,PRIVATE CONTRACTOR,REVENUE
Walsall Council,http://opendatacommunities.org/id/metropolitan-district-council/walsall ,WC134-615,31.01.2022,ADULT SOCIAL CARE,ANSON COURT RESIDENTIAL HOME,18/01/2022,"2,331.08",6541-Residential EMI,THIRD PARTY PAYMENTS,PRIVATE CONTRACTOR,REVENUE
Walsall Council,http://opendatacommunities.org/id/metropolitan-district-council/walsall ,WC134-616,31.01.2022,ADULT SOCIAL CARE,ANSON COURT RESIDENTIAL HOME,18/01/2022,"2,331.08",6541-Residential EMI,THIRD PARTY PAYMENTS,PRIVATE CONTRACTOR,REVENUE
Walsall Council,http://opendatacommunities.org/id/metropolitan-district-council/walsall ,WC134-617,31.01.2022,ADULT SOCIAL CARE,ANSON COURT RESIDENTIAL HOME,18/01/2022,"2,331.08",6541-Residential EMI,THIRD PARTY PAYMENTS,PRIVATE CONTRACTOR,REVENUE
Walsall Council,http://opendatacommunities.org/id/metropolitan-district-council/walsall ,WC134-618,31.01.2022,ADULT SOCIAL CARE,ANSON COURT RESIDENTIAL HOME,18/01/2022,"2,184.44",6541-Residential,THIRD PARTY PAYMENTS,PRIVATE CONTRACTOR,REVENUE
Walsall Council,http://opendatacommunities.org/id/metropolitan-district-council/walsall ,WC134-619,31.01.2022,ADULT SOCIAL CARE,ANSON COURT RESIDENTIAL HOME,18/01/2022,"2,331.08",6541-Residential EMI,THIRD PARTY PAYMENTS,PRIVATE CONTRACTOR,REVENUE
Walsall Council,http://opendatacommunities.org/id/metropolitan-district-council/walsall ,WC134-620,31.01.2022,ADULT SOCIAL CARE,ANSON COURT RESIDENTIAL HOME,18/01/2022,"2,331.08",6541-Residential EMI,THIRD PARTY PAYMENTS,PRIVATE CONTRACTOR,REVENUE
Walsall Council,http://opendatacommunities.org/id/metropolitan-district-council/walsall ,WC134-621,31.01.2022,ADULT SOCIAL CARE,ANSON COURT RESIDENTIAL HOME,18/01/2022,"2,331.08",6541-Residential EMI,THIRD PARTY PAYMENTS,PRIVATE CONTRACTOR,REVENUE
Walsall Council,http://opendatacommunities.org/id/metropolitan-district-council/walsall ,WC134-622,31.01.2022,ADULT SOCIAL CARE,ANSON COURT RESIDENTIAL HOME,18/01/2022,"4,644.99",6541-Residential,THIRD PARTY PAYMENTS,PRIVATE CONTRACTOR,REVENUE
Walsall Council,http://opendatacommunities.org/id/metropolitan-district-council/walsall ,WC134-623,31.01.2022,ADULT SOCIAL CARE,ANSON COURT RESIDENTIAL HOME,18/01/2022,294.92,6541-Short Stay Residential,THIRD PARTY PAYMENTS,PRIVATE CONTRACTOR,REVENUE
Walsall Council,http://opendatacommunities.org/id/metropolitan-district-council/walsall ,WC134-624,31.01.2022,ADULT SOCIAL CARE,ANSON COURT RESIDENTIAL HOME,18/01/2022,"2,331.08",6541-Residential EMI,THIRD PARTY PAYMENTS,PRIVATE CONTRACTOR,REVENUE
Walsall Council,http://opendatacommunities.org/id/metropolitan-district-council/walsall ,WC134-625,31.01.2022,ADULT SOCIAL CARE,ANSON COURT RESIDENTIAL HOME,18/01/2022,"2,331.08",6541-Residential EMI,THIRD PARTY PAYMENTS,PRIVATE CONTRACTOR,REVENUE
Walsall Council,http://opendatacommunities.org/id/metropolitan-district-council/walsall ,WC134-626,31.01.2022,ADULT SOCIAL CARE,ANSON COURT RESIDENTIAL HOME,18/01/2022,"2,064.44",6541-Residential,THIRD PARTY PAYMENTS,PRIVATE CONTRACTOR,REVENUE
Walsall Council,http://opendatacommunities.org/id/metropolitan-district-council/walsall ,WC134-627,31.01.2022,ADULT SOCIAL CARE,ANSON COURT RESIDENTIAL HOME,18/01/2022,"2,331.08",6541-Residential EMI,THIRD PARTY PAYMENTS,PRIVATE CONTRACTOR,REVENUE
Walsall Council,http://opendatacommunities.org/id/metropolitan-district-council/walsall ,WC134-628,31.01.2022,ADULT SOCIAL CARE,ANSON COURT RESIDENTIAL HOME,18/01/2022,"2,064.44",6541-Residential,THIRD PARTY PAYMENTS,PRIVATE CONTRACTOR,REVENUE
Walsall Council,http://opendatacommunities.org/id/metropolitan-district-council/walsall ,WC134-629,31.01.2022,ADULT SOCIAL CARE,ANSON COURT RESIDENTIAL HOME,18/01/2022,"2,331.08",6541-Residential EMI,THIRD PARTY PAYMENTS,PRIVATE CONTRACTOR,REVENUE
Walsall Council,http://opendatacommunities.org/id/metropolitan-district-council/walsall ,WC134-630,31.01.2022,ADULT SOCIAL CARE,ANSON COURT RESIDENTIAL HOME,18/01/2022,"2,331.08",6541-Residential EMI,THIRD PARTY PAYMENTS,PRIVATE CONTRACTOR,REVENUE
Walsall Council,http://opendatacommunities.org/id/metropolitan-district-council/walsall ,WC134-631,31.01.2022,ADULT SOCIAL CARE,ANSON COURT RESIDENTIAL HOME,18/01/2022,"2,331.08",6541-Residential EMI,THIRD PARTY PAYMENTS,PRIVATE CONTRACTOR,REVENUE
Walsall Council,http://opendatacommunities.org/id/metropolitan-district-council/walsall ,WC134-632,31.01.2022,ADULT SOCIAL CARE,ANSON COURT RESIDENTIAL HOME,18/01/2022,"1,769.52",6541-Short Stay Residential,THIRD PARTY PAYMENTS,PRIVATE CONTRACTOR,REVENUE
Walsall Council,http://opendatacommunities.org/id/metropolitan-district-council/walsall ,WC134-633,31.01.2022,ADULT SOCIAL CARE,ANSON COURT RESIDENTIAL HOME,18/01/2022,"2,331.08",6541-Residential EMI,THIRD PARTY PAYMENTS,PRIVATE CONTRACTOR,REVENUE
Walsall Council,http://opendatacommunities.org/id/metropolitan-district-council/walsall ,WC134-634,31.01.2022,ADULT SOCIAL CARE,ANSON COURT RESIDENTIAL HOME,18/01/2022,"2,331.08",6541-Residential EMI,THIRD PARTY PAYMENTS,PRIVATE CONTRACTOR,REVENUE
Walsall Council,http://opendatacommunities.org/id/metropolitan-district-council/walsall ,WC134-635,31.01.2022,ADULT SOCIAL CARE,ANSON COURT RESIDENTIAL HOME,04/01/2022,"5,511.13",6550-COVID-19 Local Support Grant Exp,TRANSFER PAYMENTS,COVID TRANSFER PAYMENT,REVENUE
Walsall Council,http://opendatacommunities.org/id/metropolitan-district-council/walsall ,WC134-636,31.01.2022,ADULT SOCIAL CARE,ANSON COURT RESIDENTIAL HOME,04/01/2022,"3,915.85",6550-COVID-19 Household Support Grant Exp,TRANSFER PAYMENTS,COVID TRANSFER PAYMENT,REVENUE
Walsall Council,http://opendatacommunities.org/id/metropolitan-district-council/walsall ,WC134-637,31.01.2022,ADULT SOCIAL CARE,ANSON COURT RESIDENTIAL HOME,04/01/2022,391.98,6550-National Tutoring Exp,TRANSFER PAYMENTS,COVID TRANSFER PAYMENT,REVENUE
Walsall Council,http://opendatacommunities.org/id/metropolitan-district-council/walsall ,WC134-638,31.01.2022,CHILDRENS,REDACTED,13/01/2022,310.74,6223-Special Guardianship Orders,TRANSFER PAYMENTS,CHILDREN SOCIAL SERVICES CLIENT,REVENUE
Walsall Council,http://opendatacommunities.org/id/metropolitan-district-council/walsall ,WC134-639,31.01.2022,"ECONOMY, ENVIRONMENT & COMMUNITIES",APCOA PARKING SERVICES (UK) LTD,26/01/2022,"53,475.16",6411-Professional Services-Priv Contractor & Other Agencies,THIRD PARTY PAYMENTS,PRIVATE CONTRACTOR,REVENUE
Walsall Council,http://opendatacommunities.org/id/metropolitan-district-council/walsall ,WC134-640,31.01.2022,RESOURCES AND TRANSFORMATION,APCOA PARKING SERVICES (UK) LTD,28/01/2022,-748.65,6634-Oxygen Finance Rebates ,SUPPLIES & SERVICES,SERVICES,REVENUE
Walsall Council,http://opendatacommunities.org/id/metropolitan-district-council/walsall ,WC134-641,31.01.2022,CHILDRENS,APP CARZ,18/01/2022,735.00,6314-Hire of Vehicle with Driver,TRANSPORT,DIRECT TRANSPORT COSTS,REVENUE
Walsall Council,http://opendatacommunities.org/id/metropolitan-district-council/walsall ,WC134-642,31.01.2022,CHILDRENS,APP CARZ,04/01/2022,400.00,6241-Hire of Vehicle with Driver,TRANSPORT,DIRECT TRANSPORT COSTS,REVENUE
Walsall Council,http://opendatacommunities.org/id/metropolitan-district-council/walsall ,WC134-643,31.01.2022,CHILDRENS,APP CARZ,04/01/2022,704.00,6241-Hire of Vehicle with Driver,TRANSPORT,DIRECT TRANSPORT COSTS,REVENUE
Walsall Council,http://opendatacommunities.org/id/metropolitan-district-council/walsall ,WC134-644,31.01.2022,CHILDRENS,APP CARZ,04/01/2022,880.00,6241-Hire of Vehicle with Driver,TRANSPORT,DIRECT TRANSPORT COSTS,REVENUE
Walsall Council,http://opendatacommunities.org/id/metropolitan-district-council/walsall ,WC134-645,31.01.2022,CHILDRENS,APP CARZ,04/01/2022,576.00,6241-Hire of Vehicle with Driver,TRANSPORT,DIRECT TRANSPORT COSTS,REVENUE
Walsall Council,http://opendatacommunities.org/id/metropolitan-district-council/walsall ,WC134-646,31.01.2022,CHILDRENS,APP CARZ,04/01/2022,"1,800.00",6241-Hire of Vehicle with Driver,TRANSPORT,DIRECT TRANSPORT COSTS,REVENUE
Walsall Council,http://opendatacommunities.org/id/metropolitan-district-council/walsall ,WC134-647,31.01.2022,CHILDRENS,APP CARZ,04/01/2022,"2,890.00",6241-Hire of Vehicle with Driver,TRANSPORT,DIRECT TRANSPORT COSTS,REVENUE
Walsall Council,http://opendatacommunities.org/id/metropolitan-district-council/walsall ,WC134-648,31.01.2022,CHILDRENS,APP CARZ,04/01/2022,768.00,6241-Hire of Vehicle with Driver,TRANSPORT,DIRECT TRANSPORT COSTS,REVENUE
Walsall Council,http://opendatacommunities.org/id/metropolitan-district-council/walsall ,WC134-649,31.01.2022,CHILDRENS,APP CARZ,04/01/2022,950.00,6241-Hire of Vehicle with Driver,TRANSPORT,DIRECT TRANSPORT COSTS,REVENUE
Walsall Council,http://opendatacommunities.org/id/metropolitan-district-council/walsall ,WC134-650,31.01.2022,CHILDRENS,APP CARZ,04/01/2022,840.00,6241-Hire of Vehicle with Driver,TRANSPORT,DIRECT TRANSPORT COSTS,REVENUE
Walsall Council,http://opendatacommunities.org/id/metropolitan-district-council/walsall ,WC134-651,31.01.2022,CHILDRENS,APP CARZ,04/01/2022,"1,408.00",6241-Hire of Vehicle with Driver,TRANSPORT,DIRECT TRANSPORT COSTS,REVENUE
Walsall Council,http://opendatacommunities.org/id/metropolitan-district-council/walsall ,WC134-652,31.01.2022,CHILDRENS,APP CARZ,04/01/2022,720.00,6241-Hire of Vehicle with Driver,TRANSPORT,DIRECT TRANSPORT COSTS,REVENUE
Walsall Council,http://opendatacommunities.org/id/metropolitan-district-council/walsall ,WC134-653,31.01.2022,CHILDRENS,APP CARZ,04/01/2022,"1,700.00",6241-Hire of Vehicle with Driver,TRANSPORT,DIRECT TRANSPORT COSTS,REVENUE
Walsall Council,http://opendatacommunities.org/id/metropolitan-district-council/walsall ,WC134-654,31.01.2022,CHILDRENS,APP CARZ,04/01/2022,"1,655.00",6241-Hire of Vehicle with Driver,TRANSPORT,DIRECT TRANSPORT COSTS,REVENUE
Walsall Council,http://opendatacommunities.org/id/metropolitan-district-council/walsall ,WC134-655,31.01.2022,CHILDRENS,APP CARZ,04/01/2022,"1,080.00",6241-Hire of Vehicle with Driver,TRANSPORT,DIRECT TRANSPORT COSTS,REVENUE
Walsall Council,http://opendatacommunities.org/id/metropolitan-district-council/walsall ,WC134-656,31.01.2022,CHILDRENS,APPLE TRANSCRIPTION LIMITED,17/01/2022,365.04,6220-School Only Payments - Catering,THIRD PARTY PAYMENTS,INDEPENDENT UNIT WITHIN COUNCIL,REVENUE
Walsall Council,http://opendatacommunities.org/id/metropolitan-district-council/walsall ,WC134-657,31.01.2022,"ECONOMY, ENVIRONMENT & COMMUNITIES",ARA COMMERCIAL LIMITED,05/01/2022,300.00,6414-Stationery & General Office Supplies,SUPPLIES & SERVICES,PRINTING STATIONERY & GENERAL OFFICE,REVENUE
Walsall Council,http://opendatacommunities.org/id/metropolitan-district-council/walsall ,WC134-658,31.01.2022,ADULT SOCIAL CARE,ARBORETUM NURSING HOME.,10/01/2022,"-3,405.68",6554-Professional Services-Priv Contractor & Other Agencies,THIRD PARTY PAYMENTS,PRIVATE CONTRACTOR,REVENUE
Walsall Council,http://opendatacommunities.org/id/metropolitan-district-council/walsall ,WC134-659,31.01.2022,ADULT SOCIAL CARE,ARBORETUM NURSING HOME.,10/01/2022,"3,405.68",6554-Professional Services-Priv Contractor & Other Agencies,THIRD PARTY PAYMENTS,PRIVATE CONTRACTOR,REVENUE
Walsall Council,http://opendatacommunities.org/id/metropolitan-district-council/walsall ,WC134-660,31.01.2022,ADULT SOCIAL CARE,ARBORETUM NURSING HOME.,28/01/2022,"11,920.00",6554-Agency Staff,DIRECT EMPLOYEES,AGENCY,REVENUE
Walsall Council,http://opendatacommunities.org/id/metropolitan-district-council/walsall ,WC134-661,31.01.2022,ADULT SOCIAL CARE,ARBORETUM NURSING HOME.,18/01/2022,"2,419.96",6541-Nursing,THIRD PARTY PAYMENTS,PRIVATE CONTRACTOR,REVENUE
Walsall Council,http://opendatacommunities.org/id/metropolitan-district-council/walsall ,WC134-662,31.01.2022,ADULT SOCIAL CARE,ARBORETUM NURSING HOME.,18/01/2022,"2,419.96",6541-Nursing,THIRD PARTY PAYMENTS,PRIVATE CONTRACTOR,REVENUE
Walsall Council,http://opendatacommunities.org/id/metropolitan-district-council/walsall ,WC134-663,31.01.2022,ADULT SOCIAL CARE,ARBORETUM NURSING HOME.,18/01/2022,"2,419.96",6541-Nursing,THIRD PARTY PAYMENTS,PRIVATE CONTRACTOR,REVENUE
Walsall Council,http://opendatacommunities.org/id/metropolitan-district-council/walsall ,WC134-664,31.01.2022,ADULT SOCIAL CARE,ARBORETUM NURSING HOME.,18/01/2022,"2,419.96",6541-Nursing,THIRD PARTY PAYMENTS,PRIVATE CONTRACTOR,REVENUE
Walsall Council,http://opendatacommunities.org/id/metropolitan-district-council/walsall ,WC134-665,31.01.2022,ADULT SOCIAL CARE,ARBORETUM NURSING HOME.,18/01/2022,"2,419.96",6541-Nursing,THIRD PARTY PAYMENTS,PRIVATE CONTRACTOR,REVENUE
Walsall Council,http://opendatacommunities.org/id/metropolitan-district-council/walsall ,WC134-666,31.01.2022,ADULT SOCIAL CARE,ARBORETUM NURSING HOME.,18/01/2022,"2,419.96",6541-Nursing,THIRD PARTY PAYMENTS,PRIVATE CONTRACTOR,REVENUE
Walsall Council,http://opendatacommunities.org/id/metropolitan-district-council/walsall ,WC134-667,31.01.2022,ADULT SOCIAL CARE,ARBORETUM NURSING HOME.,18/01/2022,"2,575.96",6541-Nursing,THIRD PARTY PAYMENTS,PRIVATE CONTRACTOR,REVENUE
Walsall Council,http://opendatacommunities.org/id/metropolitan-district-council/walsall ,WC134-668,31.01.2022,ADULT SOCIAL CARE,ARBORETUM NURSING HOME.,18/01/2022,"2,419.96",6541-Nursing,THIRD PARTY PAYMENTS,PRIVATE CONTRACTOR,REVENUE
Walsall Council,http://opendatacommunities.org/id/metropolitan-district-council/walsall ,WC134-669,31.01.2022,ADULT SOCIAL CARE,ARBORETUM NURSING HOME.,18/01/2022,"2,599.96",6541-Nursing,THIRD PARTY PAYMENTS,PRIVATE CONTRACTOR,REVENUE
Walsall Council,http://opendatacommunities.org/id/metropolitan-district-council/walsall ,WC134-670,31.01.2022,ADULT SOCIAL CARE,ARBORETUM NURSING HOME.,18/01/2022,"2,599.96",6541-Nursing,THIRD PARTY PAYMENTS,PRIVATE CONTRACTOR,REVENUE
Walsall Council,http://opendatacommunities.org/id/metropolitan-district-council/walsall ,WC134-671,31.01.2022,ADULT SOCIAL CARE,ARBORETUM NURSING HOME.,18/01/2022,"2,800.00",6541-Nursing,THIRD PARTY PAYMENTS,PRIVATE CONTRACTOR,REVENUE
Walsall Council,http://opendatacommunities.org/id/metropolitan-district-council/walsall ,WC134-672,31.01.2022,ADULT SOCIAL CARE,ARBORETUM NURSING HOME.,18/01/2022,"2,599.96",6541-Nursing,THIRD PARTY PAYMENTS,PRIVATE CONTRACTOR,REVENUE
Walsall Council,http://opendatacommunities.org/id/metropolitan-district-council/walsall ,WC134-673,31.01.2022,ADULT SOCIAL CARE,ARBORETUM NURSING HOME.,18/01/2022,"2,599.96",6541-Nursing,THIRD PARTY PAYMENTS,PRIVATE CONTRACTOR,REVENUE
Walsall Council,http://opendatacommunities.org/id/metropolitan-district-council/walsall ,WC134-674,31.01.2022,ADULT SOCIAL CARE,ARBORETUM NURSING HOME.,18/01/2022,319.29,6541-Residential & Nursing Care Placements,THIRD PARTY PAYMENTS,PRIVATE CONTRACTOR,REVENUE
Walsall Council,http://opendatacommunities.org/id/metropolitan-district-council/walsall ,WC134-675,31.01.2022,ADULT SOCIAL CARE,ARBORETUM NURSING HOME.,18/01/2022,"1,915.71",6541-Residential & Nursing Care Placements,THIRD PARTY PAYMENTS,PRIVATE CONTRACTOR,REVENUE
Walsall Council,http://opendatacommunities.org/id/metropolitan-district-council/walsall ,WC134-676,31.01.2022,ADULT SOCIAL CARE,ARBORETUM NURSING HOME.,18/01/2022,"1,170.71",6541-Residential & Nursing Care Placements,THIRD PARTY PAYMENTS,PRIVATE CONTRACTOR,REVENUE
Walsall Council,http://opendatacommunities.org/id/metropolitan-district-council/walsall ,WC134-677,31.01.2022,ADULT SOCIAL CARE,ARBORETUM NURSING HOME.,18/01/2022,"2,419.96",6541-Nursing,THIRD PARTY PAYMENTS,PRIVATE CONTRACTOR,REVENUE
Walsall Council,http://opendatacommunities.org/id/metropolitan-district-council/walsall ,WC134-678,31.01.2022,ADULT SOCIAL CARE,ARBORETUM NURSING HOME.,18/01/2022,"2,599.96",6541-Nursing,THIRD PARTY PAYMENTS,PRIVATE CONTRACTOR,REVENUE
Walsall Council,http://opendatacommunities.org/id/metropolitan-district-council/walsall ,WC134-679,31.01.2022,ADULT SOCIAL CARE,ARBORETUM NURSING HOME.,18/01/2022,"2,599.96",6541-Nursing,THIRD PARTY PAYMENTS,PRIVATE CONTRACTOR,REVENUE
Walsall Council,http://opendatacommunities.org/id/metropolitan-district-council/walsall ,WC134-680,31.01.2022,ADULT SOCIAL CARE,ARBORETUM NURSING HOME.,18/01/2022,"2,599.96",6541-Nursing,THIRD PARTY PAYMENTS,PRIVATE CONTRACTOR,REVENUE
Walsall Council,http://opendatacommunities.org/id/metropolitan-district-council/walsall ,WC134-681,31.01.2022,ADULT SOCIAL CARE,ARBORETUM NURSING HOME.,18/01/2022,"1,064.29",6541-Residential & Nursing Care Placements,THIRD PARTY PAYMENTS,PRIVATE CONTRACTOR,REVENUE
Walsall Council,http://opendatacommunities.org/id/metropolitan-district-council/walsall ,WC134-682,31.01.2022,ADULT SOCIAL CARE,ARBORETUM NURSING HOME.,18/01/2022,"2,419.96",6541-Nursing,THIRD PARTY PAYMENTS,PRIVATE CONTRACTOR,REVENUE
Walsall Council,http://opendatacommunities.org/id/metropolitan-district-council/walsall ,WC134-683,31.01.2022,ADULT SOCIAL CARE,ARBORETUM NURSING HOME.,18/01/2022,"1,809.29",6541-Residential & Nursing Care Placements,THIRD PARTY PAYMENTS,PRIVATE CONTRACTOR,REVENUE
Walsall Council,http://opendatacommunities.org/id/metropolitan-district-council/walsall ,WC134-684,31.01.2022,ADULT SOCIAL CARE,ARBORETUM NURSING HOME.,18/01/2022,"2,599.96",6541-Nursing,THIRD PARTY PAYMENTS,PRIVATE CONTRACTOR,REVENUE
Walsall Council,http://opendatacommunities.org/id/metropolitan-district-council/walsall ,WC134-685,31.01.2022,ADULT SOCIAL CARE,ARBORETUM NURSING HOME.,04/01/2022,"9,018.22",6550-COVID-19 Local Support Grant Exp,TRANSFER PAYMENTS,COVID TRANSFER PAYMENT,REVENUE
Walsall Council,http://opendatacommunities.org/id/metropolitan-district-council/walsall ,WC134-686,31.01.2022,ADULT SOCIAL CARE,ARBORETUM NURSING HOME.,04/01/2022,"6,407.75",6550-COVID-19 Household Support Grant Exp,TRANSFER PAYMENTS,COVID TRANSFER PAYMENT,REVENUE
Walsall Council,http://opendatacommunities.org/id/metropolitan-district-council/walsall ,WC134-687,31.01.2022,ADULT SOCIAL CARE,ARBORETUM NURSING HOME.,04/01/2022,634.07,6550-National Tutoring Exp,TRANSFER PAYMENTS,COVID TRANSFER PAYMENT,REVENUE
Walsall Council,http://opendatacommunities.org/id/metropolitan-district-council/walsall ,WC134-688,31.01.2022,"ECONOMY, ENVIRONMENT & COMMUNITIES",ARCADIS,10/01/2022,"10,000.00",6313-Professional Fees & Services,SUPPLIES & SERVICES,SERVICES,REVENUE
Walsall Council,http://opendatacommunities.org/id/metropolitan-district-council/walsall ,WC134-689,31.01.2022,"ECONOMY, ENVIRONMENT & COMMUNITIES",ARCADIS,10/01/2022,"20,000.00",6313-Professional Fees & Services,SUPPLIES & SERVICES,SERVICES,REVENUE
Walsall Council,http://opendatacommunities.org/id/metropolitan-district-council/walsall ,WC134-690,31.01.2022,"ECONOMY, ENVIRONMENT & COMMUNITIES",ARCADIS,12/01/2022,"19,854.67",6313-Consultant Fees,SUPPLIES & SERVICES,SERVICES,REVENUE
Walsall Council,http://opendatacommunities.org/id/metropolitan-district-council/walsall ,WC134-691,31.01.2022,CHILDRENS,ASDA STORES LIMITED,13/01/2022,691.20,6314-Housing Benefits-Transfer Payments,TRANSFER PAYMENTS,HOUSING BENEFITS,REVENUE
Walsall Council,http://opendatacommunities.org/id/metropolitan-district-council/walsall ,WC134-692,31.01.2022,CHILDRENS,ASDA STORES LIMITED,18/01/2022,480.00,6314-Housing Benefits-Transfer Payments,TRANSFER PAYMENTS,HOUSING BENEFITS,REVENUE
Walsall Council,http://opendatacommunities.org/id/metropolitan-district-council/walsall ,WC134-693,31.01.2022,ADULT SOCIAL CARE,ASH GRANGE CARE HOME,18/01/2022,"2,722.96",6541-Nursing EMI,THIRD PARTY PAYMENTS,PRIVATE CONTRACTOR,REVENUE
Walsall Council,http://opendatacommunities.org/id/metropolitan-district-council/walsall ,WC134-694,31.01.2022,ADULT SOCIAL CARE,ASH GRANGE CARE HOME,18/01/2022,"2,722.96",6541-Nursing EMI,THIRD PARTY PAYMENTS,PRIVATE CONTRACTOR,REVENUE
Walsall Council,http://opendatacommunities.org/id/metropolitan-district-council/walsall ,WC134-695,31.01.2022,ADULT SOCIAL CARE,ASH GRANGE CARE HOME,18/01/2022,805.71,6541-Nursing,THIRD PARTY PAYMENTS,PRIVATE CONTRACTOR,REVENUE
Walsall Council,http://opendatacommunities.org/id/metropolitan-district-council/walsall ,WC134-696,31.01.2022,ADULT SOCIAL CARE,ASH GRANGE CARE HOME,18/01/2022,"2,419.96",6541-Nursing,THIRD PARTY PAYMENTS,PRIVATE CONTRACTOR,REVENUE
Walsall Council,http://opendatacommunities.org/id/metropolitan-district-council/walsall ,WC134-697,31.01.2022,ADULT SOCIAL CARE,ASH GRANGE CARE HOME,18/01/2022,"2,619.96",6541-Nursing,THIRD PARTY PAYMENTS,PRIVATE CONTRACTOR,REVENUE
Walsall Council,http://opendatacommunities.org/id/metropolitan-district-council/walsall ,WC134-698,31.01.2022,ADULT SOCIAL CARE,ASH GRANGE CARE HOME,18/01/2022,"1,037.13",6541-Nursing,THIRD PARTY PAYMENTS,PRIVATE CONTRACTOR,REVENUE
Walsall Council,http://opendatacommunities.org/id/metropolitan-district-council/walsall ,WC134-699,31.01.2022,ADULT SOCIAL CARE,ASH GRANGE CARE HOME,18/01/2022,"2,400.00",6541-Residential,THIRD PARTY PAYMENTS,PRIVATE CONTRACTOR,REVENUE
Walsall Council,http://opendatacommunities.org/id/metropolitan-district-council/walsall ,WC134-700,31.01.2022,ADULT SOCIAL CARE,ASH GRANGE CARE HOME,18/01/2022,"2,064.44",6541-Residential,THIRD PARTY PAYMENTS,PRIVATE CONTRACTOR,REVENUE
Walsall Council,http://opendatacommunities.org/id/metropolitan-district-council/walsall ,WC134-701,31.01.2022,ADULT SOCIAL CARE,ASH GRANGE CARE HOME,18/01/2022,"2,419.96",6541-Nursing,THIRD PARTY PAYMENTS,PRIVATE CONTRACTOR,REVENUE
Walsall Council,http://opendatacommunities.org/id/metropolitan-district-council/walsall ,WC134-702,31.01.2022,ADULT SOCIAL CARE,ASH GRANGE CARE HOME,18/01/2022,"3,000.00",6541-Residential & Nursing Care Placements,THIRD PARTY PAYMENTS,PRIVATE CONTRACTOR,REVENUE
Walsall Council,http://opendatacommunities.org/id/metropolitan-district-council/walsall ,WC134-703,31.01.2022,ADULT SOCIAL CARE,ASH GRANGE CARE HOME,18/01/2022,"3,000.00",6541-Residential & Nursing Care Placements,THIRD PARTY PAYMENTS,PRIVATE CONTRACTOR,REVENUE
Walsall Council,http://opendatacommunities.org/id/metropolitan-district-council/walsall ,WC134-704,31.01.2022,ADULT SOCIAL CARE,ASH GRANGE CARE HOME,18/01/2022,"2,419.96",6541-Nursing,THIRD PARTY PAYMENTS,PRIVATE CONTRACTOR,REVENUE
Walsall Council,http://opendatacommunities.org/id/metropolitan-district-council/walsall ,WC134-705,31.01.2022,ADULT SOCIAL CARE,ASH GRANGE CARE HOME,18/01/2022,"2,819.96",6541-Nursing,THIRD PARTY PAYMENTS,PRIVATE CONTRACTOR,REVENUE
Walsall Council,http://opendatacommunities.org/id/metropolitan-district-council/walsall ,WC134-706,31.01.2022,ADULT SOCIAL CARE,ASH GRANGE CARE HOME,18/01/2022,"2,606.96",6541-Residential,THIRD PARTY PAYMENTS,PRIVATE CONTRACTOR,REVENUE
Walsall Council,http://opendatacommunities.org/id/metropolitan-district-council/walsall ,WC134-707,31.01.2022,ADULT SOCIAL CARE,ASH GRANGE CARE HOME,18/01/2022,"2,719.96",6541-Nursing,THIRD PARTY PAYMENTS,PRIVATE CONTRACTOR,REVENUE
Walsall Council,http://opendatacommunities.org/id/metropolitan-district-council/walsall ,WC134-708,31.01.2022,ADULT SOCIAL CARE,ASH GRANGE CARE HOME,18/01/2022,"2,722.96",6541-Nursing EMI,THIRD PARTY PAYMENTS,PRIVATE CONTRACTOR,REVENUE
Walsall Council,http://opendatacommunities.org/id/metropolitan-district-council/walsall ,WC134-709,31.01.2022,ADULT SOCIAL CARE,ASH GRANGE CARE HOME,18/01/2022,"2,798.92",6541-Nursing,THIRD PARTY PAYMENTS,PRIVATE CONTRACTOR,REVENUE
Walsall Council,http://opendatacommunities.org/id/metropolitan-district-council/walsall ,WC134-710,31.01.2022,ADULT SOCIAL CARE,ASH GRANGE CARE HOME,18/01/2022,"3,000.00",6541-Residential & Nursing Care Placements,THIRD PARTY PAYMENTS,PRIVATE CONTRACTOR,REVENUE
Walsall Council,http://opendatacommunities.org/id/metropolitan-district-council/walsall ,WC134-711,31.01.2022,ADULT SOCIAL CARE,ASH GRANGE CARE HOME,18/01/2022,964.29,6541-Residential & Nursing Care Placements,THIRD PARTY PAYMENTS,PRIVATE CONTRACTOR,REVENUE
Walsall Council,http://opendatacommunities.org/id/metropolitan-district-council/walsall ,WC134-712,31.01.2022,ADULT SOCIAL CARE,ASH GRANGE CARE HOME,18/01/2022,"8,982.72",6541-Nursing,THIRD PARTY PAYMENTS,PRIVATE CONTRACTOR,REVENUE
Walsall Council,http://opendatacommunities.org/id/metropolitan-district-council/walsall ,WC134-713,31.01.2022,ADULT SOCIAL CARE,ASH GRANGE CARE HOME,18/01/2022,"1,928.57",6541-Residential & Nursing Care Placements,THIRD PARTY PAYMENTS,PRIVATE CONTRACTOR,REVENUE
Walsall Council,http://opendatacommunities.org/id/metropolitan-district-council/walsall ,WC134-714,31.01.2022,ADULT SOCIAL CARE,ASH GRANGE CARE HOME,04/01/2022,"7,014.17",6550-COVID-19 Local Support Grant Exp,TRANSFER PAYMENTS,COVID TRANSFER PAYMENT,REVENUE
Walsall Council,http://opendatacommunities.org/id/metropolitan-district-council/walsall ,WC134-715,31.01.2022,ADULT SOCIAL CARE,ASH GRANGE CARE HOME,04/01/2022,"4,983.80",6550-COVID-19 Household Support Grant Exp,TRANSFER PAYMENTS,COVID TRANSFER PAYMENT,REVENUE
Walsall Council,http://opendatacommunities.org/id/metropolitan-district-council/walsall ,WC134-716,31.01.2022,ADULT SOCIAL CARE,ASH GRANGE CARE HOME,04/01/2022,493.16,6550-National Tutoring Exp,TRANSFER PAYMENTS,COVID TRANSFER PAYMENT,REVENUE
Walsall Council,http://opendatacommunities.org/id/metropolitan-district-council/walsall ,WC134-717,31.01.2022,ADULT SOCIAL CARE,REDACTED,06/01/2022,"1,426.04",6541-Direct Payment,THIRD PARTY PAYMENTS,PRIVATE CONTRACTOR,REVENUE
Walsall Council,http://opendatacommunities.org/id/metropolitan-district-council/walsall ,WC134-718,31.01.2022,"ECONOMY, ENVIRONMENT & COMMUNITIES",ASKEWS AND HOLTS LIBRARY SERVICES LTD,04/01/2022,491.43,6414-Library Books,SUPPLIES & SERVICES,EQUIPMENT FURNITURE & MATERIALS,REVENUE
Walsall Council,http://opendatacommunities.org/id/metropolitan-district-council/walsall ,WC134-719,31.01.2022,"ECONOMY, ENVIRONMENT & COMMUNITIES",ASKEWS AND HOLTS LIBRARY SERVICES LTD,13/01/2022,"3,508.70",6414-Library Books,SUPPLIES & SERVICES,EQUIPMENT FURNITURE & MATERIALS,REVENUE
Walsall Council,http://opendatacommunities.org/id/metropolitan-district-council/walsall ,WC134-720,31.01.2022,"ECONOMY, ENVIRONMENT & COMMUNITIES",ASKEWS AND HOLTS LIBRARY SERVICES LTD,19/01/2022,605.01,6414-Library Books,SUPPLIES & SERVICES,EQUIPMENT FURNITURE & MATERIALS,REVENUE
Walsall Council,http://opendatacommunities.org/id/metropolitan-district-council/walsall ,WC134-721,31.01.2022,"ECONOMY, ENVIRONMENT & COMMUNITIES",ASKEWS AND HOLTS LIBRARY SERVICES LTD,04/01/2022,"1,902.03",6414-Library Books,SUPPLIES & SERVICES,EQUIPMENT FURNITURE & MATERIALS,REVENUE
Walsall Council,http://opendatacommunities.org/id/metropolitan-district-council/walsall ,WC134-722,31.01.2022,ADULT SOCIAL CARE,REDACTED,06/01/2022,750.72,6541-Direct Payment,THIRD PARTY PAYMENTS,PRIVATE CONTRACTOR,REVENUE
Walsall Council,http://opendatacommunities.org/id/metropolitan-district-council/walsall ,WC134-723,31.01.2022,ADULT SOCIAL CARE,ASPECTS CARE LTD,12/01/2022,421.44,6541-Community Supported Living/Supported Accommodation,THIRD PARTY PAYMENTS,PRIVATE CONTRACTOR,REVENUE
Walsall Council,http://opendatacommunities.org/id/metropolitan-district-council/walsall ,WC134-724,31.01.2022,ADULT SOCIAL CARE,ASPECTS CARE LTD,12/01/2022,523.12,6541-Community Supported Living/Supported Accommodation,THIRD PARTY PAYMENTS,PRIVATE CONTRACTOR,REVENUE
Walsall Council,http://opendatacommunities.org/id/metropolitan-district-council/walsall ,WC134-725,31.01.2022,ADULT SOCIAL CARE,ASPECTS CARE LTD,12/01/2022,566.68,6541-Community Supported Living/Supported Accommodation,THIRD PARTY PAYMENTS,PRIVATE CONTRACTOR,REVENUE
Walsall Council,http://opendatacommunities.org/id/metropolitan-district-council/walsall ,WC134-726,31.01.2022,ADULT SOCIAL CARE,ASPECTS CARE LTD,12/01/2022,799.24,6541-Community Supported Living/Supported Accommodation,THIRD PARTY PAYMENTS,PRIVATE CONTRACTOR,REVENUE
Walsall Council,http://opendatacommunities.org/id/metropolitan-district-council/walsall ,WC134-727,31.01.2022,ADULT SOCIAL CARE,ASPECTS CARE LTD,12/01/2022,508.48,6541-Community Supported Living/Supported Accommodation,THIRD PARTY PAYMENTS,PRIVATE CONTRACTOR,REVENUE
Walsall Council,http://opendatacommunities.org/id/metropolitan-district-council/walsall ,WC134-728,31.01.2022,ADULT SOCIAL CARE,ASPECTS CARE LTD,12/01/2022,"1,089.76",6541-Community Supported Living/Supported Accommodation,THIRD PARTY PAYMENTS,PRIVATE CONTRACTOR,REVENUE
Walsall Council,http://opendatacommunities.org/id/metropolitan-district-council/walsall ,WC134-729,31.01.2022,ADULT SOCIAL CARE,ASPECTS CARE LTD,12/01/2022,464.96,6541-Community Supported Living/Supported Accommodation,THIRD PARTY PAYMENTS,PRIVATE CONTRACTOR,REVENUE
Walsall Council,http://opendatacommunities.org/id/metropolitan-district-council/walsall ,WC134-730,31.01.2022,ADULT SOCIAL CARE,ASPECTS CARE LTD,12/01/2022,523.16,6541-Community Supported Living/Supported Accommodation,THIRD PARTY PAYMENTS,PRIVATE CONTRACTOR,REVENUE
Walsall Council,http://opendatacommunities.org/id/metropolitan-district-council/walsall ,WC134-731,31.01.2022,ADULT SOCIAL CARE,ASPECTS CARE LTD,12/01/2022,799.12,6541-Community Supported Living/Supported Accommodation,THIRD PARTY PAYMENTS,PRIVATE CONTRACTOR,REVENUE
Walsall Council,http://opendatacommunities.org/id/metropolitan-district-council/walsall ,WC134-732,31.01.2022,ADULT SOCIAL CARE,ASPECTS CARE LTD,12/01/2022,348.64,6541-Community Supported Living/Supported Accommodation,THIRD PARTY PAYMENTS,PRIVATE CONTRACTOR,REVENUE
Walsall Council,http://opendatacommunities.org/id/metropolitan-district-council/walsall ,WC134-733,31.01.2022,"ECONOMY, ENVIRONMENT & COMMUNITIES",ASTUN TECHNOLOGY LIMITED,20/01/2022,850.00,6411-Computer Equipment,SUPPLIES & SERVICES,COMMUNICATIONS & COMPUTING,REVENUE
Walsall Council,http://opendatacommunities.org/id/metropolitan-district-council/walsall ,WC134-734,31.01.2022,RESOURCES AND TRANSFORMATION CAPITAL,ASTUN TECHNOLOGY LIMITED,12/01/2022,850.00,7300-Consultants Fees,CAPITAL,"NEW CONSTRUCTION,CONVERSION & RENOVATION",CAPITAL
Walsall Council,http://opendatacommunities.org/id/metropolitan-district-council/walsall ,WC134-735,31.01.2022,CHILDRENS,REDACTED,25/01/2022,613.66,6223-Residents Orders,TRANSFER PAYMENTS,CHILDREN SOCIAL SERVICES CLIENT,REVENUE
Walsall Council,http://opendatacommunities.org/id/metropolitan-district-council/walsall ,WC134-736,31.01.2022,CHILDRENS,REDACTED,25/01/2022,613.66,6223-Residents Orders,TRANSFER PAYMENTS,CHILDREN SOCIAL SERVICES CLIENT,REVENUE
Walsall Council,http://opendatacommunities.org/id/metropolitan-district-council/walsall ,WC134-737,31.01.2022,"ECONOMY, ENVIRONMENT & COMMUNITIES",ATLAS TEACHERS,10/01/2022,635.36,6313-Grants to Other Orgs,SUPPLIES & SERVICES,GRANTS (EXP) & SUBSCRIPTIONS,REVENUE
Walsall Council,http://opendatacommunities.org/id/metropolitan-district-council/walsall ,WC134-738,31.01.2022,"ECONOMY, ENVIRONMENT & COMMUNITIES",ATLAS TEACHERS,10/01/2022,971.19,6313-Grants to Other Orgs,SUPPLIES & SERVICES,GRANTS (EXP) & SUBSCRIPTIONS,REVENUE
Walsall Council,http://opendatacommunities.org/id/metropolitan-district-council/walsall ,WC134-739,31.01.2022,"ECONOMY, ENVIRONMENT & COMMUNITIES",ATLAS TEACHERS,10/01/2022,592.52,6313-Grants to Other Orgs,SUPPLIES & SERVICES,GRANTS (EXP) & SUBSCRIPTIONS,REVENUE
Walsall Council,http://opendatacommunities.org/id/metropolitan-district-council/walsall ,WC134-740,31.01.2022,"ECONOMY, ENVIRONMENT & COMMUNITIES",AUDISE BY FREM GROUP LTD,25/01/2022,"-1,043.57",6414-Repair & Maintenance of Furniture & Equipment,SUPPLIES & SERVICES,EQUIPMENT FURNITURE & MATERIALS,REVENUE
Walsall Council,http://opendatacommunities.org/id/metropolitan-district-council/walsall ,WC134-741,31.01.2022,"ECONOMY, ENVIRONMENT & COMMUNITIES",AUDISE BY FREM GROUP LTD,25/01/2022,"1,043.57",6414-Repair & Maintenance of Furniture & Equipment,SUPPLIES & SERVICES,EQUIPMENT FURNITURE & MATERIALS,REVENUE
Walsall Council,http://opendatacommunities.org/id/metropolitan-district-council/walsall ,WC134-742,31.01.2022,ADULT SOCIAL CARE,AURORA GRAPHICS & DISPLAYS LTD,13/01/2022,"1,358.50",6623-Materials to Stores,SUPPLIES & SERVICES,EQUIPMENT FURNITURE & MATERIALS,REVENUE
Walsall Council,http://opendatacommunities.org/id/metropolitan-district-council/walsall ,WC134-743,31.01.2022,ADULT SOCIAL CARE,AUTISM WEST MIDLANDS,18/01/2022,"20,117.08",6541-Residential,THIRD PARTY PAYMENTS,PRIVATE CONTRACTOR,REVENUE
Walsall Council,http://opendatacommunities.org/id/metropolitan-district-council/walsall ,WC134-744,31.01.2022,ADULT SOCIAL CARE,AUTISM WEST MIDLANDS,18/01/2022,"7,418.04",6541-Residential,THIRD PARTY PAYMENTS,PRIVATE CONTRACTOR,REVENUE
Walsall Council,http://opendatacommunities.org/id/metropolitan-district-council/walsall ,WC134-745,31.01.2022,ADULT SOCIAL CARE,AUTISM WEST MIDLANDS,18/01/2022,"5,732.64",6541-Residential,THIRD PARTY PAYMENTS,PRIVATE CONTRACTOR,REVENUE
Walsall Council,http://opendatacommunities.org/id/metropolitan-district-council/walsall ,WC134-746,31.01.2022,ADULT SOCIAL CARE,AUTISM WEST MIDLANDS,19/01/2022,"-21,666.50",6552-Social Services-Fees to Voluntary Bodies,THIRD PARTY PAYMENTS,VOLUNTARY BODIES,REVENUE
Walsall Council,http://opendatacommunities.org/id/metropolitan-district-council/walsall ,WC134-747,31.01.2022,ADULT SOCIAL CARE,AUTISM WEST MIDLANDS,19/01/2022,"21,666.50",6552-Social Services-Fees to Voluntary Bodies,THIRD PARTY PAYMENTS,VOLUNTARY BODIES,REVENUE
Walsall Council,http://opendatacommunities.org/id/metropolitan-district-council/walsall ,WC134-748,31.01.2022,"ECONOMY, ENVIRONMENT & COMMUNITIES",AUTO EXTRACT SYSTEMS LTD,10/01/2022,800.00,6410-Professional Services-Priv Contractor & Other Agencies,THIRD PARTY PAYMENTS,PRIVATE CONTRACTOR,REVENUE
Walsall Council,http://opendatacommunities.org/id/metropolitan-district-council/walsall ,WC134-749,31.01.2022,ADULT SOCIAL CARE,AVE MARIA CARE SERVICES LTD,21/01/2022,"30,002.00",6554-Recruitment Expenses,INDIRECT EMPLOYEES,RECRUITMENT EXPENSES,REVENUE
Walsall Council,http://opendatacommunities.org/id/metropolitan-district-council/walsall ,WC134-750,31.01.2022,ADULT SOCIAL CARE,AVERY HOMES NELSON LIMITED,18/01/2022,"2,064.44",6541-Residential,THIRD PARTY PAYMENTS,PRIVATE CONTRACTOR,REVENUE
Walsall Council,http://opendatacommunities.org/id/metropolitan-district-council/walsall ,WC134-751,31.01.2022,ADULT SOCIAL CARE,AVERY HOMES NELSON LIMITED,18/01/2022,"2,064.44",6541-Residential,THIRD PARTY PAYMENTS,PRIVATE CONTRACTOR,REVENUE
Walsall Council,http://opendatacommunities.org/id/metropolitan-district-council/walsall ,WC134-752,31.01.2022,ADULT SOCIAL CARE,AVERY HOMES NELSON LIMITED,18/01/2022,"3,400.00",6541-Residential,THIRD PARTY PAYMENTS,PRIVATE CONTRACTOR,REVENUE
Walsall Council,http://opendatacommunities.org/id/metropolitan-district-council/walsall ,WC134-753,31.01.2022,ADULT SOCIAL CARE,AVERY HOMES NELSON LIMITED,18/01/2022,"3,000.00",6541-Residential,THIRD PARTY PAYMENTS,PRIVATE CONTRACTOR,REVENUE
Walsall Council,http://opendatacommunities.org/id/metropolitan-district-council/walsall ,WC134-754,31.01.2022,ADULT SOCIAL CARE,AVERY HOMES NELSON LIMITED,11/01/2022,"12,358.30",6550-COVID-19 Local Support Grant Exp,TRANSFER PAYMENTS,COVID TRANSFER PAYMENT,REVENUE
Walsall Council,http://opendatacommunities.org/id/metropolitan-district-council/walsall ,WC134-755,31.01.2022,ADULT SOCIAL CARE,AVERY HOMES NELSON LIMITED,11/01/2022,"8,780.99",6550-COVID-19 Household Support Grant Exp,TRANSFER PAYMENTS,COVID TRANSFER PAYMENT,REVENUE
Walsall Council,http://opendatacommunities.org/id/metropolitan-district-council/walsall ,WC134-756,31.01.2022,ADULT SOCIAL CARE,AVERY HOMES NELSON LIMITED,11/01/2022,868.91,6550-National Tutoring Exp,TRANSFER PAYMENTS,COVID TRANSFER PAYMENT,REVENUE
Walsall Council,http://opendatacommunities.org/id/metropolitan-district-council/walsall ,WC134-757,31.01.2022,ADULT SOCIAL CARE,REDACTED,06/01/2022,"3,394.56",6541-Direct Payment,THIRD PARTY PAYMENTS,PRIVATE CONTRACTOR,REVENUE
Walsall Council,http://opendatacommunities.org/id/metropolitan-district-council/walsall ,WC134-758,31.01.2022,CHILDRENS CAPITAL,AZTEC CONSTRUCTION (MIDLANDS) LTD,13/01/2022,"3,500.00",7100-Private Grants,CAPITAL,CAPITAL GRANTS,CAPITAL GRANTS
Walsall Council,http://opendatacommunities.org/id/metropolitan-district-council/walsall ,WC134-759,31.01.2022,"ECONOMY, ENVIRONMENT & COMMUNITIES",B W Y CANINE LTD,25/01/2022,300.00,6440-Professional Fees & Services,SUPPLIES & SERVICES,SERVICES,REVENUE
Walsall Council,http://opendatacommunities.org/id/metropolitan-district-council/walsall ,WC134-760,31.01.2022,CHILDRENS,BACHES SOLICITORS,28/01/2022,542.40,6220-School Only Payments - Catering,THIRD PARTY PAYMENTS,INDEPENDENT UNIT WITHIN COUNCIL,REVENUE
Walsall Council,http://opendatacommunities.org/id/metropolitan-district-council/walsall ,WC134-761,31.01.2022,"ECONOMY, ENVIRONMENT & COMMUNITIES",BAKER HALL PARTNERSHIP,19/01/2022,"1,895.50",6413-Professional Fees & Services,SUPPLIES & SERVICES,SERVICES,REVENUE
Walsall Council,http://opendatacommunities.org/id/metropolitan-district-council/walsall ,WC134-762,31.01.2022,ADULT SOCIAL CARE,REDACTED,06/01/2022,"3,799.92",6541-Direct Payment,THIRD PARTY PAYMENTS,PRIVATE CONTRACTOR,REVENUE
Walsall Council,http://opendatacommunities.org/id/metropolitan-district-council/walsall ,WC134-763,31.01.2022,CHILDRENS,BANYA FAMILY PLACEMENT AGENCY LTD,25/01/2022,"4,588.60",6223-Independent Foster Care-Oth Agency Provision,THIRD PARTY PAYMENTS,PRIVATE CONTRACTOR,REVENUE
Walsall Council,http://opendatacommunities.org/id/metropolitan-district-council/walsall ,WC134-764,31.01.2022,CHILDRENS,REDACTED,13/01/2022,315.71,6223-Internal Foster Carers-Carer Fees,TRANSFER PAYMENTS,CHILDREN SOCIAL SERVICES CLIENT,REVENUE
Walsall Council,http://opendatacommunities.org/id/metropolitan-district-council/walsall ,WC134-765,31.01.2022,"ECONOMY, ENVIRONMENT & COMMUNITIES",BARHALE LIMITED,17/01/2022,557.95,6313-Grants to Other Orgs,SUPPLIES & SERVICES,GRANTS (EXP) & SUBSCRIPTIONS,REVENUE
Walsall Council,http://opendatacommunities.org/id/metropolitan-district-council/walsall ,WC134-766,31.01.2022,"ECONOMY, ENVIRONMENT & COMMUNITIES",BARHALE LIMITED,17/01/2022,930.08,6313-Grants to Other Orgs,SUPPLIES & SERVICES,GRANTS (EXP) & SUBSCRIPTIONS,REVENUE
Walsall Council,http://opendatacommunities.org/id/metropolitan-district-council/walsall ,WC134-767,31.01.2022,"ECONOMY, ENVIRONMENT & COMMUNITIES",BARHALE LIMITED,17/01/2022,930.08,6313-Grants to Other Orgs,SUPPLIES & SERVICES,GRANTS (EXP) & SUBSCRIPTIONS,REVENUE
Walsall Council,http://opendatacommunities.org/id/metropolitan-district-council/walsall ,WC134-768,31.01.2022,CHILDRENS,BASE 25,04/01/2022,"2,055.20",6241-Professional Fees & Services,SUPPLIES & SERVICES,SERVICES,REVENUE
Walsall Council,http://opendatacommunities.org/id/metropolitan-district-council/walsall ,WC134-769,31.01.2022,"ECONOMY, ENVIRONMENT & COMMUNITIES",BATLEYS,06/01/2022,-979.99,6414-Catering & Refreshments,SUPPLIES & SERVICES,CATERING,REVENUE
Walsall Council,http://opendatacommunities.org/id/metropolitan-district-council/walsall ,WC134-770,31.01.2022,"ECONOMY, ENVIRONMENT & COMMUNITIES",BATLEYS,06/01/2022,968.61,6414-Catering & Refreshments,SUPPLIES & SERVICES,CATERING,REVENUE
Walsall Council,http://opendatacommunities.org/id/metropolitan-district-council/walsall ,WC134-771,31.01.2022,"ECONOMY, ENVIRONMENT & COMMUNITIES",BATLEYS,06/01/2022,979.99,6414-Catering & Refreshments,SUPPLIES & SERVICES,CATERING,REVENUE
Walsall Council,http://opendatacommunities.org/id/metropolitan-district-council/walsall ,WC134-772,31.01.2022,ECONOMY & ENVIRONMENT CAPITAL,BDO LLP,10/01/2022,"11,560.31",7200-Consultants Fees,CAPITAL,"NEW CONSTRUCTION,CONVERSION & RENOVATION",CAPITAL
Walsall Council,http://opendatacommunities.org/id/metropolitan-district-council/walsall ,WC134-773,31.01.2022,CHILDRENS,BEACON CHILDCARE LTD,25/01/2022,"12,200.00",6223-External Residential Care-Oth Agency Provision,THIRD PARTY PAYMENTS,PRIVATE CONTRACTOR,REVENUE
Walsall Council,http://opendatacommunities.org/id/metropolitan-district-council/walsall ,WC134-774,31.01.2022,ADULT SOCIAL CARE,BEATFREEKS CONSULTING LTD,12/01/2022,"10,000.00",6420-Consultant Fees,SUPPLIES & SERVICES,SERVICES,REVENUE
Walsall Council,http://opendatacommunities.org/id/metropolitan-district-council/walsall ,WC134-775,31.01.2022,ADULT SOCIAL CARE,BEECHWOODCOURT LTD  T/A BEECHWOOD COLLEGE,13/01/2022,"14,537.84",6541-Residential,THIRD PARTY PAYMENTS,PRIVATE CONTRACTOR,REVENUE
Walsall Council,http://opendatacommunities.org/id/metropolitan-district-council/walsall ,WC134-776,31.01.2022,ADULT SOCIAL CARE,BELVIDERE COURT,18/01/2022,"2,419.96",6541-Nursing,THIRD PARTY PAYMENTS,PRIVATE CONTRACTOR,REVENUE
Walsall Council,http://opendatacommunities.org/id/metropolitan-district-council/walsall ,WC134-777,31.01.2022,ADULT SOCIAL CARE,BELVIDERE COURT,18/01/2022,"2,895.88",6541-Residential,THIRD PARTY PAYMENTS,PRIVATE CONTRACTOR,REVENUE
Walsall Council,http://opendatacommunities.org/id/metropolitan-district-council/walsall ,WC134-778,31.01.2022,ADULT SOCIAL CARE,BENEDON HEALTHCARE LTD,12/01/2022,"5,903.24",6541-Community Supported Living/Supported Accommodation,THIRD PARTY PAYMENTS,PRIVATE CONTRACTOR,REVENUE
Walsall Council,http://opendatacommunities.org/id/metropolitan-district-council/walsall ,WC134-779,31.01.2022,ADULT SOCIAL CARE,BENEDON HEALTHCARE LTD,12/01/2022,"1,395.84",6541-Community Supported Living/Supported Accommodation,THIRD PARTY PAYMENTS,PRIVATE CONTRACTOR,REVENUE
Walsall Council,http://opendatacommunities.org/id/metropolitan-district-council/walsall ,WC134-780,31.01.2022,ADULT SOCIAL CARE,REDACTED,06/01/2022,"2,864.72",6541-Direct Payment,THIRD PARTY PAYMENTS,PRIVATE CONTRACTOR,REVENUE
Walsall Council,http://opendatacommunities.org/id/metropolitan-district-council/walsall ,WC134-781,31.01.2022,CHILDRENS,BERRICK COMPUTING LTD,28/01/2022,910.00,6221-Fees & Licences,SUPPLIES & SERVICES,SERVICES,REVENUE
Walsall Council,http://opendatacommunities.org/id/metropolitan-district-council/walsall ,WC134-782,31.01.2022,HOLDING ACCOUNTS,BERRYMANS LACE MAWER LLP,27/01/2022,"2,420.75",2877-Insurance Payment Claims,SUPPLIES & SERVICES,INSURANCE,REVENUE
Walsall Council,http://opendatacommunities.org/id/metropolitan-district-council/walsall ,WC134-783,31.01.2022,HOLDING ACCOUNTS,BERRYMANS LACE MAWER LLP,28/01/2022,"1,334.00",2877-Insurance Payment Claims,SUPPLIES & SERVICES,INSURANCE,REVENUE
Walsall Council,http://opendatacommunities.org/id/metropolitan-district-council/walsall ,WC134-784,31.01.2022,ADULT SOCIAL CARE,REDACTED,06/01/2022,"1,931.68",6541-Direct Payment,THIRD PARTY PAYMENTS,PRIVATE CONTRACTOR,REVENUE
Walsall Council,http://opendatacommunities.org/id/metropolitan-district-council/walsall ,WC134-785,31.01.2022,"ECONOMY, ENVIRONMENT & COMMUNITIES",BESCOT STADIUM SUNDAY MARKET LTD,05/01/2022,"2,600.00",6410-Professional Services-Priv Contractor & Other Agencies,THIRD PARTY PAYMENTS,PRIVATE CONTRACTOR,REVENUE
Walsall Council,http://opendatacommunities.org/id/metropolitan-district-council/walsall ,WC134-786,31.01.2022,CHILDRENS,BESPOKE TRAINING AND EDUCATION LTD,04/01/2022,910.80,1187-Materials,SUPPLIES & SERVICES,EQUIPMENT FURNITURE & MATERIALS,REVENUE
Walsall Council,http://opendatacommunities.org/id/metropolitan-district-council/walsall ,WC134-787,31.01.2022,CHILDRENS,BESPOKE TRAINING AND EDUCATION LTD,04/01/2022,"1,119.72",1187-Materials,SUPPLIES & SERVICES,EQUIPMENT FURNITURE & MATERIALS,REVENUE
Walsall Council,http://opendatacommunities.org/id/metropolitan-district-council/walsall ,WC134-788,31.01.2022,CHILDRENS,BESPOKE TRAINING AND EDUCATION LTD,04/01/2022,"1,366.20",1187-Materials,SUPPLIES & SERVICES,EQUIPMENT FURNITURE & MATERIALS,REVENUE
Walsall Council,http://opendatacommunities.org/id/metropolitan-district-council/walsall ,WC134-789,31.01.2022,CHILDRENS,BESPOKE TRAINING AND EDUCATION LTD,26/01/2022,819.72,1187-Materials,SUPPLIES & SERVICES,EQUIPMENT FURNITURE & MATERIALS,REVENUE
Walsall Council,http://opendatacommunities.org/id/metropolitan-district-council/walsall ,WC134-790,31.01.2022,ADULT SOCIAL CARE,BESS CARE LIMITED,13/01/2022,443.96,6541-Domiciliary Care,THIRD PARTY PAYMENTS,PRIVATE CONTRACTOR,REVENUE
Walsall Council,http://opendatacommunities.org/id/metropolitan-district-council/walsall ,WC134-791,31.01.2022,ADULT SOCIAL CARE,BESS CARE LIMITED,13/01/2022,354.29,6541-Domiciliary Care,THIRD PARTY PAYMENTS,PRIVATE CONTRACTOR,REVENUE
Walsall Council,http://opendatacommunities.org/id/metropolitan-district-council/walsall ,WC134-792,31.01.2022,ADULT SOCIAL CARE,BESS CARE LIMITED,13/01/2022,498.24,6541-Domiciliary Care,THIRD PARTY PAYMENTS,PRIVATE CONTRACTOR,REVENUE
Walsall Council,http://opendatacommunities.org/id/metropolitan-district-council/walsall ,WC134-793,31.01.2022,ADULT SOCIAL CARE,BESS CARE LIMITED,13/01/2022,541.30,6541-Domiciliary Care,THIRD PARTY PAYMENTS,PRIVATE CONTRACTOR,REVENUE
Walsall Council,http://opendatacommunities.org/id/metropolitan-district-council/walsall ,WC134-794,31.01.2022,ADULT SOCIAL CARE,BESS CARE LIMITED,13/01/2022,599.62,6541-Domiciliary Care,THIRD PARTY PAYMENTS,PRIVATE CONTRACTOR,REVENUE
Walsall Council,http://opendatacommunities.org/id/metropolitan-district-council/walsall ,WC134-795,31.01.2022,ADULT SOCIAL CARE,BESS CARE LIMITED,13/01/2022,490.70,6541-Domiciliary Care,THIRD PARTY PAYMENTS,PRIVATE CONTRACTOR,REVENUE
Walsall Council,http://opendatacommunities.org/id/metropolitan-district-council/walsall ,WC134-796,31.01.2022,ADULT SOCIAL CARE,BESS CARE LIMITED,13/01/2022,377.66,6541-Domiciliary Care,THIRD PARTY PAYMENTS,PRIVATE CONTRACTOR,REVENUE
Walsall Council,http://opendatacommunities.org/id/metropolitan-district-council/walsall ,WC134-797,31.01.2022,ADULT SOCIAL CARE,BESS CARE LIMITED,13/01/2022,260.91,6541-Domiciliary Care,THIRD PARTY PAYMENTS,PRIVATE CONTRACTOR,REVENUE
Walsall Council,http://opendatacommunities.org/id/metropolitan-district-council/walsall ,WC134-798,31.01.2022,ADULT SOCIAL CARE,BESS CARE LIMITED,13/01/2022,354.29,6541-Domiciliary Care,THIRD PARTY PAYMENTS,PRIVATE CONTRACTOR,REVENUE
Walsall Council,http://opendatacommunities.org/id/metropolitan-district-council/walsall ,WC134-799,31.01.2022,ADULT SOCIAL CARE,BESS CARE LIMITED,13/01/2022,552.98,6541-Domiciliary Care,THIRD PARTY PAYMENTS,PRIVATE CONTRACTOR,REVENUE
Walsall Council,http://opendatacommunities.org/id/metropolitan-district-council/walsall ,WC134-800,31.01.2022,ADULT SOCIAL CARE,BESS CARE LIMITED,13/01/2022,311.56,6541-Domiciliary Care,THIRD PARTY PAYMENTS,PRIVATE CONTRACTOR,REVENUE
Walsall Council,http://opendatacommunities.org/id/metropolitan-district-council/walsall ,WC134-801,31.01.2022,ADULT SOCIAL CARE,BESS CARE LIMITED,13/01/2022,622.80,6541-Domiciliary Care,THIRD PARTY PAYMENTS,PRIVATE CONTRACTOR,REVENUE
Walsall Council,http://opendatacommunities.org/id/metropolitan-district-council/walsall ,WC134-802,31.01.2022,ADULT SOCIAL CARE,BESS CARE LIMITED,13/01/2022,599.62,6541-Domiciliary Care,THIRD PARTY PAYMENTS,PRIVATE CONTRACTOR,REVENUE
Walsall Council,http://opendatacommunities.org/id/metropolitan-district-council/walsall ,WC134-803,31.01.2022,ADULT SOCIAL CARE,BESS CARE LIMITED,04/01/2022,997.70,6550-COVID-19 Local Support Grant Exp,TRANSFER PAYMENTS,COVID TRANSFER PAYMENT,REVENUE
Walsall Council,http://opendatacommunities.org/id/metropolitan-district-council/walsall ,WC134-804,31.01.2022,ADULT SOCIAL CARE,BETHPHAGE.,04/01/2022,565.75,6541-Domiciliary Care,THIRD PARTY PAYMENTS,PRIVATE CONTRACTOR,REVENUE
